{"text_format":"1","workbook":"xlsx","n_sheets":7,"sheets":["Tablero","Jugadas","Series","Reglas","Lecciones","Partidas","Numéricas"],"not_rendered":{"charts":3,"images":26,"macros":1,"external_links":0,"defined_names":147,"comments":0,"pivot_tables":0},"unopened":[],"bounds":{"document_bytes":16777216,"sheet_cells":100000,"rows_first":2000,"rows_last":500,"rows_between":2000,"halvings":0,"cell_chars":16384,"cell_head_chars":4096},"cells_cut":0,"cells_raw":0,"read":"whole","date_system":"1900"}

{"sheet":"Tablero","index":0,"n_rows":44,"n_cols":19,"rows_kept":44,"cut":false,"hidden":false,"merged":[[6,12,12,13],[16,12,17,13],[1,15,1,17],[5,12,5,13],[10,1,15,2],[36,5,36,10],[18,12,18,13],[19,12,19,13],[20,12,20,13],[21,12,21,13],[22,12,22,13],[23,12,23,13],[24,12,24,13],[25,12,25,13],[32,5,32,10],[33,5,33,10],[34,5,34,10],[35,5,35,10]]}
[]
[null,"Aprende Ajedrez",null,null,null,null,null,null,null,null,null,null,"Turno","Pieza Casilla",null,"Numérica",null,null,"i"]
[null,"con Excel (v1.8)",null,null,null,null,null,null,null,null,null,null,{"$f":"IF(MOD(INT(miPiezaMovimiento/2),2)=0,\"Blancas\",\"Negras\")","v":"Blancas"},{"$f":"IF(miPosA>0,LEFT(miSeriePieza,2),\"--\") & \" \" & IF(valX=0,\"--\",IF(Tipo_Notación=1, miPosCoordenadas, IF(miCasilla>0,miCasilla,miPosB)))","v":"-- --"},null,{"$f":"INT(miPiezaMovimiento/4)+1","v":1},"Blancas","Negras",0]
[null,null,null,null,null,null,null,null,null,null,null,null,null,null,null,1,{"$f":"IF(Valor_Modo=\"Editor\",\nIFERROR(INDEX(CHOOSE(Tipo_Notación,miJuegoAlgebraico,miJuegoNumérico),$P4,1) & \"\",\"\"),\nIFERROR(INDEX(CHOOSE(Tipo_Notación,miPartidaAlgebraica,miPartidaNumérica),$P4,1) & \"\",\"\"))","v":""},{"$f":"IF(Valor_Modo=\"Editor\",\nIFERROR(INDEX(CHOOSE(Tipo_Notación,miJuegoAlgebraico,miJuegoNumérico),$P4,2) & \"\",\"\"),\nIFERROR(INDEX(CHOOSE(Tipo_Notación,miPartidaAlgebraica,miPartidaNumérica),$P4,2) & \"\",\"\"))","v":""},9]
[null,"Jugador",null,null,null,null,null,null,null,null,null,null,{"$f":"IFERROR(INDEX(TablaListaLecciones['#],MATCH(miLectura,TablaListaLecciones[Lección],0)),\"\")","v":0},0,"O",{"$f":"IF(OR(P4=\"\",P4>=100),\"\",P4+1)","v":2},{"$f":"IF(Valor_Modo=\"Editor\",\nIFERROR(INDEX(CHOOSE(Tipo_Notación,miJuegoAlgebraico,miJuegoNumérico),$P5,1) & \"\",\"\"),\nIFERROR(INDEX(CHOOSE(Tipo_Notación,miPartidaAlgebraica,miPartidaNumérica),$P5,1) & \"\",\"\"))","v":""},{"$f":"IF(Valor_Modo=\"Editor\",\nIFERROR(INDEX(CHOOSE(Tipo_Notación,miJuegoAlgebraico,miJuegoNumérico),$P5,2) & \"\",\"\"),\nIFERROR(INDEX(CHOOSE(Tipo_Notación,miPartidaAlgebraica,miPartidaNumérica),$P5,2) & \"\",\"\"))","v":""},7]
[null,null,null,null,null,null,null,null,null,null,null,null,"Todas las lecciones",null,9,{"$f":"IF(OR(P5=\"\",P5>=100),\"\",P5+1)","v":3},{"$f":"IF(Valor_Modo=\"Editor\",\nIFERROR(INDEX(CHOOSE(Tipo_Notación,miJuegoAlgebraico,miJuegoNumérico),$P6,1) & \"\",\"\"),\nIFERROR(INDEX(CHOOSE(Tipo_Notación,miPartidaAlgebraica,miPartidaNumérica),$P6,1) & \"\",\"\"))","v":""},{"$f":"IF(Valor_Modo=\"Editor\",\nIFERROR(INDEX(CHOOSE(Tipo_Notación,miJuegoAlgebraico,miJuegoNumérico),$P6,2) & \"\",\"\"),\nIFERROR(INDEX(CHOOSE(Tipo_Notación,miPartidaAlgebraica,miPartidaNumérica),$P6,2) & \"\",\"\"))","v":""},5]
[null,"Jugadas",{"$f":"TEXT(IFERROR(miNúmVálidas/(miNúmVálidas+miNúmInválidas),0),\"0%\") & \" aciertos\"","v":"0% aciertos"},null,null,null,null,null,null,null,null,null,"¡Aprende Ajedrez con Excel!\r\n\r\nElige una de las lecciones con el desplegable de la celda M6. O mejor, toca el botón de abajo a la derecha, celda N14, para ir a la Lección 1.",null,5,4,{"$f":"IF(Valor_Modo=\"Editor\",\nIFERROR(INDEX(CHOOSE(Tipo_Notación,miJuegoAlgebraico,miJuegoNumérico),$P7,1) & \"\",\"\"),\nIFERROR(INDEX(CHOOSE(Tipo_Notación,miPartidaAlgebraica,miPartidaNumérica),$P7,1) & \"\",\"\"))","v":""},{"$f":"IF(Valor_Modo=\"Editor\",\nIFERROR(INDEX(CHOOSE(Tipo_Notación,miJuegoAlgebraico,miJuegoNumérico),$P7,2) & \"\",\"\"),\nIFERROR(INDEX(CHOOSE(Tipo_Notación,miPartidaAlgebraica,miPartidaNumérica),$P7,2) & \"\",\"\"))","v":""},6]
[null,"Válidas",0,null,null,null,null,null,null,null,null,null,null,null,6,5,{"$f":"IF(Valor_Modo=\"Editor\",\nIFERROR(INDEX(CHOOSE(Tipo_Notación,miJuegoAlgebraico,miJuegoNumérico),$P8,1) & \"\",\"\"),\nIFERROR(INDEX(CHOOSE(Tipo_Notación,miPartidaAlgebraica,miPartidaNumérica),$P8,1) & \"\",\"\"))","v":""},{"$f":"IF(Valor_Modo=\"Editor\",\nIFERROR(INDEX(CHOOSE(Tipo_Notación,miJuegoAlgebraico,miJuegoNumérico),$P8,2) & \"\",\"\"),\nIFERROR(INDEX(CHOOSE(Tipo_Notación,miPartidaAlgebraica,miPartidaNumérica),$P8,2) & \"\",\"\"))","v":""},8]
[null,"Inválidas",0,null,null,null,null,null,null,null,null,null,null,null,":",6,{"$f":"IF(Valor_Modo=\"Editor\",\nIFERROR(INDEX(CHOOSE(Tipo_Notación,miJuegoAlgebraico,miJuegoNumérico),$P9,1) & \"\",\"\"),\nIFERROR(INDEX(CHOOSE(Tipo_Notación,miPartidaAlgebraica,miPartidaNumérica),$P9,1) & \"\",\"\"))","v":""},{"$f":"IF(Valor_Modo=\"Editor\",\nIFERROR(INDEX(CHOOSE(Tipo_Notación,miJuegoAlgebraico,miJuegoNumérico),$P9,2) & \"\",\"\"),\nIFERROR(INDEX(CHOOSE(Tipo_Notación,miPartidaAlgebraica,miPartidaNumérica),$P9,2) & \"\",\"\"))","v":""},":"]
[null,null,null,null,null,null,null,null,null,null,null,null,null,null,null,7,{"$f":"IF(Valor_Modo=\"Editor\",\nIFERROR(INDEX(CHOOSE(Tipo_Notación,miJuegoAlgebraico,miJuegoNumérico),$P10,1) & \"\",\"\"),\nIFERROR(INDEX(CHOOSE(Tipo_Notación,miPartidaAlgebraica,miPartidaNumérica),$P10,1) & \"\",\"\"))","v":""},{"$f":"IF(Valor_Modo=\"Editor\",\nIFERROR(INDEX(CHOOSE(Tipo_Notación,miJuegoAlgebraico,miJuegoNumérico),$P10,2) & \"\",\"\"),\nIFERROR(INDEX(CHOOSE(Tipo_Notación,miPartidaAlgebraica,miPartidaNumérica),$P10,2) & \"\",\"\"))","v":""}]
[null,"Aprende a jugar ajedrez con 27 lecciones en una hoja de cálculo de Excel.\r\n\r\nComienza por la Lección 1, tocando el botón en N14.",null,null,null,null,null,null,null,null,null,null,null,null," ",8,{"$f":"IF(Valor_Modo=\"Editor\",\nIFERROR(INDEX(CHOOSE(Tipo_Notación,miJuegoAlgebraico,miJuegoNumérico),$P11,1) & \"\",\"\"),\nIFERROR(INDEX(CHOOSE(Tipo_Notación,miPartidaAlgebraica,miPartidaNumérica),$P11,1) & \"\",\"\"))","v":""},{"$f":"IF(Valor_Modo=\"Editor\",\nIFERROR(INDEX(CHOOSE(Tipo_Notación,miJuegoAlgebraico,miJuegoNumérico),$P11,2) & \"\",\"\"),\nIFERROR(INDEX(CHOOSE(Tipo_Notación,miPartidaAlgebraica,miPartidaNumérica),$P11,2) & \"\",\"\"))","v":""}]
[null,null,null,null,null,null,null,null,null,null,null,null,null,null," ",9,{"$f":"IF(Valor_Modo=\"Editor\",\nIFERROR(INDEX(CHOOSE(Tipo_Notación,miJuegoAlgebraico,miJuegoNumérico),$P12,1) & \"\",\"\"),\nIFERROR(INDEX(CHOOSE(Tipo_Notación,miPartidaAlgebraica,miPartidaNumérica),$P12,1) & \"\",\"\"))","v":""},{"$f":"IF(Valor_Modo=\"Editor\",\nIFERROR(INDEX(CHOOSE(Tipo_Notación,miJuegoAlgebraico,miJuegoNumérico),$P12,2) & \"\",\"\"),\nIFERROR(INDEX(CHOOSE(Tipo_Notación,miPartidaAlgebraica,miPartidaNumérica),$P12,2) & \"\",\"\"))","v":""}]
[null,null,null,null,null,null,null,null,null,null,null,null,null,null," ",10,{"$f":"IF(Valor_Modo=\"Editor\",\nIFERROR(INDEX(CHOOSE(Tipo_Notación,miJuegoAlgebraico,miJuegoNumérico),$P13,1) & \"\",\"\"),\nIFERROR(INDEX(CHOOSE(Tipo_Notación,miPartidaAlgebraica,miPartidaNumérica),$P13,1) & \"\",\"\"))","v":""},{"$f":"IF(Valor_Modo=\"Editor\",\nIFERROR(INDEX(CHOOSE(Tipo_Notación,miJuegoAlgebraico,miJuegoNumérico),$P13,2) & \"\",\"\"),\nIFERROR(INDEX(CHOOSE(Tipo_Notación,miPartidaAlgebraica,miPartidaNumérica),$P13,2) & \"\",\"\"))","v":""}]
[null,null,null,null,null,null,null,null,null,null,null,null,9,4,null,11,{"$f":"IF(Valor_Modo=\"Editor\",\nIFERROR(INDEX(CHOOSE(Tipo_Notación,miJuegoAlgebraico,miJuegoNumérico),$P14,1) & \"\",\"\"),\nIFERROR(INDEX(CHOOSE(Tipo_Notación,miPartidaAlgebraica,miPartidaNumérica),$P14,1) & \"\",\"\"))","v":""},{"$f":"IF(Valor_Modo=\"Editor\",\nIFERROR(INDEX(CHOOSE(Tipo_Notación,miJuegoAlgebraico,miJuegoNumérico),$P14,2) & \"\",\"\"),\nIFERROR(INDEX(CHOOSE(Tipo_Notación,miPartidaAlgebraica,miPartidaNumérica),$P14,2) & \"\",\"\"))","v":""}]
[null,null,null,null,null,null,null,null,null,null,null,null,null,null," ",12,{"$f":"IF(Valor_Modo=\"Editor\",\nIFERROR(INDEX(CHOOSE(Tipo_Notación,miJuegoAlgebraico,miJuegoNumérico),$P15,1) & \"\",\"\"),\nIFERROR(INDEX(CHOOSE(Tipo_Notación,miPartidaAlgebraica,miPartidaNumérica),$P15,1) & \"\",\"\"))","v":""},{"$f":"IF(Valor_Modo=\"Editor\",\nIFERROR(INDEX(CHOOSE(Tipo_Notación,miJuegoAlgebraico,miJuegoNumérico),$P15,2) & \"\",\"\"),\nIFERROR(INDEX(CHOOSE(Tipo_Notación,miPartidaAlgebraica,miPartidaNumérica),$P15,2) & \"\",\"\"))","v":""}]
[null,null,null,null,null,null,null,null,null,null,null,null,"Partida",0,"n",13,{"$f":"IF(Valor_Modo=\"Editor\",\nIFERROR(INDEX(CHOOSE(Tipo_Notación,miJuegoAlgebraico,miJuegoNumérico),$P16,1) & \"\",\"\"),\nIFERROR(INDEX(CHOOSE(Tipo_Notación,miPartidaAlgebraica,miPartidaNumérica),$P16,1) & \"\",\"\"))","v":""},{"$f":"IF(Valor_Modo=\"Editor\",\nIFERROR(INDEX(CHOOSE(Tipo_Notación,miJuegoAlgebraico,miJuegoNumérico),$P16,2) & \"\",\"\"),\nIFERROR(INDEX(CHOOSE(Tipo_Notación,miPartidaAlgebraica,miPartidaNumérica),$P16,2) & \"\",\"\"))","v":""}]
[null,null,null,null,null,null,null,null,null,null,null,null,"A partir de la lección 17 puedes estudiar partidas",null,9,14,{"$f":"IF(Valor_Modo=\"Editor\",\nIFERROR(INDEX(CHOOSE(Tipo_Notación,miJuegoAlgebraico,miJuegoNumérico),$P17,1) & \"\",\"\"),\nIFERROR(INDEX(CHOOSE(Tipo_Notación,miPartidaAlgebraica,miPartidaNumérica),$P17,1) & \"\",\"\"))","v":""},{"$f":"IF(Valor_Modo=\"Editor\",\nIFERROR(INDEX(CHOOSE(Tipo_Notación,miJuegoAlgebraico,miJuegoNumérico),$P17,2) & \"\",\"\"),\nIFERROR(INDEX(CHOOSE(Tipo_Notación,miPartidaAlgebraica,miPartidaNumérica),$P17,2) & \"\",\"\"))","v":""}]
[null,null,"Movimiento",null,null,null,null,null,null,null,null,null,null,null,5,15,{"$f":"IF(Valor_Modo=\"Editor\",\nIFERROR(INDEX(CHOOSE(Tipo_Notación,miJuegoAlgebraico,miJuegoNumérico),$P18,1) & \"\",\"\"),\nIFERROR(INDEX(CHOOSE(Tipo_Notación,miPartidaAlgebraica,miPartidaNumérica),$P18,1) & \"\",\"\"))","v":""},{"$f":"IF(Valor_Modo=\"Editor\",\nIFERROR(INDEX(CHOOSE(Tipo_Notación,miJuegoAlgebraico,miJuegoNumérico),$P18,2) & \"\",\"\"),\nIFERROR(INDEX(CHOOSE(Tipo_Notación,miPartidaAlgebraica,miPartidaNumérica),$P18,2) & \"\",\"\"))","v":""}]
[null,"Válido","Sí",null,null,null,null,null,null,null,null,null,"",null,6,16,{"$f":"IF(Valor_Modo=\"Editor\",\nIFERROR(INDEX(CHOOSE(Tipo_Notación,miJuegoAlgebraico,miJuegoNumérico),$P19,1) & \"\",\"\"),\nIFERROR(INDEX(CHOOSE(Tipo_Notación,miPartidaAlgebraica,miPartidaNumérica),$P19,1) & \"\",\"\"))","v":""},{"$f":"IF(Valor_Modo=\"Editor\",\nIFERROR(INDEX(CHOOSE(Tipo_Notación,miJuegoAlgebraico,miJuegoNumérico),$P19,2) & \"\",\"\"),\nIFERROR(INDEX(CHOOSE(Tipo_Notación,miPartidaAlgebraica,miPartidaNumérica),$P19,2) & \"\",\"\"))","v":""}]
[null,"Último","Sí",null,null,null,null,null,null,null,null,null,"",null,":",17,{"$f":"IF(Valor_Modo=\"Editor\",\nIFERROR(INDEX(CHOOSE(Tipo_Notación,miJuegoAlgebraico,miJuegoNumérico),$P20,1) & \"\",\"\"),\nIFERROR(INDEX(CHOOSE(Tipo_Notación,miPartidaAlgebraica,miPartidaNumérica),$P20,1) & \"\",\"\"))","v":""},{"$f":"IF(Valor_Modo=\"Editor\",\nIFERROR(INDEX(CHOOSE(Tipo_Notación,miJuegoAlgebraico,miJuegoNumérico),$P20,2) & \"\",\"\"),\nIFERROR(INDEX(CHOOSE(Tipo_Notación,miPartidaAlgebraica,miPartidaNumérica),$P20,2) & \"\",\"\"))","v":""}]
[null,"Piezas","Sí",null,null,null,null,null,null,null,null,null,"",null,null,18,{"$f":"IF(Valor_Modo=\"Editor\",\nIFERROR(INDEX(CHOOSE(Tipo_Notación,miJuegoAlgebraico,miJuegoNumérico),$P21,1) & \"\",\"\"),\nIFERROR(INDEX(CHOOSE(Tipo_Notación,miPartidaAlgebraica,miPartidaNumérica),$P21,1) & \"\",\"\"))","v":""},{"$f":"IF(Valor_Modo=\"Editor\",\nIFERROR(INDEX(CHOOSE(Tipo_Notación,miJuegoAlgebraico,miJuegoNumérico),$P21,2) & \"\",\"\"),\nIFERROR(INDEX(CHOOSE(Tipo_Notación,miPartidaAlgebraica,miPartidaNumérica),$P21,2) & \"\",\"\"))","v":""}]
[null,"Velocidad",5,null,null,null,null,null,null,null,null,null,"",null,null,19,{"$f":"IF(Valor_Modo=\"Editor\",\nIFERROR(INDEX(CHOOSE(Tipo_Notación,miJuegoAlgebraico,miJuegoNumérico),$P22,1) & \"\",\"\"),\nIFERROR(INDEX(CHOOSE(Tipo_Notación,miPartidaAlgebraica,miPartidaNumérica),$P22,1) & \"\",\"\"))","v":""},{"$f":"IF(Valor_Modo=\"Editor\",\nIFERROR(INDEX(CHOOSE(Tipo_Notación,miJuegoAlgebraico,miJuegoNumérico),$P22,2) & \"\",\"\"),\nIFERROR(INDEX(CHOOSE(Tipo_Notación,miPartidaAlgebraica,miPartidaNumérica),$P22,2) & \"\",\"\"))","v":""}]
[null,null,null,null,null,null,null,null,null,null,null,null,"",null,null,20,{"$f":"IF(Valor_Modo=\"Editor\",\nIFERROR(INDEX(CHOOSE(Tipo_Notación,miJuegoAlgebraico,miJuegoNumérico),$P23,1) & \"\",\"\"),\nIFERROR(INDEX(CHOOSE(Tipo_Notación,miPartidaAlgebraica,miPartidaNumérica),$P23,1) & \"\",\"\"))","v":""},{"$f":"IF(Valor_Modo=\"Editor\",\nIFERROR(INDEX(CHOOSE(Tipo_Notación,miJuegoAlgebraico,miJuegoNumérico),$P23,2) & \"\",\"\"),\nIFERROR(INDEX(CHOOSE(Tipo_Notación,miPartidaAlgebraica,miPartidaNumérica),$P23,2) & \"\",\"\"))","v":""}]
[null,null,"Tablero",null,null,null,null,null,null,null,null,null,"",null,null,21,{"$f":"IF(Valor_Modo=\"Editor\",\nIFERROR(INDEX(CHOOSE(Tipo_Notación,miJuegoAlgebraico,miJuegoNumérico),$P24,1) & \"\",\"\"),\nIFERROR(INDEX(CHOOSE(Tipo_Notación,miPartidaAlgebraica,miPartidaNumérica),$P24,1) & \"\",\"\"))","v":""},{"$f":"IF(Valor_Modo=\"Editor\",\nIFERROR(INDEX(CHOOSE(Tipo_Notación,miJuegoAlgebraico,miJuegoNumérico),$P24,2) & \"\",\"\"),\nIFERROR(INDEX(CHOOSE(Tipo_Notación,miPartidaAlgebraica,miPartidaNumérica),$P24,2) & \"\",\"\"))","v":""}]
[null,"Al frente","No",null,null,null,null,null,null,null,null,null,"",null,null,22,{"$f":"IF(Valor_Modo=\"Editor\",\nIFERROR(INDEX(CHOOSE(Tipo_Notación,miJuegoAlgebraico,miJuegoNumérico),$P25,1) & \"\",\"\"),\nIFERROR(INDEX(CHOOSE(Tipo_Notación,miPartidaAlgebraica,miPartidaNumérica),$P25,1) & \"\",\"\"))","v":""},{"$f":"IF(Valor_Modo=\"Editor\",\nIFERROR(INDEX(CHOOSE(Tipo_Notación,miJuegoAlgebraico,miJuegoNumérico),$P25,2) & \"\",\"\"),\nIFERROR(INDEX(CHOOSE(Tipo_Notación,miPartidaAlgebraica,miPartidaNumérica),$P25,2) & \"\",\"\"))","v":""}]
[null,"Estilo","Moderno",null,null,null,null,null,null,null,null,null,"",null,null,23,{"$f":"IF(Valor_Modo=\"Editor\",\nIFERROR(INDEX(CHOOSE(Tipo_Notación,miJuegoAlgebraico,miJuegoNumérico),$P26,1) & \"\",\"\"),\nIFERROR(INDEX(CHOOSE(Tipo_Notación,miPartidaAlgebraica,miPartidaNumérica),$P26,1) & \"\",\"\"))","v":""},{"$f":"IF(Valor_Modo=\"Editor\",\nIFERROR(INDEX(CHOOSE(Tipo_Notación,miJuegoAlgebraico,miJuegoNumérico),$P26,2) & \"\",\"\"),\nIFERROR(INDEX(CHOOSE(Tipo_Notación,miPartidaAlgebraica,miPartidaNumérica),$P26,2) & \"\",\"\"))","v":""}]
[null,"Pantalla","Completa",null,null,null,null,null,null,null,null,null,{"$f":"SUBSTITUTE(SUBSTITUTE(SUBSTITUTE(SUBSTITUTE(SUBSTITUTE(SUBSTITUTE(SUBSTITUTE(SUBSTITUTE(SUBSTITUTE(SUBSTITUTE(SUBSTITUTE(SUBSTITUTE(SUBSTITUTE(SUBSTITUTE(SUBSTITUTE(SUBSTITUTE(\nSUBSTITUTE(SUBSTITUTE(SUBSTITUTE(SUBSTITUTE(SUBSTITUTE(SUBSTITUTE(SUBSTITUTE(SUBSTITUTE(SUBSTITUTE(SUBSTITUTE(SUBSTITUTE(SUBSTITUTE(SUBSTITUTE(SUBSTITUTE(SUBSTITUTE(SUBSTITUTE(SUBSTITUTE(SUBSTITUTE(SUBSTITUTE(SUBSTITUTE(SUBSTITUTE(SUBSTITUTE(SUBSTITUTE(SUBSTITUTE(SUBSTITUTE(SUBSTITUTE(SUBSTITUTE(SUBSTITUTE(SUBSTITUTE(SUBSTITUTE(SUBSTITUTE(SUBSTITUTE(N42,\n\"Blancas R\",\"Rey blanco*\"),\"Blancas D\",\"Dama blanca*\"),\"Blancas T\",\"Torre blanca*\"),\"Blancas A\",\"Alfil blanco*\"),\"Blancas C\",\"Caballo blanco*\"),\n\"Blancas O-O-O\",\"Enroque largo de las blancas\"),\"Blancas O-O\",\"Enroque corto de las blancas\"),\"Blancas 1\",\"1\"),\"Blancas 0\",\"0\"),\"Blancas ½\",\"½\"),\"Blancas \",\"Peón blanco*\"),\"Blancas\",\"\"),\n\"Negras R\",\"Rey negro*\"),\"Negras D\",\"Dama negra*\"),\"Negras T\",\"Torre negra*\"),\"Negras A\",\"Alfil negro*\"),\"Negras C\",\"Caballo negro*\"),\n\"Negras O-O-O\",\"Enroque largo de las negras\"),\"Negras O-O\",\"Enroque corto de las negras\"),\"Negras 1\",\"1\"),\"Negras 0\",\"0\"),\"Negras ½\",\"½\"),\"Negras \",\"Peón negro*\"),\"Negras\",\"\"),\n\"*1\",\" de 1 a \"),\"*2\",\" de 2 a \"),\"*3\",\" de 3 a \"),\"*4\",\" de 4 a \"),\"*5\",\" de 5 a \"),\"*6\",\" de 6 a \"),\"*7\",\" de 7 a \"),\"*8\",\" de 8 a \"),\n\"*a\",\" de a a \"),\"*b\",\" de b a \"),\"*c\",\" de c a \"),\"*d\",\" de d a \"),\"*e\",\" de e a \"),\"*f\",\" de f a \"),\"*g\",\" de g a \"),\"*h\",\" de h a \"),\"a x\",\"por \"),\"*x\",\" por \"),\"x\",\" por \"),\"*\",\" a \")\n& M42 & IF(RIGHT(M41)=\"#\",\". ¡Jaque mate!\",IF(RIGHT(M41)=\"++\",\". ¡Jaque doble!\",IF(RIGHT(M41)=\"+\",\". ¡Jaque!\",\"\"))),\n\"=D\",\". Promociona a dama\"),\"=T\",\". Promociona a torre\"),\"=A\",\". Promociona a alfil\"),\"=C\",\". Promociona a caballo\")","v":""},null,null,24,{"$f":"IF(Valor_Modo=\"Editor\",\nIFERROR(INDEX(CHOOSE(Tipo_Notación,miJuegoAlgebraico,miJuegoNumérico),$P27,1) & \"\",\"\"),\nIFERROR(INDEX(CHOOSE(Tipo_Notación,miPartidaAlgebraica,miPartidaNumérica),$P27,1) & \"\",\"\"))","v":""},{"$f":"IF(Valor_Modo=\"Editor\",\nIFERROR(INDEX(CHOOSE(Tipo_Notación,miJuegoAlgebraico,miJuegoNumérico),$P27,2) & \"\",\"\"),\nIFERROR(INDEX(CHOOSE(Tipo_Notación,miPartidaAlgebraica,miPartidaNumérica),$P27,2) & \"\",\"\"))","v":""}]
[null,"Zoom",100,null,null,null,null,null,null,null,null,null,{"$f":"IFERROR(INDEX(miPartida,miJugada,1)&\"\",\"\")","v":""},null,null,25,{"$f":"IF(Valor_Modo=\"Editor\",\nIFERROR(INDEX(CHOOSE(Tipo_Notación,miJuegoAlgebraico,miJuegoNumérico),$P28,1) & \"\",\"\"),\nIFERROR(INDEX(CHOOSE(Tipo_Notación,miPartidaAlgebraica,miPartidaNumérica),$P28,1) & \"\",\"\"))","v":""},{"$f":"IF(Valor_Modo=\"Editor\",\nIFERROR(INDEX(CHOOSE(Tipo_Notación,miJuegoAlgebraico,miJuegoNumérico),$P28,2) & \"\",\"\"),\nIFERROR(INDEX(CHOOSE(Tipo_Notación,miPartidaAlgebraica,miPartidaNumérica),$P28,2) & \"\",\"\"))","v":""}]
[]
[]
[]
[]
[null,"Autor del blog: Pedro Wave",null,null,null,"Aprende ajedrez con Excel | #ExcelPedroWave"]
[null,"Canal de YouTube: Pedro Wave",null,null,null,"Ajedrez en Excel - YouTube | #ExcelPedroWave"]
[null,"Idea original de: Daniel Ferry",null,null,null,"Excel 2007 Chess Game Viewer - Excel Hero Blog"]
[null,"Imagen piezas del ajedrez: Maurizio Monge",null,null,null,"Category:SVG chess pieces/Maurizio Monge - Wikimedia Commons"]
[null,"COPYRIGHT:",null,null,null,"Creative Commons — Atribución-NoComercial-CompartirIgual 3.0 No portada"]
[]
[]
[]
[null,null,null,null,null,null,null,null,null,null,null,"Genera",{"$f":"IF(MOD(miPiezaMovimiento,4)=0,IFERROR(\"Blancas \"&RIGHT(N41,LEN(N41)-FIND(\". \",N41)-1),IF(ISNUMBER(--LEFT(N41)),\"\",N41)),\nIF(MOD(miPiezaMovimiento,4)=2,IF(SUBSTITUTE(M28,N41,\"\")=\"\",\"\",\"Negras\")&SUBSTITUTE(M28,N41,\"\"),IF(ISNUMBER(--LEFT(N41)),\"\",N41)))","v":""},{"$f":"IFERROR(LEFT(M28,FIND(\" \",M28,FIND(\". \",M28)+2)-1),M28)","v":""}]
[null,null,null,null,null,null,null,null,null,null,null,"Instrucciones",{"$f":"IF(LEN(SUBSTITUTE(M41,\"O-O\",\"\"))=LEN(M41),RIGHT(SUBSTITUTE(SUBSTITUTE(M41,\"#\",\"\"),\"+\",\"\"),IF(LEN(SUBSTITUTE(M41,\"-\",\"\"))=LEN(M41),2,IF(LEN(M41)<12,4,6))),\"\")","v":""},{"$f":"SUBSTITUTE(SUBSTITUTE(SUBSTITUTE(M41,M42,\"\"),\"#\",\"\"),\"+\",\"\")","v":""}]
[]
[null,null,null,null,null,null,null,null,null,null,null,null,"Modo","Editor",null,null,3,4]

{"sheet":"Jugadas","index":1,"n_rows":102,"n_cols":17,"rows_kept":102,"cut":false,"hidden":false,"merged":[]}
[null,"Notación numérica",null,"Notación numérica",null,null,"Notación algebraica",null,"Notación algebraica",null,null,"Test",null,"Movimiento",null,"Notación"]
["Jugadas","Blancas","Negras","Partida guardada","Blancas","Negras","Blancas","Negras","Partida guardada","Blancas","Negras","Blancas","Negras","Blancas","Negras","Algebraica","Numérica"]
[1,null,null,{"$f":"Numéricas!$A11","v":""},{"$f":"IF(ISNUMBER(--LEFT($D3)),LEFT(SUBSTITUTE($D3,$A3&\". \",\"\"),FIND(\" \",SUBSTITUTE($D3,$A3&\". \",\"\")&\" \")-1),\"\")","v":""},{"$f":"IF(ISNUMBER(--LEFT($D3)),TRIM(SUBSTITUTE($D3,$A3&\". \" & $E3,\"\")),\"\")","v":""},null,null,{"$f":"Partidas!$A11","v":""},{"$f":"IF(ISNUMBER(--LEFT($I3)),LEFT(SUBSTITUTE($I3,$A3&\". \",\"\"),FIND(\" \",SUBSTITUTE($I3,$A3&\". \",\"\")&\" \")-1),\"\")","v":""},{"$f":"IF(ISNUMBER(--LEFT($I3)),TRIM(SUBSTITUTE($I3,$A3&\". \" & $J3,\"\")),\"\")","v":""},{"$f":"IF(OR(Valor_Modo=\"Visor\",J3=\"\",G3=\"\",G3=IFERROR(LEFT(J3,FIND(\" \",J3)-1),J3)),\"\",IF(LEFT(G3)&RIGHT(G3,LEN(G3)-2)=J3,\"NOTA\",IF(AND(RIGHT(G3)=\"+\",RIGHT(J3)=\"#\"),\"NOTA\",\"ERROR\")))","v":""},{"$f":"IF(OR(Valor_Modo=\"Visor\",K3=\"\",H3=\"\",H3=IFERROR(LEFT(K3,FIND(\" \",K3)-1),K3)),\"\",IF(LEFT(H3)&RIGHT(H3,LEN(H3)-2)=K3,\"NOTA\",IF(AND(RIGHT(H3)=\"+\",RIGHT(K3)=\"#\"),\"NOTA\",\"ERROR\")))","v":""},{"$f":"IF(AND($A3=INT((miPiezaMovimiento+2)/4),MOD(miPiezaMovimiento,4)>1),\"M\",\"\")","v":""},{"$f":"IF(AND($A3=INT((miPiezaMovimiento+2)/4),MOD(miPiezaMovimiento,4)<2),\"M\",\"\")","v":""},{"$f":"IF(G3=\"\",\"\",$A3&\". \"&G3&\" \"&H3)","v":""},{"$f":"IF(B3=\"\",\"\",$A3&\". \"&B3&\" \"&C3)","v":""}]
[2,null,null,{"$f":"Numéricas!$A12","v":""},"","",null,null,{"$f":"Partidas!$A12","v":""},"","","","","","",{"$f":"IF(G4=\"\",\"\",$A4&\". \"&G4&\" \"&H4)","v":""},{"$f":"IF(B4=\"\",\"\",$A4&\". \"&B4&\" \"&C4)","v":""}]
[3,null,null,{"$f":"Numéricas!$A13","v":""},"","",null,null,{"$f":"Partidas!$A13","v":""},"","","","","","","",""]
[4,null,null,{"$f":"Numéricas!$A14","v":""},"","",null,null,{"$f":"Partidas!$A14","v":""},"","","","","","","",""]
[5,null,null,{"$f":"Numéricas!$A15","v":""},"","",null,null,{"$f":"Partidas!$A15","v":""},"","","","","","","",""]
[6,null,null,{"$f":"Numéricas!$A16","v":""},"","",null,null,{"$f":"Partidas!$A16","v":""},"","","","","","","",""]
[7,null,null,{"$f":"Numéricas!$A17","v":""},"","",null,null,{"$f":"Partidas!$A17","v":""},"","","","","","","",""]
[8,null,null,{"$f":"Numéricas!$A18","v":""},"","",null,null,{"$f":"Partidas!$A18","v":""},"","","","","","","",""]
[9,null,null,{"$f":"Numéricas!$A19","v":""},"","",null,null,{"$f":"Partidas!$A19","v":""},"","","","","","","",""]
[10,null,null,{"$f":"Numéricas!$A20","v":""},"","",null,null,{"$f":"Partidas!$A20","v":""},"","","","","","","",""]
[11,null,null,{"$f":"Numéricas!$A21","v":""},"","",null,null,{"$f":"Partidas!$A21","v":""},"","","","","","","",""]
[12,null,null,{"$f":"Numéricas!$A22","v":""},"","",null,null,{"$f":"Partidas!$A22","v":""},"","","","","","","",""]
[13,null,null,{"$f":"Numéricas!$A23","v":""},"","",null,null,{"$f":"Partidas!$A23","v":""},"","","","","","","",""]
[14,null,null,{"$f":"Numéricas!$A24","v":""},"","",null,null,{"$f":"Partidas!$A24","v":""},"","","","","","","",""]
[15,null,null,{"$f":"Numéricas!$A25","v":""},"","",null,null,{"$f":"Partidas!$A25","v":""},"","","","","","","",""]
[16,null,null,{"$f":"Numéricas!$A26","v":""},"","",null,null,{"$f":"Partidas!$A26","v":""},"","","","","","","",""]
[17,null,null,{"$f":"Numéricas!$A27","v":""},"","",null,null,{"$f":"Partidas!$A27","v":""},"","","","","","","",""]
[18,null,null,{"$f":"Numéricas!$A28","v":""},"","",null,null,{"$f":"Partidas!$A28","v":""},"","","","","","","",""]
[19,null,null,{"$f":"Numéricas!$A29","v":""},"","",null,null,{"$f":"Partidas!$A29","v":""},"","","","","","","",""]
[20,null,null,{"$f":"Numéricas!$A30","v":""},"","",null,null,{"$f":"Partidas!$A30","v":""},"","","","","","","",""]
[21,null,null,{"$f":"Numéricas!$A31","v":""},"","",null,null,{"$f":"Partidas!$A31","v":""},"","","","","","","",""]
[22,null,null,{"$f":"Numéricas!$A32","v":""},"","",null,null,{"$f":"Partidas!$A32","v":""},"","","","","","","",""]
[23,null,null,{"$f":"Numéricas!$A33","v":""},"","",null,null,{"$f":"Partidas!$A33","v":""},"","","","","","","",""]
[24,null,null,{"$f":"Numéricas!$A34","v":""},"","",null,null,{"$f":"Partidas!$A34","v":""},"","","","","","","",""]
[25,null,null,{"$f":"Numéricas!$A35","v":""},"","",null,null,{"$f":"Partidas!$A35","v":""},"","","","","","","",""]
[26,null,null,{"$f":"Numéricas!$A36","v":""},"","",null,null,{"$f":"Partidas!$A36","v":""},"","","","","","","",""]
[27,null,null,{"$f":"Numéricas!$A37","v":""},"","",null,null,{"$f":"Partidas!$A37","v":""},"","","","","","","",""]
[28,null,null,{"$f":"Numéricas!$A38","v":""},"","",null,null,{"$f":"Partidas!$A38","v":""},"","","","","","","",""]
[29,null,null,{"$f":"Numéricas!$A39","v":""},"","",null,null,{"$f":"Partidas!$A39","v":""},"","","","","","","",""]
[30,null,null,{"$f":"Numéricas!$A40","v":""},"","",null,null,{"$f":"Partidas!$A40","v":""},"","","","","","","",""]
[31,null,null,{"$f":"Numéricas!$A41","v":""},"","",null,null,{"$f":"Partidas!$A41","v":""},"","","","","","","",""]
[32,null,null,{"$f":"Numéricas!$A42","v":""},"","",null,null,{"$f":"Partidas!$A42","v":""},"","","","","","","",""]
[33,null,null,{"$f":"Numéricas!$A43","v":""},{"$f":"IF(ISNUMBER(--LEFT($D35)),LEFT(SUBSTITUTE($D35,$A35&\". \",\"\"),FIND(\" \",SUBSTITUTE($D35,$A35&\". \",\"\")&\" \")-1),\"\")","v":""},{"$f":"IF(ISNUMBER(--LEFT($D35)),TRIM(SUBSTITUTE($D35,$A35&\". \" & $E35,\"\")),\"\")","v":""},null,null,{"$f":"Partidas!$A43","v":""},{"$f":"IF(ISNUMBER(--LEFT($I35)),LEFT(SUBSTITUTE($I35,$A35&\". \",\"\"),FIND(\" \",SUBSTITUTE($I35,$A35&\". \",\"\")&\" \")-1),\"\")","v":""},{"$f":"IF(ISNUMBER(--LEFT($I35)),TRIM(SUBSTITUTE($I35,$A35&\". \" & $J35,\"\")),\"\")","v":""},{"$f":"IF(OR(Valor_Modo=\"Visor\",J35=\"\",G35=\"\",G35=IFERROR(LEFT(J35,FIND(\" \",J35)-1),J35)),\"\",IF(LEFT(G35)&RIGHT(G35,LEN(G35)-2)=J35,\"NOTA\",IF(AND(RIGHT(G35)=\"+\",RIGHT(J35)=\"#\"),\"NOTA\",\"ERROR\")))","v":""},{"$f":"IF(OR(Valor_Modo=\"Visor\",K35=\"\",H35=\"\",H35=IFERROR(LEFT(K35,FIND(\" \",K35)-1),K35)),\"\",IF(LEFT(H35)&RIGHT(H35,LEN(H35)-2)=K35,\"NOTA\",IF(AND(RIGHT(H35)=\"+\",RIGHT(K35)=\"#\"),\"NOTA\",\"ERROR\")))","v":""},{"$f":"IF(AND($A35=INT((miPiezaMovimiento+2)/4),MOD(miPiezaMovimiento,4)>1),\"M\",\"\")","v":""},{"$f":"IF(AND($A35=INT((miPiezaMovimiento+2)/4),MOD(miPiezaMovimiento,4)<2),\"M\",\"\")","v":""},"",""]
[34,null,null,{"$f":"Numéricas!$A44","v":""},"","",null,null,{"$f":"Partidas!$A44","v":""},"","","","","","","",""]
[35,null,null,{"$f":"Numéricas!$A45","v":""},"","",null,null,{"$f":"Partidas!$A45","v":""},"","","","","","","",""]
[36,null,null,{"$f":"Numéricas!$A46","v":""},"","",null,null,{"$f":"Partidas!$A46","v":""},"","","","","","","",""]
[37,null,null,{"$f":"Numéricas!$A47","v":""},"","",null,null,{"$f":"Partidas!$A47","v":""},"","","","","","","",""]
[38,null,null,{"$f":"Numéricas!$A48","v":""},"","",null,null,{"$f":"Partidas!$A48","v":""},"","","","","","","",""]
[39,null,null,{"$f":"Numéricas!$A49","v":""},"","",null,null,{"$f":"Partidas!$A49","v":""},"","","","","","","",""]
[40,null,null,{"$f":"Numéricas!$A50","v":""},"","",null,null,{"$f":"Partidas!$A50","v":""},"","","","","","","",""]
[41,null,null,{"$f":"Numéricas!$A51","v":""},"","",null,null,{"$f":"Partidas!$A51","v":""},"","","","","","","",""]
[42,null,null,{"$f":"Numéricas!$A52","v":""},"","",null,null,{"$f":"Partidas!$A52","v":""},"","","","","","","",""]
[43,null,null,{"$f":"Numéricas!$A53","v":""},"","",null,null,{"$f":"Partidas!$A53","v":""},"","","","","","","",""]
[44,null,null,{"$f":"Numéricas!$A54","v":""},"","",null,null,{"$f":"Partidas!$A54","v":""},"","","","","","","",""]
[45,null,null,{"$f":"Numéricas!$A55","v":""},"","",null,null,{"$f":"Partidas!$A55","v":""},"","","","","","","",""]
[46,null,null,{"$f":"Numéricas!$A56","v":""},"","",null,null,{"$f":"Partidas!$A56","v":""},"","","","","","","",""]
[47,null,null,{"$f":"Numéricas!$A57","v":""},"","",null,null,{"$f":"Partidas!$A57","v":""},"","","","","","","",""]
[48,null,null,{"$f":"Numéricas!$A58","v":""},"","",null,null,{"$f":"Partidas!$A58","v":""},"","","","","","","",""]
[49,null,null,{"$f":"Numéricas!$A59","v":""},"","",null,null,{"$f":"Partidas!$A59","v":""},"","","","","","","",""]
[50,null,null,{"$f":"Numéricas!$A60","v":""},"","",null,null,{"$f":"Partidas!$A60","v":""},"","","","","","","",""]
[51,null,null,{"$f":"Numéricas!$A61","v":""},"","",null,null,{"$f":"Partidas!$A61","v":""},"","","","","","","",""]
[52,null,null,{"$f":"Numéricas!$A62","v":""},"","",null,null,{"$f":"Partidas!$A62","v":""},"","","","","","","",""]
[53,null,null,{"$f":"Numéricas!$A63","v":""},"","",null,null,{"$f":"Partidas!$A63","v":""},"","","","","","","",""]
[54,null,null,{"$f":"Numéricas!$A64","v":""},"","",null,null,{"$f":"Partidas!$A64","v":""},"","","","","","","",""]
[55,null,null,{"$f":"Numéricas!$A65","v":""},"","",null,null,{"$f":"Partidas!$A65","v":""},"","","","","","","",""]
[56,null,null,{"$f":"Numéricas!$A66","v":""},"","",null,null,{"$f":"Partidas!$A66","v":""},"","","","","","","",""]
[57,null,null,{"$f":"Numéricas!$A67","v":""},"","",null,null,{"$f":"Partidas!$A67","v":""},"","","","","","","",""]
[58,null,null,{"$f":"Numéricas!$A68","v":""},"","",null,null,{"$f":"Partidas!$A68","v":""},"","","","","","","",""]
[59,null,null,{"$f":"Numéricas!$A69","v":""},"","",null,null,{"$f":"Partidas!$A69","v":""},"","","","","","","",""]
[60,null,null,{"$f":"Numéricas!$A70","v":""},"","",null,null,{"$f":"Partidas!$A70","v":""},"","","","","","","",""]
[61,null,null,{"$f":"Numéricas!$A71","v":""},"","",null,null,{"$f":"Partidas!$A71","v":""},"","","","","","","",""]
[62,null,null,{"$f":"Numéricas!$A72","v":""},"","",null,null,{"$f":"Partidas!$A72","v":""},"","","","","","","",""]
[63,null,null,{"$f":"Numéricas!$A73","v":""},"","",null,null,{"$f":"Partidas!$A73","v":""},"","","","","","","",""]
[64,null,null,{"$f":"Numéricas!$A74","v":""},"","",null,null,{"$f":"Partidas!$A74","v":""},"","","","","","","",""]
[65,null,null,{"$f":"Numéricas!$A75","v":""},{"$f":"IF(ISNUMBER(--LEFT($D67)),LEFT(SUBSTITUTE($D67,$A67&\". \",\"\"),FIND(\" \",SUBSTITUTE($D67,$A67&\". \",\"\")&\" \")-1),\"\")","v":""},{"$f":"IF(ISNUMBER(--LEFT($D67)),TRIM(SUBSTITUTE($D67,$A67&\". \" & $E67,\"\")),\"\")","v":""},null,null,{"$f":"Partidas!$A75","v":""},{"$f":"IF(ISNUMBER(--LEFT($I67)),LEFT(SUBSTITUTE($I67,$A67&\". \",\"\"),FIND(\" \",SUBSTITUTE($I67,$A67&\". \",\"\")&\" \")-1),\"\")","v":""},"",{"$f":"IF(OR(Valor_Modo=\"Visor\",J67=\"\",G67=\"\",G67=IFERROR(LEFT(J67,FIND(\" \",J67)-1),J67)),\"\",IF(LEFT(G67)&RIGHT(G67,LEN(G67)-2)=J67,\"NOTA\",IF(AND(RIGHT(G67)=\"+\",RIGHT(J67)=\"#\"),\"NOTA\",\"ERROR\")))","v":""},{"$f":"IF(OR(Valor_Modo=\"Visor\",K67=\"\",H67=\"\",H67=IFERROR(LEFT(K67,FIND(\" \",K67)-1),K67)),\"\",IF(LEFT(H67)&RIGHT(H67,LEN(H67)-2)=K67,\"NOTA\",IF(AND(RIGHT(H67)=\"+\",RIGHT(K67)=\"#\"),\"NOTA\",\"ERROR\")))","v":""},{"$f":"IF(AND($A67=INT((miPiezaMovimiento+2)/4),MOD(miPiezaMovimiento,4)>1),\"M\",\"\")","v":""},{"$f":"IF(AND($A67=INT((miPiezaMovimiento+2)/4),MOD(miPiezaMovimiento,4)<2),\"M\",\"\")","v":""},"",""]
[66,null,null,{"$f":"Numéricas!$A76","v":""},"","",null,null,{"$f":"Partidas!$A76","v":""},"","","","","","",{"$f":"IF(G68=\"\",\"\",$A68&\". \"&G68&\" \"&H68)","v":""},{"$f":"IF(B68=\"\",\"\",$A68&\". \"&B68&\" \"&C68)","v":""}]
[67,null,null,{"$f":"Numéricas!$A77","v":""},"","",null,null,{"$f":"Partidas!$A77","v":""},"","","","","","","",""]
[68,null,null,{"$f":"Numéricas!$A78","v":""},"","",null,null,{"$f":"Partidas!$A78","v":""},"","","","","","","",""]
[69,null,null,{"$f":"Numéricas!$A79","v":""},"","",null,null,{"$f":"Partidas!$A79","v":""},"","","","","","","",""]
[70,null,null,{"$f":"Numéricas!$A80","v":""},"","",null,null,{"$f":"Partidas!$A80","v":""},"","","","","","","",""]
[71,null,null,{"$f":"Numéricas!$A81","v":""},"","",null,null,{"$f":"Partidas!$A81","v":""},"","","","","","","",""]
[72,null,null,{"$f":"Numéricas!$A82","v":""},"","",null,null,{"$f":"Partidas!$A82","v":""},"","","","","","","",""]
[73,null,null,{"$f":"Numéricas!$A83","v":""},"","",null,null,{"$f":"Partidas!$A83","v":""},"","","","","","","",""]
[74,null,null,{"$f":"Numéricas!$A84","v":""},"","",null,null,{"$f":"Partidas!$A84","v":""},"","","","","","","",""]
[75,null,null,{"$f":"Numéricas!$A85","v":""},"","",null,null,{"$f":"Partidas!$A85","v":""},"","","","","","","",""]
[76,null,null,{"$f":"Numéricas!$A86","v":""},"","",null,null,{"$f":"Partidas!$A86","v":""},"","","","","","","",""]
[77,null,null,{"$f":"Numéricas!$A87","v":""},"","",null,null,{"$f":"Partidas!$A87","v":""},"","","","","","","",""]
[78,null,null,{"$f":"Numéricas!$A88","v":""},"","",null,null,{"$f":"Partidas!$A88","v":""},"","","","","","","",""]
[79,null,null,{"$f":"Numéricas!$A89","v":""},"","",null,null,{"$f":"Partidas!$A89","v":""},"","","","","","","",""]
[80,null,null,{"$f":"Numéricas!$A90","v":""},"","",null,null,{"$f":"Partidas!$A90","v":""},"","","","","","","",""]
[81,null,null,{"$f":"Numéricas!$A91","v":""},"","",null,null,{"$f":"Partidas!$A91","v":""},"","","","","","","",""]
[82,null,null,{"$f":"Numéricas!$A92","v":""},"","",null,null,{"$f":"Partidas!$A92","v":""},"","","","","","","",""]
[83,null,null,{"$f":"Numéricas!$A93","v":""},"","",null,null,{"$f":"Partidas!$A93","v":""},"","","","","","","",""]
[84,null,null,{"$f":"Numéricas!$A94","v":""},"","",null,null,{"$f":"Partidas!$A94","v":""},"","","","","","","",""]
[85,null,null,{"$f":"Numéricas!$A95","v":""},"","",null,null,{"$f":"Partidas!$A95","v":""},"","","","","","","",""]
[86,null,null,{"$f":"Numéricas!$A96","v":""},"","",null,null,{"$f":"Partidas!$A96","v":""},"","","","","","","",""]
[87,null,null,{"$f":"Numéricas!$A97","v":""},"","",null,null,{"$f":"Partidas!$A97","v":""},"","","","","","","",""]
[88,null,null,{"$f":"Numéricas!$A98","v":""},"","",null,null,{"$f":"Partidas!$A98","v":""},"","","","","","","",""]
[89,null,null,{"$f":"Numéricas!$A99","v":""},"","",null,null,{"$f":"Partidas!$A99","v":""},"","","","","","","",""]
[90,null,null,{"$f":"Numéricas!$A100","v":""},"","",null,null,{"$f":"Partidas!$A100","v":""},"","","","","","","",""]
[91,null,null,{"$f":"Numéricas!$A101","v":""},"","",null,null,{"$f":"Partidas!$A101","v":""},"","","","","","","",""]
[92,null,null,{"$f":"Numéricas!$A102","v":""},"","",null,null,{"$f":"Partidas!$A102","v":""},"","","","","","","",""]
[93,null,null,{"$f":"Numéricas!$A103","v":""},"","",null,null,{"$f":"Partidas!$A103","v":""},"","","","","","","",""]
[94,null,null,{"$f":"Numéricas!$A104","v":""},"","",null,null,{"$f":"Partidas!$A104","v":""},"","","","","","","",""]
[95,null,null,{"$f":"Numéricas!$A105","v":""},"","",null,null,{"$f":"Partidas!$A105","v":""},"","","","","","","",""]
[96,null,null,{"$f":"Numéricas!$A106","v":""},"","",null,null,{"$f":"Partidas!$A106","v":""},"","","","","","","",""]
[97,null,null,{"$f":"Numéricas!$A107","v":""},"","",null,null,{"$f":"Partidas!$A107","v":""},"",{"$f":"IF(ISNUMBER(--LEFT($I99)),TRIM(SUBSTITUTE($I99,$A99&\". \" & $J99,\"\")),\"\")","v":""},"","","","","",""]
[98,null,null,{"$f":"Numéricas!$A108","v":""},"","",null,null,{"$f":"Partidas!$A108","v":""},"","","","","","","",""]
[99,null,null,{"$f":"Numéricas!$A109","v":""},"","",null,null,{"$f":"Partidas!$A109","v":""},"","","","","","","",""]
[100,null,null,{"$f":"Numéricas!$A110","v":""},"","",null,null,{"$f":"Partidas!$A110","v":""},"","","","","","","",""]

{"sheet":"Series","index":2,"n_rows":84,"n_cols":96,"rows_kept":84,"cut":false,"hidden":false,"merged":[[14,42,14,43],[17,6,17,12],[16,6,16,12],[15,6,15,12],[13,6,13,12],[14,6,14,12]]}
[]
[]
[null,null,null,"Tablero de ajedrez - Gráfico de columnas apiladas",null,null,null,null,null,null,null,null,null,null,null,null,null,null,null,null,null,null,null,null,null,null,null,null,null,null,null,null,null,null,null,null,null,null,null,null,null,null,null,null,"Piezas blancas - Gráfico de líneas con marcadores pero sin líneas",null,null,null,null,null,null,null,null,null,null,null,null,null,null,null,"Piezas negras - Gráfico de líneas con marcadores pero sin líneas",null,null,null,null,null,null,null,null,null,null,null,null,null,null,null,"Mover piezas blancas - Gráfico de dispersión",null,null,null,null,null,"Mover piezas negras - Gráfico de dispersión",null,null,null,null,null,"Marcas en el tablero - Gráfico de dispersión"]
[null,null,null,"Eje X","Serie1a","Serie1b","Serie10","Serie11","Serie12","Serie2a","Serie2b","Serie20","Serie21","Serie22","Serie3a","Serie3b","Serie30","Serie31","Serie32","Serie4a","Serie4b","Serie40","Serie41","Serie42","Serie5a","Serie5b","Serie50","Serie51","Serie52","Serie6a","Serie6b","Serie60","Serie61","Serie62","Serie7a","Serie7b","Serie70","Serie71","Serie72","Serie8a","Serie8b","Serie80","Serie81","Serie82","Ab1","Ab2","Rb","Cb1","Cb2","Db","Tb1","Tb2","Pb1","Pb2","Pb3","Pb4","Pb5","Pb6","Pb7","Pb8","An1","An2","Rn","Cn1","Cn2","Dn","Tn1","Tn2","Pn1","Pn2","Pn3","Pn4","Pn5","Pn6","Pn7","Pn8","MoverPb","MoverAb","MoverTb","MoverCb","MoverDb","MoverRb","MoverPn","MoverAn","MoverTn","MoverCn","MoverDn","MoverRn","Fila1","Fila2","Fila3","Fila4","Fila5","Fila6","Fila7","Fila8"]
[null,null,1,{"$f":"CHOOSE(Tipo_Notación,CHAR(96+C5),C5)","v":1},{"$f":"IF(AND(E$4=aSerie,$C5=aCol),1,0)","v":0},{"$f":"IF(AND(F$4=bSerie,$C5=bCol),1,0)","v":0},0,{"$f":"--(Tipo_Tablero=1)*(1-E5-F5-G5)","v":0},{"$f":"--(Tipo_Tablero=2)*(1-E5-F5-G5)","v":1},{"$f":"IF(AND(J$4=aSerie,$C5=aCol),1,0)","v":0},{"$f":"IF(AND(K$4=bSerie,$C5=bCol),1,0)","v":0},{"$f":"1-J5-K5","v":1},{"$f":"--(Tipo_Tablero=1)*(1-J5-K5-L5)","v":0},{"$f":"--(Tipo_Tablero=2)*(1-J5-K5-L5)","v":0},{"$f":"IF(AND(O$4=aSerie,$C5=aCol),1,0)","v":0},{"$f":"IF(AND(P$4=bSerie,$C5=bCol),1,0)","v":0},0,{"$f":"--(Tipo_Tablero=1)*(1-O5-P5-Q5)","v":0},{"$f":"--(Tipo_Tablero=2)*(1-O5-P5-Q5)","v":1},{"$f":"IF(AND(T$4=aSerie,$C5=aCol),1,0)","v":0},{"$f":"IF(AND(U$4=bSerie,$C5=bCol),1,0)","v":0},{"$f":"1-T5-U5","v":1},{"$f":"--(Tipo_Tablero=1)*(1-T5-U5-V5)","v":0},{"$f":"--(Tipo_Tablero=2)*(1-T5-U5-V5)","v":0},{"$f":"IF(AND(Y$4=aSerie,$C5=aCol),1,0)","v":0},{"$f":"IF(AND(Z$4=bSerie,$C5=bCol),1,0)","v":0},0,{"$f":"--(Tipo_Tablero=1)*(1-Y5-Z5-AA5)","v":0},{"$f":"--(Tipo_Tablero=2)*(1-Y5-Z5-AA5)","v":1},{"$f":"IF(AND(AD$4=aSerie,$C5=aCol),1,0)","v":0},{"$f":"IF(AND(AE$4=bSerie,$C5=bCol),1,0)","v":0},{"$f":"1-AD5-AE5","v":1},{"$f":"--(Tipo_Tablero=1)*(1-AD5-AE5-AF5)","v":0},{"$f":"--(Tipo_Tablero=2)*(1-AD5-AE5-AF5)","v":0},{"$f":"IF(AND(AI$4=aSerie,$C5=aCol),1,0)","v":0},{"$f":"IF(AND(AJ$4=bSerie,$C5=bCol),1,0)","v":0},0,{"$f":"--(Tipo_Tablero=1)*(1-AI5-AJ5-AK5)","v":0},{"$f":"--(Tipo_Tablero=2)*(1-AI5-AJ5-AK5)","v":1},{"$f":"IF(AND(AN$4=aSerie,$C5=aCol),1,0)","v":0},{"$f":"IF(AND(AO$4=bSerie,$C5=bCol),1,0)","v":0},{"$f":"1-AN5-AO5","v":1},{"$f":"--(Tipo_Tablero=1)*(1-AN5-AO5-AP5)","v":0},{"$f":"--(Tipo_Tablero=2)*(1-AN5-AO5-AP5)","v":0},{"$f":"IF($C5=INT(AS$14/10),MOD(AS$14,10)-0.5,NA())","v":{"$error":"#N/A"}},{"$error":"#N/A"},{"$error":"#N/A"},{"$error":"#N/A"},{"$error":"#N/A"},{"$error":"#N/A"},{"$error":"#N/A"},{"$error":"#N/A"},{"$error":"#N/A"},{"$error":"#N/A"},{"$error":"#N/A"},{"$error":"#N/A"},{"$error":"#N/A"},{"$error":"#N/A"},{"$error":"#N/A"},{"$error":"#N/A"},{"$f":"IF($C5=INT(BI$14/10),MOD(BI$14,10)-0.5,NA())","v":{"$error":"#N/A"}},{"$error":"#N/A"},{"$error":"#N/A"},{"$error":"#N/A"},{"$error":"#N/A"},{"$error":"#N/A"},{"$error":"#N/A"},{"$error":"#N/A"},{"$error":"#N/A"},{"$error":"#N/A"},{"$error":"#N/A"},{"$error":"#N/A"},{"$error":"#N/A"},{"$error":"#N/A"},{"$error":"#N/A"},{"$error":"#N/A"},{"$f":"IF(AND(miPosPieza=BY$4,miPosB>0,Valor_Moviendo=1),miPosX,0.1)","v":0.1},0.1,0.1,0.1,0.1,0.1,0.1,0.1,0.1,0.1,0.1,0.1,{"$f":"IF(AND(Tipo_MovVálido=1,miPosB=0,MATCH((10*$C5+CK$13)&\"\",misMarcas,0)>0),CK$13-0.5,NA())","v":{"$error":"#N/A"}},{"$f":"IF(AND(Tipo_MovVálido=1,miPosB=0,MATCH((10*$C5+CL$13)&\"\",misMarcas,0)>0),CL$13-0.5,NA())","v":{"$error":"#N/A"}},{"$f":"IF(AND(Tipo_MovVálido=1,miPosB=0,MATCH((10*$C5+CM$13)&\"\",misMarcas,0)>0),CM$13-0.5,NA())","v":{"$error":"#N/A"}},{"$f":"IF(AND(Tipo_MovVálido=1,miPosB=0,MATCH((10*$C5+CN$13)&\"\",misMarcas,0)>0),CN$13-0.5,NA())","v":{"$error":"#N/A"}},{"$f":"IF(AND(Tipo_MovVálido=1,miPosB=0,MATCH((10*$C5+CO$13)&\"\",misMarcas,0)>0),CO$13-0.5,NA())","v":{"$error":"#N/A"}},{"$f":"IF(AND(Tipo_MovVálido=1,miPosB=0,MATCH((10*$C5+CP$13)&\"\",misMarcas,0)>0),CP$13-0.5,NA())","v":{"$error":"#N/A"}},{"$f":"IF(AND(Tipo_MovVálido=1,miPosB=0,MATCH((10*$C5+CQ$13)&\"\",misMarcas,0)>0),CQ$13-0.5,NA())","v":{"$error":"#N/A"}},{"$f":"IF(AND(Tipo_MovVálido=1,miPosB=0,MATCH((10*$C5+CR$13)&\"\",misMarcas,0)>0),CR$13-0.5,NA())","v":{"$error":"#N/A"}}]
[null,null,2,2,0,{"$f":"IF(AND(F$4=bSerie,$C6=bCol),1,0)","v":0},{"$f":"1-E6-F6","v":1},0,0,0,{"$f":"IF(AND(K$4=bSerie,$C6=bCol),1,0)","v":0},0,0,1,0,{"$f":"IF(AND(P$4=bSerie,$C6=bCol),1,0)","v":0},{"$f":"1-O6-P6","v":1},0,0,0,{"$f":"IF(AND(U$4=bSerie,$C6=bCol),1,0)","v":0},0,0,1,0,{"$f":"IF(AND(Z$4=bSerie,$C6=bCol),1,0)","v":0},{"$f":"1-Y6-Z6","v":1},0,0,0,{"$f":"IF(AND(AE$4=bSerie,$C6=bCol),1,0)","v":0},0,0,1,0,{"$f":"IF(AND(AJ$4=bSerie,$C6=bCol),1,0)","v":0},{"$f":"1-AI6-AJ6","v":1},0,0,0,{"$f":"IF(AND(AO$4=bSerie,$C6=bCol),1,0)","v":0},0,0,1,{"$error":"#N/A"},{"$error":"#N/A"},{"$error":"#N/A"},{"$error":"#N/A"},{"$error":"#N/A"},{"$error":"#N/A"},{"$error":"#N/A"},{"$error":"#N/A"},{"$error":"#N/A"},{"$error":"#N/A"},{"$error":"#N/A"},{"$error":"#N/A"},{"$error":"#N/A"},{"$error":"#N/A"},{"$error":"#N/A"},{"$error":"#N/A"},{"$error":"#N/A"},{"$error":"#N/A"},{"$error":"#N/A"},{"$error":"#N/A"},{"$error":"#N/A"},{"$error":"#N/A"},{"$error":"#N/A"},{"$error":"#N/A"},{"$error":"#N/A"},{"$error":"#N/A"},{"$error":"#N/A"},{"$error":"#N/A"},{"$error":"#N/A"},{"$error":"#N/A"},{"$error":"#N/A"},{"$error":"#N/A"},{"$f":"IF(AND(miPosPieza=BY$4,miPosB>0,Valor_Moviendo=1),miPosY,0.1)","v":0.1},0.1,0.1,0.1,0.1,0.1,0.1,0.1,0.1,0.1,0.1,0.1,{"$f":"IF(AND(Tipo_MovVálido=1,miPosB=0,MATCH((10*$C6+CK$13)&\"\",misMarcas,0)>0),CK$13-0.5,NA())","v":{"$error":"#N/A"}},{"$f":"IF(AND(Tipo_MovVálido=1,miPosB=0,MATCH((10*$C6+CL$13)&\"\",misMarcas,0)>0),CL$13-0.5,NA())","v":{"$error":"#N/A"}},{"$f":"IF(AND(Tipo_MovVálido=1,miPosB=0,MATCH((10*$C6+CM$13)&\"\",misMarcas,0)>0),CM$13-0.5,NA())","v":{"$error":"#N/A"}},{"$f":"IF(AND(Tipo_MovVálido=1,miPosB=0,MATCH((10*$C6+CN$13)&\"\",misMarcas,0)>0),CN$13-0.5,NA())","v":{"$error":"#N/A"}},{"$f":"IF(AND(Tipo_MovVálido=1,miPosB=0,MATCH((10*$C6+CO$13)&\"\",misMarcas,0)>0),CO$13-0.5,NA())","v":{"$error":"#N/A"}},{"$f":"IF(AND(Tipo_MovVálido=1,miPosB=0,MATCH((10*$C6+CP$13)&\"\",misMarcas,0)>0),CP$13-0.5,NA())","v":{"$error":"#N/A"}},{"$f":"IF(AND(Tipo_MovVálido=1,miPosB=0,MATCH((10*$C6+CQ$13)&\"\",misMarcas,0)>0),CQ$13-0.5,NA())","v":{"$error":"#N/A"}},{"$f":"IF(AND(Tipo_MovVálido=1,miPosB=0,MATCH((10*$C6+CR$13)&\"\",misMarcas,0)>0),CR$13-0.5,NA())","v":{"$error":"#N/A"}}]
[null,null,3,3,0,{"$f":"IF(AND(F$4=bSerie,$C7=bCol),1,0)","v":0},0,0,1,0,{"$f":"IF(AND(K$4=bSerie,$C7=bCol),1,0)","v":0},{"$f":"1-J7-K7","v":1},0,0,0,{"$f":"IF(AND(P$4=bSerie,$C7=bCol),1,0)","v":0},0,0,1,0,{"$f":"IF(AND(U$4=bSerie,$C7=bCol),1,0)","v":0},{"$f":"1-T7-U7","v":1},0,0,0,{"$f":"IF(AND(Z$4=bSerie,$C7=bCol),1,0)","v":0},0,0,1,0,{"$f":"IF(AND(AE$4=bSerie,$C7=bCol),1,0)","v":0},{"$f":"1-AD7-AE7","v":1},0,0,0,{"$f":"IF(AND(AJ$4=bSerie,$C7=bCol),1,0)","v":0},0,0,1,0,{"$f":"IF(AND(AO$4=bSerie,$C7=bCol),1,0)","v":0},{"$f":"1-AN7-AO7","v":1},0,0,{"$error":"#N/A"},{"$error":"#N/A"},{"$error":"#N/A"},{"$error":"#N/A"},{"$error":"#N/A"},{"$error":"#N/A"},{"$error":"#N/A"},{"$error":"#N/A"},{"$error":"#N/A"},{"$error":"#N/A"},{"$error":"#N/A"},{"$error":"#N/A"},{"$error":"#N/A"},{"$error":"#N/A"},{"$error":"#N/A"},{"$error":"#N/A"},{"$error":"#N/A"},{"$error":"#N/A"},{"$error":"#N/A"},{"$error":"#N/A"},{"$error":"#N/A"},{"$error":"#N/A"},{"$error":"#N/A"},{"$error":"#N/A"},{"$error":"#N/A"},{"$error":"#N/A"},{"$error":"#N/A"},{"$error":"#N/A"},{"$error":"#N/A"},{"$error":"#N/A"},{"$error":"#N/A"},{"$error":"#N/A"},null,null,null,null,null,null,null,null,null,null,null,null,{"$f":"IF(AND(Tipo_MovVálido=1,miPosB=0,MATCH((10*$C7+CK$13)&\"\",misMarcas,0)>0),CK$13-0.5,NA())","v":{"$error":"#N/A"}},{"$f":"IF(AND(Tipo_MovVálido=1,miPosB=0,MATCH((10*$C7+CL$13)&\"\",misMarcas,0)>0),CL$13-0.5,NA())","v":{"$error":"#N/A"}},{"$f":"IF(AND(Tipo_MovVálido=1,miPosB=0,MATCH((10*$C7+CM$13)&\"\",misMarcas,0)>0),CM$13-0.5,NA())","v":{"$error":"#N/A"}},{"$f":"IF(AND(Tipo_MovVálido=1,miPosB=0,MATCH((10*$C7+CN$13)&\"\",misMarcas,0)>0),CN$13-0.5,NA())","v":{"$error":"#N/A"}},{"$f":"IF(AND(Tipo_MovVálido=1,miPosB=0,MATCH((10*$C7+CO$13)&\"\",misMarcas,0)>0),CO$13-0.5,NA())","v":{"$error":"#N/A"}},{"$f":"IF(AND(Tipo_MovVálido=1,miPosB=0,MATCH((10*$C7+CP$13)&\"\",misMarcas,0)>0),CP$13-0.5,NA())","v":{"$error":"#N/A"}},{"$f":"IF(AND(Tipo_MovVálido=1,miPosB=0,MATCH((10*$C7+CQ$13)&\"\",misMarcas,0)>0),CQ$13-0.5,NA())","v":{"$error":"#N/A"}},{"$f":"IF(AND(Tipo_MovVálido=1,miPosB=0,MATCH((10*$C7+CR$13)&\"\",misMarcas,0)>0),CR$13-0.5,NA())","v":{"$error":"#N/A"}}]
[null,null,4,4,0,{"$f":"IF(AND(F$4=bSerie,$C8=bCol),1,0)","v":0},{"$f":"1-E8-F8","v":1},0,0,0,{"$f":"IF(AND(K$4=bSerie,$C8=bCol),1,0)","v":0},0,0,1,0,{"$f":"IF(AND(P$4=bSerie,$C8=bCol),1,0)","v":0},{"$f":"1-O8-P8","v":1},0,0,0,{"$f":"IF(AND(U$4=bSerie,$C8=bCol),1,0)","v":0},0,0,1,0,{"$f":"IF(AND(Z$4=bSerie,$C8=bCol),1,0)","v":0},{"$f":"1-Y8-Z8","v":1},0,0,0,{"$f":"IF(AND(AE$4=bSerie,$C8=bCol),1,0)","v":0},0,0,1,0,{"$f":"IF(AND(AJ$4=bSerie,$C8=bCol),1,0)","v":0},{"$f":"1-AI8-AJ8","v":1},0,0,0,{"$f":"IF(AND(AO$4=bSerie,$C8=bCol),1,0)","v":0},0,0,1,{"$error":"#N/A"},{"$error":"#N/A"},{"$error":"#N/A"},{"$error":"#N/A"},{"$error":"#N/A"},{"$error":"#N/A"},{"$error":"#N/A"},{"$error":"#N/A"},{"$error":"#N/A"},{"$error":"#N/A"},{"$error":"#N/A"},{"$error":"#N/A"},{"$error":"#N/A"},{"$error":"#N/A"},{"$error":"#N/A"},{"$error":"#N/A"},{"$error":"#N/A"},{"$error":"#N/A"},{"$error":"#N/A"},{"$error":"#N/A"},{"$error":"#N/A"},{"$error":"#N/A"},{"$error":"#N/A"},{"$error":"#N/A"},{"$error":"#N/A"},{"$error":"#N/A"},{"$error":"#N/A"},{"$error":"#N/A"},{"$error":"#N/A"},{"$error":"#N/A"},{"$error":"#N/A"},{"$error":"#N/A"},null,null,null,null,null,null,null,null,null,null,null,null,{"$f":"IF(AND(Tipo_MovVálido=1,miPosB=0,MATCH((10*$C8+CK$13)&\"\",misMarcas,0)>0),CK$13-0.5,NA())","v":{"$error":"#N/A"}},{"$f":"IF(AND(Tipo_MovVálido=1,miPosB=0,MATCH((10*$C8+CL$13)&\"\",misMarcas,0)>0),CL$13-0.5,NA())","v":{"$error":"#N/A"}},{"$f":"IF(AND(Tipo_MovVálido=1,miPosB=0,MATCH((10*$C8+CM$13)&\"\",misMarcas,0)>0),CM$13-0.5,NA())","v":{"$error":"#N/A"}},{"$f":"IF(AND(Tipo_MovVálido=1,miPosB=0,MATCH((10*$C8+CN$13)&\"\",misMarcas,0)>0),CN$13-0.5,NA())","v":{"$error":"#N/A"}},{"$f":"IF(AND(Tipo_MovVálido=1,miPosB=0,MATCH((10*$C8+CO$13)&\"\",misMarcas,0)>0),CO$13-0.5,NA())","v":{"$error":"#N/A"}},{"$f":"IF(AND(Tipo_MovVálido=1,miPosB=0,MATCH((10*$C8+CP$13)&\"\",misMarcas,0)>0),CP$13-0.5,NA())","v":{"$error":"#N/A"}},{"$f":"IF(AND(Tipo_MovVálido=1,miPosB=0,MATCH((10*$C8+CQ$13)&\"\",misMarcas,0)>0),CQ$13-0.5,NA())","v":{"$error":"#N/A"}},{"$f":"IF(AND(Tipo_MovVálido=1,miPosB=0,MATCH((10*$C8+CR$13)&\"\",misMarcas,0)>0),CR$13-0.5,NA())","v":{"$error":"#N/A"}}]
[null,null,5,5,0,{"$f":"IF(AND(F$4=bSerie,$C9=bCol),1,0)","v":0},0,0,1,0,{"$f":"IF(AND(K$4=bSerie,$C9=bCol),1,0)","v":0},{"$f":"1-J9-K9","v":1},0,0,0,{"$f":"IF(AND(P$4=bSerie,$C9=bCol),1,0)","v":0},0,0,1,0,{"$f":"IF(AND(U$4=bSerie,$C9=bCol),1,0)","v":0},{"$f":"1-T9-U9","v":1},0,0,0,{"$f":"IF(AND(Z$4=bSerie,$C9=bCol),1,0)","v":0},0,0,1,0,{"$f":"IF(AND(AE$4=bSerie,$C9=bCol),1,0)","v":0},{"$f":"1-AD9-AE9","v":1},0,0,0,{"$f":"IF(AND(AJ$4=bSerie,$C9=bCol),1,0)","v":0},0,0,1,0,{"$f":"IF(AND(AO$4=bSerie,$C9=bCol),1,0)","v":0},{"$f":"1-AN9-AO9","v":1},0,0,{"$error":"#N/A"},{"$error":"#N/A"},{"$error":"#N/A"},{"$error":"#N/A"},{"$error":"#N/A"},{"$error":"#N/A"},{"$error":"#N/A"},{"$error":"#N/A"},{"$error":"#N/A"},{"$error":"#N/A"},{"$error":"#N/A"},{"$error":"#N/A"},{"$error":"#N/A"},{"$error":"#N/A"},{"$error":"#N/A"},{"$error":"#N/A"},{"$error":"#N/A"},{"$error":"#N/A"},{"$error":"#N/A"},{"$error":"#N/A"},{"$error":"#N/A"},{"$error":"#N/A"},{"$error":"#N/A"},{"$error":"#N/A"},{"$error":"#N/A"},{"$error":"#N/A"},{"$error":"#N/A"},{"$error":"#N/A"},{"$error":"#N/A"},{"$error":"#N/A"},{"$error":"#N/A"},{"$error":"#N/A"},null,null,null,null,null,null,null,null,null,null,null,null,{"$f":"IF(AND(Tipo_MovVálido=1,miPosB=0,MATCH((10*$C9+CK$13)&\"\",misMarcas,0)>0),CK$13-0.5,NA())","v":{"$error":"#N/A"}},{"$f":"IF(AND(Tipo_MovVálido=1,miPosB=0,MATCH((10*$C9+CL$13)&\"\",misMarcas,0)>0),CL$13-0.5,NA())","v":{"$error":"#N/A"}},{"$f":"IF(AND(Tipo_MovVálido=1,miPosB=0,MATCH((10*$C9+CM$13)&\"\",misMarcas,0)>0),CM$13-0.5,NA())","v":{"$error":"#N/A"}},{"$f":"IF(AND(Tipo_MovVálido=1,miPosB=0,MATCH((10*$C9+CN$13)&\"\",misMarcas,0)>0),CN$13-0.5,NA())","v":{"$error":"#N/A"}},{"$f":"IF(AND(Tipo_MovVálido=1,miPosB=0,MATCH((10*$C9+CO$13)&\"\",misMarcas,0)>0),CO$13-0.5,NA())","v":{"$error":"#N/A"}},{"$f":"IF(AND(Tipo_MovVálido=1,miPosB=0,MATCH((10*$C9+CP$13)&\"\",misMarcas,0)>0),CP$13-0.5,NA())","v":{"$error":"#N/A"}},{"$f":"IF(AND(Tipo_MovVálido=1,miPosB=0,MATCH((10*$C9+CQ$13)&\"\",misMarcas,0)>0),CQ$13-0.5,NA())","v":{"$error":"#N/A"}},{"$f":"IF(AND(Tipo_MovVálido=1,miPosB=0,MATCH((10*$C9+CR$13)&\"\",misMarcas,0)>0),CR$13-0.5,NA())","v":{"$error":"#N/A"}}]
[null,null,6,6,0,{"$f":"IF(AND(F$4=bSerie,$C10=bCol),1,0)","v":0},{"$f":"1-E10-F10","v":1},0,0,0,{"$f":"IF(AND(K$4=bSerie,$C10=bCol),1,0)","v":0},0,0,1,0,{"$f":"IF(AND(P$4=bSerie,$C10=bCol),1,0)","v":0},{"$f":"1-O10-P10","v":1},0,0,0,{"$f":"IF(AND(U$4=bSerie,$C10=bCol),1,0)","v":0},0,0,1,0,{"$f":"IF(AND(Z$4=bSerie,$C10=bCol),1,0)","v":0},{"$f":"1-Y10-Z10","v":1},0,0,0,{"$f":"IF(AND(AE$4=bSerie,$C10=bCol),1,0)","v":0},0,0,1,0,{"$f":"IF(AND(AJ$4=bSerie,$C10=bCol),1,0)","v":0},{"$f":"1-AI10-AJ10","v":1},0,0,0,{"$f":"IF(AND(AO$4=bSerie,$C10=bCol),1,0)","v":0},0,0,1,{"$error":"#N/A"},{"$error":"#N/A"},{"$error":"#N/A"},{"$error":"#N/A"},{"$error":"#N/A"},{"$error":"#N/A"},{"$error":"#N/A"},{"$error":"#N/A"},{"$error":"#N/A"},{"$error":"#N/A"},{"$error":"#N/A"},{"$error":"#N/A"},{"$error":"#N/A"},{"$error":"#N/A"},{"$error":"#N/A"},{"$error":"#N/A"},{"$error":"#N/A"},{"$error":"#N/A"},{"$error":"#N/A"},{"$error":"#N/A"},{"$error":"#N/A"},{"$error":"#N/A"},{"$error":"#N/A"},{"$error":"#N/A"},{"$error":"#N/A"},{"$error":"#N/A"},{"$error":"#N/A"},{"$error":"#N/A"},{"$error":"#N/A"},{"$error":"#N/A"},{"$error":"#N/A"},{"$error":"#N/A"},null,null,null,null,null,null,null,null,null,null,null,null,{"$f":"IF(AND(Tipo_MovVálido=1,miPosB=0,MATCH((10*$C10+CK$13)&\"\",misMarcas,0)>0),CK$13-0.5,NA())","v":{"$error":"#N/A"}},{"$f":"IF(AND(Tipo_MovVálido=1,miPosB=0,MATCH((10*$C10+CL$13)&\"\",misMarcas,0)>0),CL$13-0.5,NA())","v":{"$error":"#N/A"}},{"$f":"IF(AND(Tipo_MovVálido=1,miPosB=0,MATCH((10*$C10+CM$13)&\"\",misMarcas,0)>0),CM$13-0.5,NA())","v":{"$error":"#N/A"}},{"$f":"IF(AND(Tipo_MovVálido=1,miPosB=0,MATCH((10*$C10+CN$13)&\"\",misMarcas,0)>0),CN$13-0.5,NA())","v":{"$error":"#N/A"}},{"$f":"IF(AND(Tipo_MovVálido=1,miPosB=0,MATCH((10*$C10+CO$13)&\"\",misMarcas,0)>0),CO$13-0.5,NA())","v":{"$error":"#N/A"}},{"$f":"IF(AND(Tipo_MovVálido=1,miPosB=0,MATCH((10*$C10+CP$13)&\"\",misMarcas,0)>0),CP$13-0.5,NA())","v":{"$error":"#N/A"}},{"$f":"IF(AND(Tipo_MovVálido=1,miPosB=0,MATCH((10*$C10+CQ$13)&\"\",misMarcas,0)>0),CQ$13-0.5,NA())","v":{"$error":"#N/A"}},{"$f":"IF(AND(Tipo_MovVálido=1,miPosB=0,MATCH((10*$C10+CR$13)&\"\",misMarcas,0)>0),CR$13-0.5,NA())","v":{"$error":"#N/A"}}]
[null,null,7,7,0,{"$f":"IF(AND(F$4=bSerie,$C11=bCol),1,0)","v":0},0,0,1,0,{"$f":"IF(AND(K$4=bSerie,$C11=bCol),1,0)","v":0},{"$f":"1-J11-K11","v":1},0,0,0,{"$f":"IF(AND(P$4=bSerie,$C11=bCol),1,0)","v":0},0,0,1,0,{"$f":"IF(AND(U$4=bSerie,$C11=bCol),1,0)","v":0},{"$f":"1-T11-U11","v":1},0,0,0,{"$f":"IF(AND(Z$4=bSerie,$C11=bCol),1,0)","v":0},0,0,1,0,{"$f":"IF(AND(AE$4=bSerie,$C11=bCol),1,0)","v":0},{"$f":"1-AD11-AE11","v":1},0,0,0,{"$f":"IF(AND(AJ$4=bSerie,$C11=bCol),1,0)","v":0},0,0,1,0,{"$f":"IF(AND(AO$4=bSerie,$C11=bCol),1,0)","v":0},{"$f":"1-AN11-AO11","v":1},0,0,{"$error":"#N/A"},{"$error":"#N/A"},{"$error":"#N/A"},{"$error":"#N/A"},{"$error":"#N/A"},{"$error":"#N/A"},{"$error":"#N/A"},{"$error":"#N/A"},{"$error":"#N/A"},{"$error":"#N/A"},{"$error":"#N/A"},{"$error":"#N/A"},{"$error":"#N/A"},{"$error":"#N/A"},{"$error":"#N/A"},{"$error":"#N/A"},{"$error":"#N/A"},{"$error":"#N/A"},{"$error":"#N/A"},{"$error":"#N/A"},{"$error":"#N/A"},{"$error":"#N/A"},{"$error":"#N/A"},{"$error":"#N/A"},{"$error":"#N/A"},{"$error":"#N/A"},{"$error":"#N/A"},{"$error":"#N/A"},{"$error":"#N/A"},{"$error":"#N/A"},{"$error":"#N/A"},{"$error":"#N/A"},null,null,null,null,null,null,null,null,null,null,null,null,{"$f":"IF(AND(Tipo_MovVálido=1,miPosB=0,MATCH((10*$C11+CK$13)&\"\",misMarcas,0)>0),CK$13-0.5,NA())","v":{"$error":"#N/A"}},{"$f":"IF(AND(Tipo_MovVálido=1,miPosB=0,MATCH((10*$C11+CL$13)&\"\",misMarcas,0)>0),CL$13-0.5,NA())","v":{"$error":"#N/A"}},{"$f":"IF(AND(Tipo_MovVálido=1,miPosB=0,MATCH((10*$C11+CM$13)&\"\",misMarcas,0)>0),CM$13-0.5,NA())","v":{"$error":"#N/A"}},{"$f":"IF(AND(Tipo_MovVálido=1,miPosB=0,MATCH((10*$C11+CN$13)&\"\",misMarcas,0)>0),CN$13-0.5,NA())","v":{"$error":"#N/A"}},{"$f":"IF(AND(Tipo_MovVálido=1,miPosB=0,MATCH((10*$C11+CO$13)&\"\",misMarcas,0)>0),CO$13-0.5,NA())","v":{"$error":"#N/A"}},{"$f":"IF(AND(Tipo_MovVálido=1,miPosB=0,MATCH((10*$C11+CP$13)&\"\",misMarcas,0)>0),CP$13-0.5,NA())","v":{"$error":"#N/A"}},{"$f":"IF(AND(Tipo_MovVálido=1,miPosB=0,MATCH((10*$C11+CQ$13)&\"\",misMarcas,0)>0),CQ$13-0.5,NA())","v":{"$error":"#N/A"}},{"$f":"IF(AND(Tipo_MovVálido=1,miPosB=0,MATCH((10*$C11+CR$13)&\"\",misMarcas,0)>0),CR$13-0.5,NA())","v":{"$error":"#N/A"}}]
[null,null,8,8,0,{"$f":"IF(AND(F$4=bSerie,$C12=bCol),1,0)","v":0},{"$f":"1-E12-F12","v":1},0,0,0,{"$f":"IF(AND(K$4=bSerie,$C12=bCol),1,0)","v":0},0,0,1,0,{"$f":"IF(AND(P$4=bSerie,$C12=bCol),1,0)","v":0},{"$f":"1-O12-P12","v":1},0,0,0,{"$f":"IF(AND(U$4=bSerie,$C12=bCol),1,0)","v":0},0,0,1,0,{"$f":"IF(AND(Z$4=bSerie,$C12=bCol),1,0)","v":0},{"$f":"1-Y12-Z12","v":1},0,0,0,{"$f":"IF(AND(AE$4=bSerie,$C12=bCol),1,0)","v":0},0,0,1,0,{"$f":"IF(AND(AJ$4=bSerie,$C12=bCol),1,0)","v":0},{"$f":"1-AI12-AJ12","v":1},0,0,0,{"$f":"IF(AND(AO$4=bSerie,$C12=bCol),1,0)","v":0},0,0,1,{"$error":"#N/A"},{"$error":"#N/A"},{"$error":"#N/A"},{"$error":"#N/A"},{"$error":"#N/A"},{"$error":"#N/A"},{"$error":"#N/A"},{"$error":"#N/A"},{"$error":"#N/A"},{"$error":"#N/A"},{"$error":"#N/A"},{"$error":"#N/A"},{"$error":"#N/A"},{"$error":"#N/A"},{"$error":"#N/A"},{"$error":"#N/A"},{"$error":"#N/A"},{"$error":"#N/A"},{"$error":"#N/A"},{"$error":"#N/A"},{"$error":"#N/A"},{"$error":"#N/A"},{"$error":"#N/A"},{"$error":"#N/A"},{"$error":"#N/A"},{"$error":"#N/A"},{"$error":"#N/A"},{"$error":"#N/A"},{"$error":"#N/A"},{"$error":"#N/A"},{"$error":"#N/A"},{"$error":"#N/A"},null,null,null,null,null,null,null,null,null,null,null,null,{"$f":"IF(AND(Tipo_MovVálido=1,miPosB=0,MATCH((10*$C12+CK$13)&\"\",misMarcas,0)>0),CK$13-0.5,NA())","v":{"$error":"#N/A"}},{"$f":"IF(AND(Tipo_MovVálido=1,miPosB=0,MATCH((10*$C12+CL$13)&\"\",misMarcas,0)>0),CL$13-0.5,NA())","v":{"$error":"#N/A"}},{"$f":"IF(AND(Tipo_MovVálido=1,miPosB=0,MATCH((10*$C12+CM$13)&\"\",misMarcas,0)>0),CM$13-0.5,NA())","v":{"$error":"#N/A"}},{"$f":"IF(AND(Tipo_MovVálido=1,miPosB=0,MATCH((10*$C12+CN$13)&\"\",misMarcas,0)>0),CN$13-0.5,NA())","v":{"$error":"#N/A"}},{"$f":"IF(AND(Tipo_MovVálido=1,miPosB=0,MATCH((10*$C12+CO$13)&\"\",misMarcas,0)>0),CO$13-0.5,NA())","v":{"$error":"#N/A"}},{"$f":"IF(AND(Tipo_MovVálido=1,miPosB=0,MATCH((10*$C12+CP$13)&\"\",misMarcas,0)>0),CP$13-0.5,NA())","v":{"$error":"#N/A"}},{"$f":"IF(AND(Tipo_MovVálido=1,miPosB=0,MATCH((10*$C12+CQ$13)&\"\",misMarcas,0)>0),CQ$13-0.5,NA())","v":{"$error":"#N/A"}},{"$f":"IF(AND(Tipo_MovVálido=1,miPosB=0,MATCH((10*$C12+CR$13)&\"\",misMarcas,0)>0),CR$13-0.5,NA())","v":{"$error":"#N/A"}}]
[null,null,null,null,null,null,null,null,null,null,null,null,null,null,null,null,null,null,null,null,null,null,null,null,null,null,null,null,null,null,null,null,null,null,null,null,null,null,null,null,null,null,null,null,"Ab1","Ab2","Rb","Cb1","Cb2","Db","Tb1","Tb2","Pb1","Pb2","Pb3","Pb4","Pb5","Pb6","Pb7","Pb8","An1","An2","Rn","Cn1","Cn2","Dn","Tn1","Tn2","Pn1","Pn2","Pn3","Pn4","Pn5","Pn6","Pn7","Pn8",null,null,null,null,null,null,null,null,null,null,null,null,1,2,3,4,5,6,7,8]
[null,null,"Autor del blog: Pedro Wave",null,null,null,"Aprende ajedrez con Excel | #ExcelPedroWave"]
[null,null,"Canal de YouTube: Pedro Wave",null,null,null,"Ajedrez en Excel - YouTube | #ExcelPedroWave",null,null,null,null,null,null,null,null,null,null,null,"Movimiento","Celda","Columna","Serie",null,null,null,null,null,null,null,null,null,null,null,null,null,null,null,null,null,null,null,null,"Vacía",null,"Piezas Blancas",null,null,null,null,null,null,null,null,null,null,null,null,null,null,null,"Piezas Negras"]
[null,null,"Idea original de: Daniel Ferry",null,null,null,"Excel 2007 Chess Game Viewer - Excel Hero Blog",null,null,null,null,null,null,null,null,null,null,null,"a",{"$f":"miPosA","v":0},{"$f":"IFERROR(--LEFT($T16,1),0)","v":0},{"$f":"IF(Tipo_Movimiento=1,\"Serie\" & RIGHT($T16,1) & $S16,\"\")","v":"Serie0a"},null,null,null,null,null,null,null,null,null,null,null,null,null,null,null,null,null,null,null,null,null,"Vacía"]
[null,null,"Imagen de las piezas de ajedrez:",null,null,null,"Category:SVG chess pieces/Maurizio Monge - Wikimedia Commons",null,null,null,null,null,null,null,null,null,null,null,"b",{"$f":"miPosB","v":0},{"$f":"IFERROR(--LEFT($T17,1),0)","v":0},{"$f":"IF(Tipo_Movimiento=1,\"Serie\" & RIGHT($T17,1) & $S17,\"\")","v":"Serie0b"},null,null,null,null,null,null,null,null,null,null,null,null,null,null,null,null,null,null,null,null,null,"Reyes",null,null,51,null,null,null,null,null,null,null,null,null,null,null,null,null,null,null,58]
[null,null,"COPYRIGHT:",null,null,null,"Creative Commons — Atribución-NoComercial-CompartirIgual 3.0 No portada",null,null,null,null,null,null,null,null,null,null,null,null,null,null,null,null,null,null,null,null,null,null,null,null,null,null,null,null,null,null,null,null,null,null,null,null,"Torres",null,null,51,null,null,null,11,81,null,null,null,null,null,null,null,null,null,null,58,null,null,null,18,88]
[null,null,null,null,null,null,null,null,null,null,null,null,null,null,null,null,null,null,null,null,null,null,null,null,null,null,null,null,null,null,null,null,null,null,null,null,null,null,null,null,null,null,null,"Alfiles",31,61,51,null,null,41,null,null,null,null,null,null,null,null,null,null,38,68,58,null,null,48]
[null,null,"#","Celda","Aleatorio","Número","Casilla","Color1","Color2","Alfiles","Piezas",null,null,null,null,null,null,null,"Valor X","Valor Y","Casilla","Serie Pieza","Color",null,null,null,null,null,null,null,null,null,null,null,null,null,null,null,null,null,null,null,null,"Damas",null,null,51,null,null,41,null,null,null,null,null,null,null,null,null,null,null,null,58,null,null,48]
[null,null,1,11,{"$f":"RAND()","v":0.57050317080032875},{"$f":"_xlfn.RANK.EQ(TablaAleatoria[[#This Row],[Aleatorio]],TablaAleatoria[Aleatorio],0)","v":29},{"$f":"INDEX(TablaAleatoria[Celda],MATCH(TablaAleatoria[[#This Row],[Número]],TablaAleatoria['#],0))","v":45},1,{"$f":"INDEX(TablaAleatoria[Color1],MATCH(TablaAleatoria[[#This Row],[Casilla]],TablaAleatoria[Celda],0))","v":0},{"$f":"SUBSTITUTE(SUBSTITUTE(TablaAleatoria[[#This Row],[Casilla]],51,\"\"),58,\"\")","v":"45"},{"$f":"SUBSTITUTE(SUBSTITUTE(TablaAleatoria[[#This Row],[Casilla]],51,\"\"),58,\"\")","v":"45"},null,null,null,null,null,null,null,0,6,{"$f":"10*valX+valY","v":6},{"$f":"IFERROR(INDEX(misSeriesPiezas,MATCH(miCasilla,misPosicionesNuevas,0)),\"\")","v":""},{"$f":"IF(LEFT(miPiezaColor)=MID(miSeriePieza,2,1),\"Sí\",\"No\")","v":"No"},null,null,null,null,null,null,null,null,null,null,null,null,null,null,null,null,null,null,null,null,"Caballos",null,null,51,21,71,null,null,null,null,null,null,null,null,null,null,null,null,null,58,28,78]
[null,null,2,12,0.71582954107819319,{"$f":"_xlfn.RANK.EQ(TablaAleatoria[[#This Row],[Aleatorio]],TablaAleatoria[Aleatorio],0)","v":17},{"$f":"INDEX(TablaAleatoria[Celda],MATCH(TablaAleatoria[[#This Row],[Número]],TablaAleatoria['#],0))","v":31},0,{"$f":"INDEX(TablaAleatoria[Color1],MATCH(TablaAleatoria[[#This Row],[Casilla]],TablaAleatoria[Celda],0))","v":1},{"$f":"SUBSTITUTE(SUBSTITUTE(IF(I21<>TablaAleatoria[[#This Row],[Color2]],TablaAleatoria[[#This Row],[Casilla]],SMALL(IF(TablaAleatoria[Color2]<>I21,TablaAleatoria[Casilla],99),10)),51,\"\"),58,\"\")","v":"31"},{"$f":"SUBSTITUTE(SUBSTITUTE(TablaAleatoria[[#This Row],[Casilla]],51,\"\"),58,\"\")","v":"31"},null,null,null,null,null,null,null,null,null,null,null,null,null,null,null,null,null,null,null,null,null,null,null,null,null,null,null,null,null,null,null,null,"Peones",null,null,51,null,null,null,null,null,12,22,32,42,52,62,72,82,null,null,58,null,null,null,null,null,17,27,37,47,57,67,77,87]
[null,null,3,13,0.21468909788420765,{"$f":"_xlfn.RANK.EQ(TablaAleatoria[[#This Row],[Aleatorio]],TablaAleatoria[Aleatorio],0)","v":54},{"$f":"INDEX(TablaAleatoria[Celda],MATCH(TablaAleatoria[[#This Row],[Número]],TablaAleatoria['#],0))","v":76},1,{"$f":"INDEX(TablaAleatoria[Color1],MATCH(TablaAleatoria[[#This Row],[Casilla]],TablaAleatoria[Celda],0))","v":0},{"$f":"SUBSTITUTE(SUBSTITUTE(TablaAleatoria[[#This Row],[Casilla]],51,\"\"),58,\"\")","v":"76"},{"$f":"SUBSTITUTE(SUBSTITUTE(TablaAleatoria[[#This Row],[Casilla]],51,\"\"),58,\"\")","v":"76"},null,null,null,null,null,null,null,null,null,null,null,null,null,null,null,null,null,null,null,null,null,null,null,null,null,null,null,null,null,null,null,null,"Captura al paso",null,null,51,null,null,null,null,null,null,null,null,45,52,null,null,null,null,null,58,null,null,null,null,null,null,null,null,null,57,64]
[null,null,4,14,0.95268086066976987,{"$f":"_xlfn.RANK.EQ(TablaAleatoria[[#This Row],[Aleatorio]],TablaAleatoria[Aleatorio],0)","v":5},{"$f":"INDEX(TablaAleatoria[Celda],MATCH(TablaAleatoria[[#This Row],[Número]],TablaAleatoria['#],0))","v":15},0,{"$f":"INDEX(TablaAleatoria[Color1],MATCH(TablaAleatoria[[#This Row],[Casilla]],TablaAleatoria[Celda],0))","v":1},{"$f":"SUBSTITUTE(SUBSTITUTE(IF(I23<>TablaAleatoria[[#This Row],[Color2]],TablaAleatoria[[#This Row],[Casilla]],LARGE(IF(TablaAleatoria[Color2]<>I23,TablaAleatoria[Casilla],0),10)),51,\"\"),58,\"\")","v":"15"},{"$f":"SUBSTITUTE(SUBSTITUTE(TablaAleatoria[[#This Row],[Casilla]],51,\"\"),58,\"\")","v":"15"},null,null,null,null,null,null,null,"Pieza","Serie pieza","Serie comida",null,null,null,null,null,null,null,null,null,null,null,null,null,null,null,null,null,null,null,null,null,null,"Enroque",null,null,51,null,null,41,11,81,null,null,null,null,null,null,null,null,null,null,58,null,null,48,18,88]
[null,null,5,15,0.82731194127853869,{"$f":"_xlfn.RANK.EQ(TablaAleatoria[[#This Row],[Aleatorio]],TablaAleatoria[Aleatorio],0)","v":12},{"$f":"INDEX(TablaAleatoria[Celda],MATCH(TablaAleatoria[[#This Row],[Número]],TablaAleatoria['#],0))","v":24},1,{"$f":"INDEX(TablaAleatoria[Color1],MATCH(TablaAleatoria[[#This Row],[Casilla]],TablaAleatoria[Celda],0))","v":1},null,null,null,null,null,null,null,null,null,null,{"$f":"IFERROR(MATCH(miPiezaMovida,misSeriesPiezas,0),0)","v":0},{"$f":"IF(IFERROR(MATCH(miSeriePieza,misSeriesPiezas,0),0)=miSeriePos,0,IFERROR(MATCH(miSeriePieza,misSeriesPiezas,0),0))","v":0},null,null,null,null,null,null,null,null,null,null,null,null,null,null,null,null,null,null,null,null,null,null,"Coronación",null,null,56,null,null,null,null,null,17,27,37,47,57,67,77,87,null,null,53,null,null,null,null,null,12,22,32,42,52,62,72,82]
[null,null,6,16,0.16293587956916455,{"$f":"_xlfn.RANK.EQ(TablaAleatoria[[#This Row],[Aleatorio]],TablaAleatoria[Aleatorio],0)","v":57},{"$f":"INDEX(TablaAleatoria[Celda],MATCH(TablaAleatoria[[#This Row],[Número]],TablaAleatoria['#],0))","v":81},0,{"$f":"INDEX(TablaAleatoria[Color1],MATCH(TablaAleatoria[[#This Row],[Casilla]],TablaAleatoria[Celda],0))","v":0},null,null,null,null,null,null,null,null,"Mover",null,"X","Y",null,null,null,null,null,null,null,null,null,null,null,null,null,null,null,null,null,null,null,null,null,null,"Sin orden",{"$f":"TRANSPOSE($G$21:$G$52)","v":45},31,76,15,24,81,85,58,43,21,17,42,18,13,52,23,61,27,28,82,88,63,78,55,34,36,73,62,54,53,57,84]
[null,null,7,17,4.7519482642610522E-2,{"$f":"_xlfn.RANK.EQ(TablaAleatoria[[#This Row],[Aleatorio]],TablaAleatoria[Aleatorio],0)","v":61},{"$f":"INDEX(TablaAleatoria[Celda],MATCH(TablaAleatoria[[#This Row],[Número]],TablaAleatoria['#],0))","v":85},1,{"$f":"INDEX(TablaAleatoria[Color1],MATCH(TablaAleatoria[[#This Row],[Casilla]],TablaAleatoria[Celda],0))","v":0},null,null,null,null,null,null,null,null,"a",null,4,7.5,null,null,null,null,null,null,null,null,null,null,null,null,null,null,null,null,null,null,null,null,null,null,"Jaque al rey",74,null,46,45,null,68,53,null,null,null,null,null,null,null,null,null,null,null,16]
[null,null,8,18,0.43887656305861344,{"$f":"_xlfn.RANK.EQ(TablaAleatoria[[#This Row],[Aleatorio]],TablaAleatoria[Aleatorio],0)","v":40},{"$f":"INDEX(TablaAleatoria[Celda],MATCH(TablaAleatoria[[#This Row],[Número]],TablaAleatoria['#],0))","v":58},0,{"$f":"INDEX(TablaAleatoria[Color1],MATCH(TablaAleatoria[[#This Row],[Casilla]],TablaAleatoria[Celda],0))","v":0},null,null,null,null,null,null,null,null,"b",null,6,5.5,null,null,null,null,null,null,null,null,null,null,null,null,null,null,null,null,null,null,null,null,null,null,"Rey ahogado",null,null,46,45,null,null,23,null,null,null,null,null,null,null,null,null,null,null,17,null,null,null,null,null,null,null,null,47]
[null,null,9,21,0.58006469127569404,{"$f":"_xlfn.RANK.EQ(TablaAleatoria[[#This Row],[Aleatorio]],TablaAleatoria[Aleatorio],0)","v":27},{"$f":"INDEX(TablaAleatoria[Celda],MATCH(TablaAleatoria[[#This Row],[Número]],TablaAleatoria['#],0))","v":43},0,{"$f":"INDEX(TablaAleatoria[Color1],MATCH(TablaAleatoria[[#This Row],[Casilla]],TablaAleatoria[Celda],0))","v":0},null,null,null,null,null,null,null,null,"Coordenadas",{"$f":"CHOOSE(LEFT(IF(miCasilla>0,miCasilla,miPosB)),\"a\",\"b\",\"c\",\"d\",\"e\",\"f\",\"g\",\"h\") & RIGHT(IF(miCasilla>0,miCasilla,miPosB))","v":"f6"},6.0000000000000018,5.4999999999999982,null,null,null,null,null,null,null,null,null,null,null,null,null,null,null,null,null,null,null,null,null,null,"Inicial",31,61,51,21,71,41,11,81,12,22,32,42,52,62,72,82,38,68,58,28,78,48,18,88,17,27,37,47,57,67,77,87]
[null,null,10,22,0.87000407779940336,{"$f":"_xlfn.RANK.EQ(TablaAleatoria[[#This Row],[Aleatorio]],TablaAleatoria[Aleatorio],0)","v":9},{"$f":"INDEX(TablaAleatoria[Celda],MATCH(TablaAleatoria[[#This Row],[Número]],TablaAleatoria['#],0))","v":21},1,{"$f":"INDEX(TablaAleatoria[Color1],MATCH(TablaAleatoria[[#This Row],[Casilla]],TablaAleatoria[Celda],0))","v":0},null,null,null,null,null,null,null,null,"Algebraica",{"$f":"IF(LEFT(miPiezaMovida)=\"P\",IF($S$31=\"\",SUBSTITUTE(CHOOSE(LEFT(miPosA),\"a\",\"b\",\"c\",\"d\",\"e\",\"f\",\"g\",\"h\"),LEFT(miPosCoordenadas),\"\"),\"\"),LEFT(miPiezaMovida))&$S$31&miPosComida&miPosCoordenadas","v":"f6"}]
[null,null,11,23,0.89571292042207817,{"$f":"_xlfn.RANK.EQ(TablaAleatoria[[#This Row],[Aleatorio]],TablaAleatoria[Aleatorio],0)","v":7},{"$f":"INDEX(TablaAleatoria[Celda],MATCH(TablaAleatoria[[#This Row],[Número]],TablaAleatoria['#],0))","v":17},0,{"$f":"INDEX(TablaAleatoria[Color1],MATCH(TablaAleatoria[[#This Row],[Casilla]],TablaAleatoria[Celda],0))","v":1},null,null,null,null,null,null,null,null,"Desambiguación",{"$f":"SUBSTITUTE(IF(OR(miPiezaAmbigua=0,miEnroqueT=1),\"\",IF(AND(LEFT(miPosA)<>LEFT(miPiezaAmbigua),LEFT(miPosA)<>LEFT(miPosB)),CHOOSE(LEFT(miPosA),\"a\",\"b\",\"c\",\"d\",\"e\",\"f\",\"g\",\"h\"),RIGHT(miPosA))),LEFT(miPosCoordenadas),\"\")","v":""},null,null,null,null,null,null,null,null,null,null,null,null,null,null,null,null,null,null,null,null,null,null,null,null,"Posición anterior"]
[null,null,12,24,0.58527058622728945,{"$f":"_xlfn.RANK.EQ(TablaAleatoria[[#This Row],[Aleatorio]],TablaAleatoria[Aleatorio],0)","v":26},{"$f":"INDEX(TablaAleatoria[Celda],MATCH(TablaAleatoria[[#This Row],[Número]],TablaAleatoria['#],0))","v":42},1,{"$f":"INDEX(TablaAleatoria[Color1],MATCH(TablaAleatoria[[#This Row],[Casilla]],TablaAleatoria[Celda],0))","v":1},null,null,null,null,null,null,null,null,null,"Corona","Color","D","T","A","C","Promo"]
[null,null,13,25,0.88118910826035302,{"$f":"_xlfn.RANK.EQ(TablaAleatoria[[#This Row],[Aleatorio]],TablaAleatoria[Aleatorio],0)","v":8},{"$f":"INDEX(TablaAleatoria[Celda],MATCH(TablaAleatoria[[#This Row],[Número]],TablaAleatoria['#],0))","v":18},0,{"$f":"INDEX(TablaAleatoria[Color1],MATCH(TablaAleatoria[[#This Row],[Casilla]],TablaAleatoria[Celda],0))","v":0},null,null,null,null,null,null,null,null,"Promoción de peón",{"$f":"IF(AND(LEFT(miPiezaMovida)=\"P\",RIGHT(miPosB)=IF($T$33=\"b\",\"8\",\"1\")),1,0)","v":0},{"$f":"MID(miPiezaMovida,2,1)","v":""},{"$f":"IF($T$33=\"b\",IF($AX$14=\"\",$AX$13,\"\"),IF($BN$14=\"\",$BN$13,\"\"))","v":"Dn"},{"$f":"IF($T$33=\"b\",IF(miInicioTb1=\"\",$AY$13,IF(miInicioTb2=\"\",$AZ$13,\"\")),IF(miInicioTn1=\"\",$BO$13,IF(miInicioTn2=\"\",$BP$13,\"\")))","v":"Tn1"},{"$f":"IF($T$33=\"b\",IF($AS$14=\"\",$AS$13,IF($AT$14=\"\",$AT$13,\"\")),IF($BI$14=\"\",$BI$13,IF($BJ$14=\"\",$BJ$13,\"\")))","v":"An1"},{"$f":"IF($T$33=\"b\",IF($AV$14=\"\",$AV$13,IF($AW$14=\"\",$AW$13,\"\")),IF($BL$14=\"\",$BL$13,IF($BM$14=\"\",$BM$13,\"\")))","v":"Cn1"},{"$f":"IF($S$33=1,SUBSTITUTE(TRIM(U33&\" \"&V33&\" \"&W33&\" \"&X33),\" \",\"-\"),\"\")","v":""}]
[null,null,14,26,0.9695972548754811,{"$f":"_xlfn.RANK.EQ(TablaAleatoria[[#This Row],[Aleatorio]],TablaAleatoria[Aleatorio],0)","v":3},{"$f":"INDEX(TablaAleatoria[Celda],MATCH(TablaAleatoria[[#This Row],[Número]],TablaAleatoria['#],0))","v":13},1,{"$f":"INDEX(TablaAleatoria[Color1],MATCH(TablaAleatoria[[#This Row],[Casilla]],TablaAleatoria[Celda],0))","v":1},null,null,null,null,null,null,null,null,null,null,null,null,null,null,null,null,null,null,null,null,null,null,null,null,null,null,null,null,null,null,null,null,null,null,null,"Piezas blancas - Gráfico de líneas con marcadores pero sin líneas",null,null,null,null,null,null,null,null,null,null,null,null,null,null,null,"Piezas negras - Gráfico de líneas con marcadores pero sin líneas"]
[null,null,15,27,0.48672017415260538,{"$f":"_xlfn.RANK.EQ(TablaAleatoria[[#This Row],[Aleatorio]],TablaAleatoria[Aleatorio],0)","v":34},{"$f":"INDEX(TablaAleatoria[Celda],MATCH(TablaAleatoria[[#This Row],[Número]],TablaAleatoria['#],0))","v":52},0,{"$f":"INDEX(TablaAleatoria[Color1],MATCH(TablaAleatoria[[#This Row],[Casilla]],TablaAleatoria[Celda],0))","v":0},null,null,null,null,null,null,null,null,null,null,null,null,null,null,null,null,null,null,null,null,null,null,null,null,null,null,null,null,null,null,null,null,null,null,null,"Ab1","Ab2","Rb","Cb1","Cb2","Db","Tb1","Tb2","Pb1","Pb2","Pb3","Pb4","Pb5","Pb6","Pb7","Pb8","An1","An2","Rn","Cn1","Cn2","Dn","Tn1","Tn2","Pn1","Pn2","Pn3","Pn4","Pn5","Pn6","Pn7","Pn8"]
[null,null,16,28,0.83243841219274106,{"$f":"_xlfn.RANK.EQ(TablaAleatoria[[#This Row],[Aleatorio]],TablaAleatoria[Aleatorio],0)","v":11},{"$f":"INDEX(TablaAleatoria[Celda],MATCH(TablaAleatoria[[#This Row],[Número]],TablaAleatoria['#],0))","v":23},1,{"$f":"INDEX(TablaAleatoria[Color1],MATCH(TablaAleatoria[[#This Row],[Casilla]],TablaAleatoria[Celda],0))","v":0},null,null,null,null,null,null,null,null,null,null,null,null,null,null,null,null,null,null,null,null,null,null,null,null,null,null,null,null,null,null,null,null,null,null,1,{"$f":"IF($AR36=INT(AS$38/10),MOD(AS$38,10)-0.5,NA())","v":5.5},{"$f":"IF($AR36=INT(AT$38/10),MOD(AT$38,10)-0.5,NA())","v":{"$error":"#N/A"}},{"$error":"#N/A"},4.5,{"$error":"#N/A"},7.5,6.5,{"$error":"#N/A"},3.5,{"$error":"#N/A"},2.5,{"$error":"#N/A"},1.5,{"$error":"#N/A"},0.5,{"$error":"#N/A"},5.5,{"$f":"IF($AR36=INT(BJ$38/10),MOD(BJ$38,10)-0.5,NA())","v":{"$error":"#N/A"}},{"$error":"#N/A"},4.5,{"$error":"#N/A"},7.5,6.5,{"$error":"#N/A"},3.5,{"$error":"#N/A"},2.5,{"$error":"#N/A"},1.5,{"$error":"#N/A"},0.5,{"$error":"#N/A"}]
[null,null,17,31,0.39918082408346089,{"$f":"_xlfn.RANK.EQ(TablaAleatoria[[#This Row],[Aleatorio]],TablaAleatoria[Aleatorio],0)","v":41},{"$f":"INDEX(TablaAleatoria[Celda],MATCH(TablaAleatoria[[#This Row],[Número]],TablaAleatoria['#],0))","v":61},1,{"$f":"INDEX(TablaAleatoria[Color1],MATCH(TablaAleatoria[[#This Row],[Casilla]],TablaAleatoria[Celda],0))","v":0},null,null,null,null,null,null,null,null,null,null,null,null,null,null,null,null,null,null,null,null,null,null,null,null,null,null,null,null,null,null,null,null,null,null,2,{"$f":"IF($AR37=INT(AS$38/10),MOD(AS$38,10)-0.5,NA())","v":{"$error":"#N/A"}},5.5,7.5,{"$error":"#N/A"},4.5,{"$error":"#N/A"},{"$error":"#N/A"},6.5,{"$error":"#N/A"},3.5,{"$error":"#N/A"},2.5,{"$error":"#N/A"},1.5,{"$error":"#N/A"},{"$f":"IF($AR37=INT(BH$38/10),MOD(BH$38,10)-0.5,NA())","v":0.5},{"$error":"#N/A"},5.5,7.5,{"$error":"#N/A"},4.5,{"$error":"#N/A"},{"$error":"#N/A"},6.5,{"$error":"#N/A"},3.5,{"$error":"#N/A"},2.5,{"$error":"#N/A"},1.5,{"$error":"#N/A"},0.5]
[null,null,18,32,0.7589319482258513,{"$f":"_xlfn.RANK.EQ(TablaAleatoria[[#This Row],[Aleatorio]],TablaAleatoria[Aleatorio],0)","v":15},{"$f":"INDEX(TablaAleatoria[Celda],MATCH(TablaAleatoria[[#This Row],[Número]],TablaAleatoria['#],0))","v":27},0,{"$f":"INDEX(TablaAleatoria[Color1],MATCH(TablaAleatoria[[#This Row],[Casilla]],TablaAleatoria[Celda],0))","v":0},null,null,null,null,null,null,null,null,null,null,null,null,null,null,null,null,null,null,null,null,null,null,null,null,null,null,null,null,null,null,null,null,null,null,0,{"$f":"IF(OR(AS$14<>\"\",AND(miPiezaMovida=AS$35,Valor_Moviendo=1)),0,AS$39)","v":16},26,28,15,25,18,17,27,14,24,13,23,12,22,11,21,16,26,28,15,25,18,17,27,14,24,13,23,12,22,11,21]
[null,null,19,33,0.72282621417023851,{"$f":"_xlfn.RANK.EQ(TablaAleatoria[[#This Row],[Aleatorio]],TablaAleatoria[Aleatorio],0)","v":16},{"$f":"INDEX(TablaAleatoria[Celda],MATCH(TablaAleatoria[[#This Row],[Número]],TablaAleatoria['#],0))","v":28},1,{"$f":"INDEX(TablaAleatoria[Color1],MATCH(TablaAleatoria[[#This Row],[Casilla]],TablaAleatoria[Celda],0))","v":1},null,null,null,null,null,null,null,null,null,null,null,null,null,null,null,null,null,null,null,null,null,null,null,null,null,null,null,null,null,null,null,null,null,null,"Capturas",16,26,28,15,25,18,17,27,14,24,13,23,12,22,11,21,16,26,28,15,25,18,17,27,14,24,13,23,12,22,11,21]
[null,null,20,34,0.10241111946437687,{"$f":"_xlfn.RANK.EQ(TablaAleatoria[[#This Row],[Aleatorio]],TablaAleatoria[Aleatorio],0)","v":58},{"$f":"INDEX(TablaAleatoria[Celda],MATCH(TablaAleatoria[[#This Row],[Número]],TablaAleatoria['#],0))","v":82},0,{"$f":"INDEX(TablaAleatoria[Color1],MATCH(TablaAleatoria[[#This Row],[Casilla]],TablaAleatoria[Celda],0))","v":1}]
[null,null,21,35,5.5139957831009667E-3,{"$f":"_xlfn.RANK.EQ(TablaAleatoria[[#This Row],[Aleatorio]],TablaAleatoria[Aleatorio],0)","v":64},{"$f":"INDEX(TablaAleatoria[Celda],MATCH(TablaAleatoria[[#This Row],[Número]],TablaAleatoria['#],0))","v":88},1,{"$f":"INDEX(TablaAleatoria[Color1],MATCH(TablaAleatoria[[#This Row],[Casilla]],TablaAleatoria[Celda],0))","v":1}]
[null,null,22,36,0.35389327993981134,{"$f":"_xlfn.RANK.EQ(TablaAleatoria[[#This Row],[Aleatorio]],TablaAleatoria[Aleatorio],0)","v":43},{"$f":"INDEX(TablaAleatoria[Celda],MATCH(TablaAleatoria[[#This Row],[Número]],TablaAleatoria['#],0))","v":63},0,{"$f":"INDEX(TablaAleatoria[Color1],MATCH(TablaAleatoria[[#This Row],[Casilla]],TablaAleatoria[Celda],0))","v":0}]
[null,null,23,37,0.17017330390567842,{"$f":"_xlfn.RANK.EQ(TablaAleatoria[[#This Row],[Aleatorio]],TablaAleatoria[Aleatorio],0)","v":56},{"$f":"INDEX(TablaAleatoria[Celda],MATCH(TablaAleatoria[[#This Row],[Número]],TablaAleatoria['#],0))","v":78},1,{"$f":"INDEX(TablaAleatoria[Color1],MATCH(TablaAleatoria[[#This Row],[Casilla]],TablaAleatoria[Celda],0))","v":0}]
[null,null,24,38,0.46015849623118232,{"$f":"_xlfn.RANK.EQ(TablaAleatoria[[#This Row],[Aleatorio]],TablaAleatoria[Aleatorio],0)","v":37},{"$f":"INDEX(TablaAleatoria[Celda],MATCH(TablaAleatoria[[#This Row],[Número]],TablaAleatoria['#],0))","v":55},0,{"$f":"INDEX(TablaAleatoria[Color1],MATCH(TablaAleatoria[[#This Row],[Casilla]],TablaAleatoria[Celda],0))","v":1}]
[null,null,25,41,0.68534869576715196,{"$f":"_xlfn.RANK.EQ(TablaAleatoria[[#This Row],[Aleatorio]],TablaAleatoria[Aleatorio],0)","v":20},{"$f":"INDEX(TablaAleatoria[Celda],MATCH(TablaAleatoria[[#This Row],[Número]],TablaAleatoria['#],0))","v":34},0,{"$f":"INDEX(TablaAleatoria[Color1],MATCH(TablaAleatoria[[#This Row],[Casilla]],TablaAleatoria[Celda],0))","v":0}]
[null,null,26,42,0.6416863137622375,{"$f":"_xlfn.RANK.EQ(TablaAleatoria[[#This Row],[Aleatorio]],TablaAleatoria[Aleatorio],0)","v":22},{"$f":"INDEX(TablaAleatoria[Celda],MATCH(TablaAleatoria[[#This Row],[Número]],TablaAleatoria['#],0))","v":36},1,{"$f":"INDEX(TablaAleatoria[Color1],MATCH(TablaAleatoria[[#This Row],[Casilla]],TablaAleatoria[Celda],0))","v":0}]
[null,null,27,43,0.25230737241113832,{"$f":"_xlfn.RANK.EQ(TablaAleatoria[[#This Row],[Aleatorio]],TablaAleatoria[Aleatorio],0)","v":51},{"$f":"INDEX(TablaAleatoria[Celda],MATCH(TablaAleatoria[[#This Row],[Número]],TablaAleatoria['#],0))","v":73},0,{"$f":"INDEX(TablaAleatoria[Color1],MATCH(TablaAleatoria[[#This Row],[Casilla]],TablaAleatoria[Celda],0))","v":1}]
[null,null,28,44,0.38844064328997274,{"$f":"_xlfn.RANK.EQ(TablaAleatoria[[#This Row],[Aleatorio]],TablaAleatoria[Aleatorio],0)","v":42},{"$f":"INDEX(TablaAleatoria[Celda],MATCH(TablaAleatoria[[#This Row],[Número]],TablaAleatoria['#],0))","v":62},1,{"$f":"INDEX(TablaAleatoria[Color1],MATCH(TablaAleatoria[[#This Row],[Casilla]],TablaAleatoria[Celda],0))","v":1}]
[null,null,29,45,0.47221537129544033,{"$f":"_xlfn.RANK.EQ(TablaAleatoria[[#This Row],[Aleatorio]],TablaAleatoria[Aleatorio],0)","v":36},{"$f":"INDEX(TablaAleatoria[Celda],MATCH(TablaAleatoria[[#This Row],[Número]],TablaAleatoria['#],0))","v":54},0,{"$f":"INDEX(TablaAleatoria[Color1],MATCH(TablaAleatoria[[#This Row],[Casilla]],TablaAleatoria[Celda],0))","v":0}]
[null,null,30,46,0.47452537755916069,{"$f":"_xlfn.RANK.EQ(TablaAleatoria[[#This Row],[Aleatorio]],TablaAleatoria[Aleatorio],0)","v":35},{"$f":"INDEX(TablaAleatoria[Celda],MATCH(TablaAleatoria[[#This Row],[Número]],TablaAleatoria['#],0))","v":53},1,{"$f":"INDEX(TablaAleatoria[Color1],MATCH(TablaAleatoria[[#This Row],[Casilla]],TablaAleatoria[Celda],0))","v":1}]
[null,null,31,47,0.45310132634788425,{"$f":"_xlfn.RANK.EQ(TablaAleatoria[[#This Row],[Aleatorio]],TablaAleatoria[Aleatorio],0)","v":39},{"$f":"INDEX(TablaAleatoria[Celda],MATCH(TablaAleatoria[[#This Row],[Número]],TablaAleatoria['#],0))","v":57},0,{"$f":"INDEX(TablaAleatoria[Color1],MATCH(TablaAleatoria[[#This Row],[Casilla]],TablaAleatoria[Celda],0))","v":1}]
[null,null,32,48,5.2244297678919693E-2,{"$f":"_xlfn.RANK.EQ(TablaAleatoria[[#This Row],[Aleatorio]],TablaAleatoria[Aleatorio],0)","v":60},{"$f":"INDEX(TablaAleatoria[Celda],MATCH(TablaAleatoria[[#This Row],[Número]],TablaAleatoria['#],0))","v":84},1,{"$f":"INDEX(TablaAleatoria[Color1],MATCH(TablaAleatoria[[#This Row],[Casilla]],TablaAleatoria[Celda],0))","v":1}]
[null,null,33,51,{"$f":"RAND()","v":0.50136000892244714},{"$f":"_xlfn.RANK.EQ(TablaAleatoria[[#This Row],[Aleatorio]],TablaAleatoria[Aleatorio],0)","v":31},{"$f":"INDEX(TablaAleatoria[Celda],MATCH(TablaAleatoria[[#This Row],[Número]],TablaAleatoria['#],0))","v":47},1,{"$f":"INDEX(TablaAleatoria[Color1],MATCH(TablaAleatoria[[#This Row],[Casilla]],TablaAleatoria[Celda],0))","v":0}]
[null,null,34,52,0.57676827034924538,{"$f":"_xlfn.RANK.EQ(TablaAleatoria[[#This Row],[Aleatorio]],TablaAleatoria[Aleatorio],0)","v":28},{"$f":"INDEX(TablaAleatoria[Celda],MATCH(TablaAleatoria[[#This Row],[Número]],TablaAleatoria['#],0))","v":44},0,{"$f":"INDEX(TablaAleatoria[Color1],MATCH(TablaAleatoria[[#This Row],[Casilla]],TablaAleatoria[Celda],0))","v":1}]
[null,null,35,53,0.90088654610090646,{"$f":"_xlfn.RANK.EQ(TablaAleatoria[[#This Row],[Aleatorio]],TablaAleatoria[Aleatorio],0)","v":6},{"$f":"INDEX(TablaAleatoria[Celda],MATCH(TablaAleatoria[[#This Row],[Número]],TablaAleatoria['#],0))","v":16},1,{"$f":"INDEX(TablaAleatoria[Color1],MATCH(TablaAleatoria[[#This Row],[Casilla]],TablaAleatoria[Celda],0))","v":0}]
[null,null,36,54,0.50012845347250934,{"$f":"_xlfn.RANK.EQ(TablaAleatoria[[#This Row],[Aleatorio]],TablaAleatoria[Aleatorio],0)","v":32},{"$f":"INDEX(TablaAleatoria[Celda],MATCH(TablaAleatoria[[#This Row],[Número]],TablaAleatoria['#],0))","v":48},0,{"$f":"INDEX(TablaAleatoria[Color1],MATCH(TablaAleatoria[[#This Row],[Casilla]],TablaAleatoria[Celda],0))","v":1}]
[null,null,37,55,0.86785671821387023,{"$f":"_xlfn.RANK.EQ(TablaAleatoria[[#This Row],[Aleatorio]],TablaAleatoria[Aleatorio],0)","v":10},{"$f":"INDEX(TablaAleatoria[Celda],MATCH(TablaAleatoria[[#This Row],[Número]],TablaAleatoria['#],0))","v":22},1,{"$f":"INDEX(TablaAleatoria[Color1],MATCH(TablaAleatoria[[#This Row],[Casilla]],TablaAleatoria[Celda],0))","v":1}]
[null,null,38,56,0.30693997011328067,{"$f":"_xlfn.RANK.EQ(TablaAleatoria[[#This Row],[Aleatorio]],TablaAleatoria[Aleatorio],0)","v":46},{"$f":"INDEX(TablaAleatoria[Celda],MATCH(TablaAleatoria[[#This Row],[Número]],TablaAleatoria['#],0))","v":66},0,{"$f":"INDEX(TablaAleatoria[Color1],MATCH(TablaAleatoria[[#This Row],[Casilla]],TablaAleatoria[Celda],0))","v":1}]
[null,null,39,57,0.26876478768549983,{"$f":"_xlfn.RANK.EQ(TablaAleatoria[[#This Row],[Aleatorio]],TablaAleatoria[Aleatorio],0)","v":48},{"$f":"INDEX(TablaAleatoria[Celda],MATCH(TablaAleatoria[[#This Row],[Número]],TablaAleatoria['#],0))","v":68},1,{"$f":"INDEX(TablaAleatoria[Color1],MATCH(TablaAleatoria[[#This Row],[Casilla]],TablaAleatoria[Celda],0))","v":1}]
[null,null,40,58,9.2933318214621363E-2,{"$f":"_xlfn.RANK.EQ(TablaAleatoria[[#This Row],[Aleatorio]],TablaAleatoria[Aleatorio],0)","v":59},{"$f":"INDEX(TablaAleatoria[Celda],MATCH(TablaAleatoria[[#This Row],[Número]],TablaAleatoria['#],0))","v":83},0,{"$f":"INDEX(TablaAleatoria[Color1],MATCH(TablaAleatoria[[#This Row],[Casilla]],TablaAleatoria[Celda],0))","v":0}]
[null,null,41,61,0.70873711124165895,{"$f":"_xlfn.RANK.EQ(TablaAleatoria[[#This Row],[Aleatorio]],TablaAleatoria[Aleatorio],0)","v":18},{"$f":"INDEX(TablaAleatoria[Celda],MATCH(TablaAleatoria[[#This Row],[Número]],TablaAleatoria['#],0))","v":32},0,{"$f":"INDEX(TablaAleatoria[Color1],MATCH(TablaAleatoria[[#This Row],[Casilla]],TablaAleatoria[Celda],0))","v":0}]
[null,null,42,62,0.69861740278084061,{"$f":"_xlfn.RANK.EQ(TablaAleatoria[[#This Row],[Aleatorio]],TablaAleatoria[Aleatorio],0)","v":19},{"$f":"INDEX(TablaAleatoria[Celda],MATCH(TablaAleatoria[[#This Row],[Número]],TablaAleatoria['#],0))","v":33},1,{"$f":"INDEX(TablaAleatoria[Color1],MATCH(TablaAleatoria[[#This Row],[Casilla]],TablaAleatoria[Celda],0))","v":1}]
[null,null,43,63,0.6139095439043204,{"$f":"_xlfn.RANK.EQ(TablaAleatoria[[#This Row],[Aleatorio]],TablaAleatoria[Aleatorio],0)","v":24},{"$f":"INDEX(TablaAleatoria[Celda],MATCH(TablaAleatoria[[#This Row],[Número]],TablaAleatoria['#],0))","v":38},0,{"$f":"INDEX(TablaAleatoria[Color1],MATCH(TablaAleatoria[[#This Row],[Casilla]],TablaAleatoria[Celda],0))","v":0}]
[null,null,44,64,0.78345955266287393,{"$f":"_xlfn.RANK.EQ(TablaAleatoria[[#This Row],[Aleatorio]],TablaAleatoria[Aleatorio],0)","v":14},{"$f":"INDEX(TablaAleatoria[Celda],MATCH(TablaAleatoria[[#This Row],[Número]],TablaAleatoria['#],0))","v":26},1,{"$f":"INDEX(TablaAleatoria[Color1],MATCH(TablaAleatoria[[#This Row],[Casilla]],TablaAleatoria[Celda],0))","v":1}]
[null,null,45,65,0.18815966291529362,{"$f":"_xlfn.RANK.EQ(TablaAleatoria[[#This Row],[Aleatorio]],TablaAleatoria[Aleatorio],0)","v":55},{"$f":"INDEX(TablaAleatoria[Celda],MATCH(TablaAleatoria[[#This Row],[Número]],TablaAleatoria['#],0))","v":77},0,{"$f":"INDEX(TablaAleatoria[Color1],MATCH(TablaAleatoria[[#This Row],[Casilla]],TablaAleatoria[Celda],0))","v":1}]
[null,null,46,66,0.26257039926775316,{"$f":"_xlfn.RANK.EQ(TablaAleatoria[[#This Row],[Aleatorio]],TablaAleatoria[Aleatorio],0)","v":49},{"$f":"INDEX(TablaAleatoria[Celda],MATCH(TablaAleatoria[[#This Row],[Número]],TablaAleatoria['#],0))","v":71},1,{"$f":"INDEX(TablaAleatoria[Color1],MATCH(TablaAleatoria[[#This Row],[Casilla]],TablaAleatoria[Celda],0))","v":1}]
[null,null,47,67,0.67467539018194445,{"$f":"_xlfn.RANK.EQ(TablaAleatoria[[#This Row],[Aleatorio]],TablaAleatoria[Aleatorio],0)","v":21},{"$f":"INDEX(TablaAleatoria[Celda],MATCH(TablaAleatoria[[#This Row],[Número]],TablaAleatoria['#],0))","v":35},0,{"$f":"INDEX(TablaAleatoria[Color1],MATCH(TablaAleatoria[[#This Row],[Casilla]],TablaAleatoria[Celda],0))","v":1}]
[null,null,48,68,2.58618219750818E-2,{"$f":"_xlfn.RANK.EQ(TablaAleatoria[[#This Row],[Aleatorio]],TablaAleatoria[Aleatorio],0)","v":62},{"$f":"INDEX(TablaAleatoria[Celda],MATCH(TablaAleatoria[[#This Row],[Número]],TablaAleatoria['#],0))","v":86},1,{"$f":"INDEX(TablaAleatoria[Color1],MATCH(TablaAleatoria[[#This Row],[Casilla]],TablaAleatoria[Celda],0))","v":1}]
[null,null,49,71,0.35338272278311167,{"$f":"_xlfn.RANK.EQ(TablaAleatoria[[#This Row],[Aleatorio]],TablaAleatoria[Aleatorio],0)","v":44},{"$f":"INDEX(TablaAleatoria[Celda],MATCH(TablaAleatoria[[#This Row],[Número]],TablaAleatoria['#],0))","v":64},1,{"$f":"INDEX(TablaAleatoria[Color1],MATCH(TablaAleatoria[[#This Row],[Casilla]],TablaAleatoria[Celda],0))","v":1}]
[null,null,50,72,0.96532575372643248,{"$f":"_xlfn.RANK.EQ(TablaAleatoria[[#This Row],[Aleatorio]],TablaAleatoria[Aleatorio],0)","v":4},{"$f":"INDEX(TablaAleatoria[Celda],MATCH(TablaAleatoria[[#This Row],[Número]],TablaAleatoria['#],0))","v":14},0,{"$f":"INDEX(TablaAleatoria[Color1],MATCH(TablaAleatoria[[#This Row],[Casilla]],TablaAleatoria[Celda],0))","v":0}]
[null,null,51,73,0.23319938309613752,{"$f":"_xlfn.RANK.EQ(TablaAleatoria[[#This Row],[Aleatorio]],TablaAleatoria[Aleatorio],0)","v":53},{"$f":"INDEX(TablaAleatoria[Celda],MATCH(TablaAleatoria[[#This Row],[Número]],TablaAleatoria['#],0))","v":75},1,{"$f":"INDEX(TablaAleatoria[Color1],MATCH(TablaAleatoria[[#This Row],[Casilla]],TablaAleatoria[Celda],0))","v":1}]
[null,null,52,74,0.78865500034972469,{"$f":"_xlfn.RANK.EQ(TablaAleatoria[[#This Row],[Aleatorio]],TablaAleatoria[Aleatorio],0)","v":13},{"$f":"INDEX(TablaAleatoria[Celda],MATCH(TablaAleatoria[[#This Row],[Número]],TablaAleatoria['#],0))","v":25},0,{"$f":"INDEX(TablaAleatoria[Color1],MATCH(TablaAleatoria[[#This Row],[Casilla]],TablaAleatoria[Celda],0))","v":0}]
[null,null,53,75,0.6384162846800514,{"$f":"_xlfn.RANK.EQ(TablaAleatoria[[#This Row],[Aleatorio]],TablaAleatoria[Aleatorio],0)","v":23},{"$f":"INDEX(TablaAleatoria[Celda],MATCH(TablaAleatoria[[#This Row],[Número]],TablaAleatoria['#],0))","v":37},1,{"$f":"INDEX(TablaAleatoria[Color1],MATCH(TablaAleatoria[[#This Row],[Casilla]],TablaAleatoria[Celda],0))","v":1}]
[null,null,54,76,0.49149766672242001,{"$f":"_xlfn.RANK.EQ(TablaAleatoria[[#This Row],[Aleatorio]],TablaAleatoria[Aleatorio],0)","v":33},{"$f":"INDEX(TablaAleatoria[Celda],MATCH(TablaAleatoria[[#This Row],[Número]],TablaAleatoria['#],0))","v":51},0,{"$f":"INDEX(TablaAleatoria[Color1],MATCH(TablaAleatoria[[#This Row],[Casilla]],TablaAleatoria[Celda],0))","v":1}]
[null,null,55,77,0.45413023397751018,{"$f":"_xlfn.RANK.EQ(TablaAleatoria[[#This Row],[Aleatorio]],TablaAleatoria[Aleatorio],0)","v":38},{"$f":"INDEX(TablaAleatoria[Celda],MATCH(TablaAleatoria[[#This Row],[Número]],TablaAleatoria['#],0))","v":56},1,{"$f":"INDEX(TablaAleatoria[Color1],MATCH(TablaAleatoria[[#This Row],[Casilla]],TablaAleatoria[Celda],0))","v":0}]
[null,null,56,78,0.24117160445505503,{"$f":"_xlfn.RANK.EQ(TablaAleatoria[[#This Row],[Aleatorio]],TablaAleatoria[Aleatorio],0)","v":52},{"$f":"INDEX(TablaAleatoria[Celda],MATCH(TablaAleatoria[[#This Row],[Número]],TablaAleatoria['#],0))","v":74},0,{"$f":"INDEX(TablaAleatoria[Color1],MATCH(TablaAleatoria[[#This Row],[Casilla]],TablaAleatoria[Celda],0))","v":0}]
[null,null,57,81,0.25701516263195046,{"$f":"_xlfn.RANK.EQ(TablaAleatoria[[#This Row],[Aleatorio]],TablaAleatoria[Aleatorio],0)","v":50},{"$f":"INDEX(TablaAleatoria[Celda],MATCH(TablaAleatoria[[#This Row],[Número]],TablaAleatoria['#],0))","v":72},0,{"$f":"INDEX(TablaAleatoria[Color1],MATCH(TablaAleatoria[[#This Row],[Casilla]],TablaAleatoria[Celda],0))","v":0}]
[null,null,58,82,2.1991868656322744E-2,{"$f":"_xlfn.RANK.EQ(TablaAleatoria[[#This Row],[Aleatorio]],TablaAleatoria[Aleatorio],0)","v":63},{"$f":"INDEX(TablaAleatoria[Celda],MATCH(TablaAleatoria[[#This Row],[Número]],TablaAleatoria['#],0))","v":87},1,{"$f":"INDEX(TablaAleatoria[Color1],MATCH(TablaAleatoria[[#This Row],[Casilla]],TablaAleatoria[Celda],0))","v":0}]
[null,null,59,83,0.3240680277826401,{"$f":"_xlfn.RANK.EQ(TablaAleatoria[[#This Row],[Aleatorio]],TablaAleatoria[Aleatorio],0)","v":45},{"$f":"INDEX(TablaAleatoria[Celda],MATCH(TablaAleatoria[[#This Row],[Número]],TablaAleatoria['#],0))","v":65},0,{"$f":"INDEX(TablaAleatoria[Color1],MATCH(TablaAleatoria[[#This Row],[Casilla]],TablaAleatoria[Celda],0))","v":0}]
[null,null,60,84,0.60830228948184839,{"$f":"_xlfn.RANK.EQ(TablaAleatoria[[#This Row],[Aleatorio]],TablaAleatoria[Aleatorio],0)","v":25},{"$f":"INDEX(TablaAleatoria[Celda],MATCH(TablaAleatoria[[#This Row],[Número]],TablaAleatoria['#],0))","v":41},1,{"$f":"INDEX(TablaAleatoria[Color1],MATCH(TablaAleatoria[[#This Row],[Casilla]],TablaAleatoria[Celda],0))","v":0}]
[null,null,61,85,0.27287957395893658,{"$f":"_xlfn.RANK.EQ(TablaAleatoria[[#This Row],[Aleatorio]],TablaAleatoria[Aleatorio],0)","v":47},{"$f":"INDEX(TablaAleatoria[Celda],MATCH(TablaAleatoria[[#This Row],[Número]],TablaAleatoria['#],0))","v":67},0,{"$f":"INDEX(TablaAleatoria[Color1],MATCH(TablaAleatoria[[#This Row],[Casilla]],TablaAleatoria[Celda],0))","v":0}]
[null,null,62,86,0.98479302438600047,{"$f":"_xlfn.RANK.EQ(TablaAleatoria[[#This Row],[Aleatorio]],TablaAleatoria[Aleatorio],0)","v":1},{"$f":"INDEX(TablaAleatoria[Celda],MATCH(TablaAleatoria[[#This Row],[Número]],TablaAleatoria['#],0))","v":11},1,{"$f":"INDEX(TablaAleatoria[Color1],MATCH(TablaAleatoria[[#This Row],[Casilla]],TablaAleatoria[Celda],0))","v":1}]
[null,null,63,87,0.50345429109463535,{"$f":"_xlfn.RANK.EQ(TablaAleatoria[[#This Row],[Aleatorio]],TablaAleatoria[Aleatorio],0)","v":30},{"$f":"INDEX(TablaAleatoria[Celda],MATCH(TablaAleatoria[[#This Row],[Número]],TablaAleatoria['#],0))","v":46},0,{"$f":"INDEX(TablaAleatoria[Color1],MATCH(TablaAleatoria[[#This Row],[Casilla]],TablaAleatoria[Celda],0))","v":1}]
[null,null,64,88,0.98043865514572448,{"$f":"_xlfn.RANK.EQ(TablaAleatoria[[#This Row],[Aleatorio]],TablaAleatoria[Aleatorio],0)","v":2},{"$f":"INDEX(TablaAleatoria[Celda],MATCH(TablaAleatoria[[#This Row],[Número]],TablaAleatoria['#],0))","v":12},1,{"$f":"INDEX(TablaAleatoria[Color1],MATCH(TablaAleatoria[[#This Row],[Casilla]],TablaAleatoria[Celda],0))","v":0}]

{"sheet":"Reglas","index":3,"n_rows":58,"n_cols":46,"rows_kept":58,"cut":false,"hidden":false,"merged":[]}
["T",{"$f":"miTestPieza","v":0},{"$f":"miTestPos","v":0},{"$f":"MID(B1,2,1)","v":""},{"$f":"IF(D1=\"b\",\"n\",\"b\")","v":"b"},null,"A",{"$f":"miTestPieza","v":0},{"$f":"miTestPos","v":0},{"$f":"MID(H1,2,1)","v":""},{"$f":"IF(J1=\"b\",\"n\",\"b\")","v":"b"},null,{"$f":"D1","v":""},"D",null,"R",{"$f":"miTestPieza","v":0},{"$f":"miTestPos","v":0},{"$f":"MID(Q1,2,1)","v":""},{"$f":"IF(S1=\"b\",\"n\",\"b\")","v":"b"},1,null,null,"C",{"$f":"miTestPieza","v":0},{"$f":"miTestPos","v":0},{"$f":"MID(Y1,2,1)","v":""},{"$f":"IF(AA1=\"b\",\"n\",\"b\")","v":"b"},null,"P",{"$f":"miTestPieza","v":0},{"$f":"miTestPos","v":0},{"$f":"MID(AE1,2,1)","v":""},{"$f":"IF(AG1=\"b\",\"n\",\"b\")","v":"b"},null,"T","A","D","R","C","P",null,null,"Vale","PosA","Ambiguo"]
["Suma","Nueva","Fuera","Contra","Válida",null,"Suma","Nueva","Fuera","Contra","Válida",null,"Contra","Válida",null,"Suma","Nueva","Fuera","Contra","Válida","Test","Jaque",null,"Suma","Nueva","Fuera","Contra","Válida",null,"Suma","Nueva","Fuera","Contra","Válida",null,null,null,null,null,null,null,{"$f":"IF(miMate=1,0,IFERROR(MATCH(LEFT(miTestPieza),$AJ$1:$AO$1,0),0))","v":0},{"$f":"COUNTIF(misJaques,\"=\" & LEFT(miTestPieza) & IF(MID(miTestPieza,2,1)=\"b\",\"n\",\"b\") & \"*\")","v":0},{"$f":"IF(miPromoción<>\"\",1,IF(COUNTIF(misMarcas,\"=?*\")=0,-1,IF(IFERROR(MATCH(miPosB,misJugadasVálidas,0),0)>0,1,0)))","v":-1},{"$f":"miPosA","v":0},{"$f":"MAX($AT$3:$AT$7)","v":0}]
[10,{"$f":"IF(OR(miTestPieza=0,miTestPos=0,miTestPos+A3>88),\"\",miTestPos+A3)","v":""},{"$f":"IF(B3=\"\",\"\",IF(OR(--LEFT(B3)>8,--RIGHT(B3)>8,--LEFT(B3)<1,--RIGHT(B3)<1),\"\",B3))","v":""},{"$f":"IFERROR(INDEX(misSeriesPiezas,MATCH(C3,misPosicionesNuevas,0)),C3)","v":""},{"$f":"IF(OR(MID(D3,2,1)=$D$1,miEnroqueT=1),\"\",C3)","v":""},null,11,{"$f":"IF(OR(miTestPieza=0,miTestPos=0,miTestPos+G3>88),\"\",miTestPos+G3)","v":""},{"$f":"IF(H3=\"\",\"\",IF(OR(--LEFT(H3)>8,--RIGHT(H3)>8,--LEFT(H3)<1,--RIGHT(H3)<1),\"\",H3))","v":""},{"$f":"IFERROR(INDEX(misSeriesPiezas,MATCH(I3,misPosicionesNuevas,0)),I3)","v":""},{"$f":"IF(OR(MID(J3,2,1)=$J$1,miEnroqueT=1),\"\",I3)","v":""},null,{"$f":"D3","v":""},"",null,10,{"$f":"IF(OR(miTestPieza=0,miTestPos=0,miTestPos+P3>88),\"\",miTestPos+P3)","v":""},{"$f":"IF(Q3=\"\",\"\",IF(OR(--LEFT(Q3)>8,--RIGHT(Q3)>8,--LEFT(Q3)<1,--RIGHT(Q3)<1),\"\",Q3))","v":""},{"$f":"IFERROR(INDEX(misSeriesPiezas,MATCH(R3,misPosicionesNuevas,0)),R3)","v":""},{"$f":"IF(OR(MID(S3,2,1)=$S$1,miEnroqueT=1,AND(miTestJaque=1,V3<>\"\")),\"\",R3)","v":""},"Rn",null,null,21,{"$f":"IF(OR(miTestPieza=0,miTestPos=0,miTestPos+X3>88),\"\",miTestPos+X3)","v":""},{"$f":"IF(Y3=\"\",\"\",IF(OR(--LEFT(Y3)>8,--RIGHT(Y3)>8,--LEFT(Y3)<1,--RIGHT(Y3)<1),\"\",Y3))","v":""},{"$f":"IFERROR(INDEX(misSeriesPiezas,MATCH(Z3,misPosicionesNuevas,0)),Z3)","v":""},{"$f":"IF(OR(MID(AA3,2,1)=$AA$1,miEnroqueT=1),\"\",Z3)","v":""},null,1,{"$f":"IF(OR(miTestPieza=0,miTestPos=0,miTestPos+AD3>88),\"\",miTestPos+AD3)","v":""},{"$f":"IF(AE3=\"\",\"\",IF(OR(--LEFT(AE3)>8,--RIGHT(AE3)>8,--LEFT(AE3)<1,--RIGHT(AE3)<1),\"\",AE3))","v":""},{"$f":"IFERROR(INDEX(misSeriesPiezas,MATCH(AF3,misPosicionesNuevas,0)),AF3)","v":""},{"$f":"IF(OR($AG$1=\"n\",MID(AG3,2,1)=\"n\",MID(AG3,2,1)=\"b\",miEnroqueT=1),\"\",AF3)","v":""},null,{"$f":"E3","v":""},{"$f":"K3","v":""},{"$f":"N3","v":""},{"$f":"T3","v":""},{"$f":"AB3","v":""},{"$f":"AH3","v":""},{"$f":"IF($AP$2=0,\"\",SUBSTITUTE(INDEX(AJ3:AO3,$AP$2),0,\"\"))","v":""},{"$f":"IFERROR(INDEX(misSeriesPiezas,MATCH(--AP3,misPosicionesNuevas,0)),\"\")","v":""},null,{"$f":"IFERROR(INDEX(misPosicionesNuevas,MATCH(SUBSTITUTE(IF(LEFT(miTestPieza)=\"C\",IFERROR(INDEX($AA$3:$AA$10,MATCH(LEFT(miTestPieza) & $AA$1 & \"*\",$AA$3:$AA$10,0)),\"\"),\"\"),miTestPieza,\"\"),misSeriesPiezas,0)),\"\")","v":""},{"$f":"AS3","v":""}]
[20,"","","",{"$f":"IF(OR(D3=\"\",E3=\"\",MID(D4,2,1)=$D$1,MID(D3,2,1)=$E$1,miEnroqueT=1),\"\",C4)","v":""},null,22,"","","",{"$f":"IF(OR(J3=\"\",K3=\"\",MID(J4,2,1)=$J$1,MID(J3,2,1)=$K$1,miEnroqueT=1),\"\",I4)","v":""},null,"","",null,20,{"$f":"IF(OR(miTestPieza=0,miTestPos=0,miTestPos+P4>88),\"\",miTestPos+P4)","v":""},{"$f":"IF(Q4=\"\",\"\",IF(OR(--LEFT(Q4)>8,--RIGHT(Q4)>8,--LEFT(Q4)<1,--RIGHT(Q4)<1),\"\",Q4))","v":""},"",{"$f":"IF(OR(S3=\"\",T3=\"\",MID(S4,2,1)=$S$1,MID(S3,2,1)=$T$1,IF($S$1=\"b\",miEnroqueCortoTb=0,miEnroqueCortoTn=0),MID($D$6,2,1)=\"b\",MID($D$6,2,1)=\"n\",AND(miTestJaque=1,V4<>\"\"),miJaque<>\"\"),\"\",R4)","v":""},68,null,null,-21,{"$f":"IF(OR(miTestPieza=0,miTestPos=0,miTestPos+X4<11),\"\",miTestPos+X4)","v":""},"","","",null,2,{"$f":"IF(OR(miTestPieza=0,miTestPos=0,miTestPos+AD4<11),\"\",miTestPos+AD4)","v":""},"","",{"$f":"IF(OR($AG$1=\"n\",AH3=\"\",MID(AG4,2,1)=\"b\",MID(AG4,2,1)=\"n\",RIGHT(miTestPos)<>\"2\",miEnroqueT=1),\"\",AF4)","v":""},null,"","","",{"$f":"T5","v":""},"","",{"$f":"IF($AP$2=0,\"\",SUBSTITUTE(INDEX(AJ4:AO4,$AP$2),0,\"\"))","v":""},"",null,{"$f":"IF(LEFT(miTestPieza)=\"T\",IFERROR(INDEX(misPosicionesNuevas,MATCH(LEFT(miTestPieza,2) & IF(--RIGHT(miTestPieza)=1,2,1),misSeriesPiezas,0)),\"\"),\"\")","v":""},{"$f":"IF(IF(RIGHT(miPosB)=RIGHT(AS4),SUMPRODUCT(--(RIGHT($C$3:$C$32)=RIGHT(AS4)),--(IFERROR(--$C$3:$C$32,0)>MIN(miPosB,AS4)),--(IFERROR(--$C$3:$C$32,0)<MAX(miPosB,AS4)),--($D$3:$D$32<>\"\"),--IF(ISNUMBER($D$3:$D$32),0,1)),IF(LEFT(miPosB)=LEFT(AS4),SUMPRODUCT(--(LEFT($C$3:$C$32)=LEFT(AS4)),--(IFERROR(--$C$3:$C$32,0)>MIN(miPosB,AS4)),--(IFERROR(--$C$3:$C$32,0)<MAX(miPosB,AS4)),--($D$3:$D$32<>\"\"),--IF(ISNUMBER($D$3:$D$32),0,1)),0))>0,\"\",\nIF(LEFT(miPosB)=LEFT(AS4),IF(LEFT(miPosA)=LEFT(AS4),IF(OR(miPosB>MAX(miPosA,AS4),miPosB<MIN(miPosA,AS4)),\"\",AS4),AS4),\nIF(RIGHT(miPosB)=RIGHT(AS4),IF(RIGHT(miPosA)=RIGHT(AS4),IF(OR(miPosB>MAX(miPosA,AS4),miPosB<MIN(miPosA,AS4)),\"\",AS4),AS4),\"\")))","v":""}]
[30,"","","","",null,33,"","","","",null,"","",null,-10,{"$f":"IF(OR(miTestPieza=0,miTestPos=0,miTestPos+P5<11),\"\",miTestPos+P5)","v":""},"","",{"$f":"IF(OR(MID(S5,2,1)=$S$1,miEnroqueT=1,AND(miTestJaque=1,V5<>\"\")),\"\",R5)","v":""},"An1",null,null,19,{"$f":"IF(OR(miTestPieza=0,miTestPos=0,miTestPos+X5>88),\"\",miTestPos+X5)","v":""},"","","",null,11,{"$f":"IF(OR(miTestPieza=0,miTestPos=0,miTestPos+AD5>88),\"\",miTestPos+AD5)","v":""},"","",{"$f":"IF($AG$1=\"b\",IF(OR(MID(AG5,2,1)=$AH$1,AND(LEFT(AF5)=$AH$11,$AG$11=\"n\",RIGHT(miTestPos)=\"5\")),IF(miEnroqueT=1,\"\",AF5),\"\"),\"\")","v":""},null,"","","",{"$f":"T7","v":""},"","",{"$f":"IF($AP$2=0,\"\",SUBSTITUTE(INDEX(AJ5:AO5,$AP$2),0,\"\"))","v":""},"",null,{"$f":"IFERROR(INDEX(misPosicionesNuevas,MATCH(SUBSTITUTE(IF(LEFT(miTestPieza)=\"A\",IFERROR(INDEX($J$3:$J$30,MATCH(LEFT(miTestPieza) & $J$1 & \"*\",$J$3:$J$30,0)),\"\"),\"\"),miTestPieza,\"\"),miSeriePieza,0))&\"\",\"\")","v":""},{"$f":"AS5","v":""}]
[40,"","","","",null,44,"","","","",null,"","",null,-20,{"$f":"IF(OR(miTestPieza=0,miTestPos=0,miTestPos+P6<11),\"\",miTestPos+P6)","v":""},"","",{"$f":"IF(OR(S5=\"\",T5=\"\",MID(S6,2,1)=$S$1,MID(S5,2,1)=$T$1,IF($S$1=\"b\",miEnroqueLargoTb=0,miEnroqueLargoTn=0),MID($D$12,2,1)=\"b\",MID($D$12,2,1)=\"n\",AND(miTestJaque=1,V6<>\"\"),miJaque<>\"\"),\"\",R6)","v":""},28,null,null,-19,{"$f":"IF(OR(miTestPieza=0,miTestPos=0,miTestPos+X6<11),\"\",miTestPos+X6)","v":""},"","","",null,-9,{"$f":"IF(OR(miTestPieza=0,miTestPos=0,miTestPos+AD6<11),\"\",miTestPos+AD6)","v":""},"","",{"$f":"IF($AG$1=\"b\",IF(OR(MID(AG6,2,1)=$AH$1,AND(LEFT(AF6)=$AH$11,$AG$11=\"n\",RIGHT(miTestPos)=\"5\")),IF(miEnroqueT=1,\"\",AF6),\"\"),\"\")","v":""},null,"","","","","","",{"$f":"IF($AP$2=0,\"\",SUBSTITUTE(INDEX(AJ6:AO6,$AP$2),0,\"\"))","v":""},"",null,{"$f":"IFERROR(INDEX(misPosicionesNuevas,MATCH(SUBSTITUTE(IF(LEFT(miTestPieza)=\"D\",IFERROR(INDEX($M$3:$M$58,MATCH(LEFT(miTestPieza) & $M$1 & \"*\",$M$3:$M$58,0)),\"\"),\"\"),miTestPieza,\"\"),miSeriePieza,0))&\"\",\"\")","v":""},""]
[50,"","","","",null,55,"","","","",null,"","",null,1,{"$f":"IF(OR(miTestPieza=0,miTestPos=0,miTestPos+P7>88),\"\",miTestPos+P7)","v":""},"","",{"$f":"IF(OR(MID(S7,2,1)=$S$1,miEnroqueT=1,AND(miTestJaque=1,V7<>\"\")),\"\",R7)","v":""},null,null,null,12,{"$f":"IF(OR(miTestPieza=0,miTestPos=0,miTestPos+X7>88),\"\",miTestPos+X7)","v":""},"","","",null,-1,{"$f":"IF(OR(miTestPieza=0,miTestPos=0,miTestPos+AD7>88),\"\",miTestPos+AD7)","v":""},"","",{"$f":"IF(OR($AG$1=\"b\",MID(AG7,2,1)=\"b\",MID(AG7,2,1)=\"n\",miEnroqueT=1),\"\",AF7)","v":""},null,"","","","","","",{"$f":"IF($AP$2=0,\"\",SUBSTITUTE(INDEX(AJ7:AO7,$AP$2),0,\"\"))","v":""},"",null,{"$f":"IFERROR(INDEX(misPosicionesNuevas,MATCH(SUBSTITUTE(IF(AND(LEFT(miTestPieza)=\"P\",miPosComida<>\"\"),IFERROR(INDEX($AG$3:$AG$10,MATCH(LEFT(miTestPieza) & $AG$1 & \"*\",$AG$3:$AG$10,0)),\"\"),\"\"),miTestPieza,\"\"),miSeriePieza,0))&\"\",\"\")","v":""},""]
[60,"","","","",null,66,"","","","",null,"","",null,-1,{"$f":"IF(OR(miTestPieza=0,miTestPos=0,miTestPos+P8<11),\"\",miTestPos+P8)","v":""},"","","","Pn4",null,null,-12,{"$f":"IF(OR(miTestPieza=0,miTestPos=0,miTestPos+X8<11),\"\",miTestPos+X8)","v":""},"","","",null,-2,{"$f":"IF(OR(miTestPieza=0,miTestPos=0,miTestPos+AD8<11),\"\",miTestPos+AD8)","v":""},"","",{"$f":"IF(OR($AG$1=\"b\",AH7=\"\",MID(AG8,2,1)=\"b\",MID(AG8,2,1)=\"n\",RIGHT(miTestPos)<>\"7\",miEnroqueT=1),\"\",AF8)","v":""},null,"","","","","","",{"$f":"IF($AP$2=0,\"\",SUBSTITUTE(INDEX(AJ8:AO8,$AP$2),0,\"\"))","v":""},""]
[70,"","","","",null,77,"","","","",null,"","",null,11,{"$f":"IF(OR(miTestPieza=0,miTestPos=0,miTestPos+P9>88),\"\",miTestPos+P9)","v":""},"","","",null,null,null,8,{"$f":"IF(OR(miTestPieza=0,miTestPos=0,miTestPos+X9>88),\"\",miTestPos+X9)","v":""},"","","",null,-11,{"$f":"IF(OR(miTestPieza=0,miTestPos=0,miTestPos+AD9>88),\"\",miTestPos+AD9)","v":""},"","",{"$f":"IF($AG$1=\"n\",IF(OR(MID(AG9,2,1)=$AH$1,AND(LEFT(AF9)=$AH$11,$AG$11=\"b\",RIGHT(miTestPos)=\"4\")),IF(miEnroqueT=1,\"\",AF9),\"\"),\"\")","v":""},null,"","","","","","",{"$f":"IF($AP$2=0,\"\",SUBSTITUTE(INDEX(AJ9:AO9,$AP$2),0,\"\"))","v":""},""]
[-10,{"$f":"IF(OR(miTestPieza=0,miTestPos=0,miTestPos+A10<11),\"\",miTestPos+A10)","v":""},"","",{"$f":"IF(OR(MID(D10,2,1)=$D$1,miEnroqueT=1),\"\",C10)","v":""},null,-11,{"$f":"IF(OR(miTestPieza=0,miTestPos=0,miTestPos+G10<11),\"\",miTestPos+G10)","v":""},"","",{"$f":"IF(OR(MID(J10,2,1)=$J$1,miEnroqueT=1),\"\",I10)","v":""},null,"","",null,-11,{"$f":"IF(OR(miTestPieza=0,miTestPos=0,miTestPos+P10<11),\"\",miTestPos+P10)","v":""},"","","","Pn3",null,null,-8,{"$f":"IF(OR(miTestPieza=0,miTestPos=0,miTestPos+X10<11),\"\",miTestPos+X10)","v":""},"","","",null,9,{"$f":"IF(OR(miTestPieza=0,miTestPos=0,miTestPos+AD10<11),\"\",miTestPos+AD10)","v":""},"","",{"$f":"IF($AG$1=\"n\",IF(OR(MID(AG10,2,1)=$AH$1,AND(LEFT(AF10)=$AH$11,$AG$11=\"b\",RIGHT(miTestPos)=\"4\")),IF(miEnroqueT=1,\"\",AF10),\"\"),\"\")","v":""},null,"","","","","","",{"$f":"IF($AP$2=0,\"\",SUBSTITUTE(INDEX(AJ10:AO10,$AP$2),0,\"\"))","v":""},""]
[-20,"","","",{"$f":"IF(OR(D10=\"\",E10=\"\",MID(D11,2,1)=$D$1,MID(D10,2,1)=$E$1,miEnroqueT=1),\"\",C11)","v":""},null,-22,"","","",{"$f":"IF(OR(J10=\"\",K10=\"\",MID(J11,2,1)=$J$1,MID(J10,2,1)=$K$1,miEnroqueT=1),\"\",I11)","v":""},null,"","",null,9,{"$f":"IF(OR(miTestPieza=0,miTestPos=0,miTestPos+P11>88),\"\",miTestPos+P11)","v":""},"","","",57,null,null,null,null,null,null,null,null,"Captura",{"$f":"IF(AND(LEFT(miTestPieza)=\"P\",ABS(miTestPos-miPosB)=2),1,0)","v":0},null,{"$f":"MID(miPeónPaso,2,1)","v":""},{"$f":"LEFT(IFERROR(INDEX(misPosicionesNuevas,MATCH(miPeónPaso,misSeriesPiezas,0)),\"\"))","v":""},null,"","","",{"$f":"T4","v":""},null,null,{"$f":"IF($AP$2=0,\"\",SUBSTITUTE(INDEX(AJ11:AO11,$AP$2),0,\"\"))","v":""},""]
[-30,"","","","",null,-33,"","","","",null,"","",null,-9,{"$f":"IF(OR(miTestPieza=0,miTestPos=0,miTestPos+P12<11),\"\",miTestPos+P12)","v":""},"","","",null,null,null,null,null,null,null,null,null,"al paso",{"$f":"IF(AND(LEFT(miTestPieza)=\"P\",OR(ABS(miTestPos-miPosB)=9,ABS(miTestPos-miPosB)=11)),1,0)","v":0},{"$f":"IF($AE$12=1,IFERROR(MATCH(miPeónPaso,misSeriesPiezas,0),0),0)","v":0},null,null,null,"","","",{"$f":"T6","v":""},null,null,{"$f":"IF($AP$2=0,\"\",SUBSTITUTE(INDEX(AJ12:AO12,$AP$2),0,\"\"))","v":""},""]
[-40,"","","","",null,-44,"","","","",null,"","",null,0,"TbL","TbC","TnL","TnC",null,"Mate",null,null,null,null,null,null,null,"Primeras 4 filas para Pb",null,null,null,null,null,"","","",null,null,null,{"$f":"IF($AP$2=0,\"\",SUBSTITUTE(INDEX(AJ13:AO13,$AP$2),0,\"\"))","v":""},""]
[-50,"","","","",null,-55,"","","","",null,"","",null,{"$f":"IF(AND(LEFT(miTestPieza)=\"R\",ABS(miTestPos-miPosB)=20),1,0)","v":0},0,0,0,0,null,0,null,null,null,null,null,null,null,"Segundas 4 filas para Pn",null,null,null,null,null,"","","",null,null,null,{"$f":"IF($AP$2=0,\"\",SUBSTITUTE(INDEX(AJ14:AO14,$AP$2),0,\"\"))","v":""},""]
[-60,"","","","",null,-66,"","","","",null,"","",null,"Enroque en filas 2, 4, 11 y 12",null,null,null,null,null,null,null,null,null,null,null,null,null,"Últimas 2 filas para",null,null,null,null,null,"","","",null,null,null,{"$f":"IF($AP$2=0,\"\",SUBSTITUTE(INDEX(AJ15:AO15,$AP$2),0,\"\"))","v":""},""]
[-70,"","","","",null,-77,"","","","",null,"","",null,"NOTA: El rey no puede estar,",null,null,null,null,null,null,null,null,null,null,null,null,null,"captura al paso del peón",null,null,null,null,null,"","","",null,null,null,{"$f":"IF($AP$2=0,\"\",SUBSTITUTE(INDEX(AJ16:AO16,$AP$2),0,\"\"))","v":""},""]
[1,{"$f":"IF(OR(miTestPieza=0,miTestPos=0,miTestPos+A17>88),\"\",miTestPos+A17)","v":""},"","",{"$f":"IF(OR(MID(D17,2,1)=$D$1,miEnroqueT=1),\"\",C17)","v":""},null,9,{"$f":"IF(OR(miTestPieza=0,miTestPos=0,miTestPos+G17>88),\"\",miTestPos+G17)","v":""},"","",{"$f":"IF(OR(MID(J17,2,1)=$J$1,miEnroqueT=1),\"\",I17)","v":""},null,"","",null,"pasar o ir a una casilla en jaque",null,null,null,null,null,null,null,null,null,null,null,null,null,null,null,null,null,null,null,"","","",null,null,null,{"$f":"IF($AP$2=0,\"\",SUBSTITUTE(INDEX(AJ17:AO17,$AP$2),0,\"\"))","v":""},""]
[2,"","","",{"$f":"IF(OR(D17=\"\",E17=\"\",MID(D18,2,1)=$D$1,MID(D17,2,1)=$E$1,miEnroqueT=1),\"\",C18)","v":""},null,18,"","","",{"$f":"IF(OR(J17=\"\",K17=\"\",MID(J18,2,1)=$J$1,MID(J17,2,1)=$K$1,miEnroqueT=1),\"\",I18)","v":""},null,"","",null,null,null,null,null,null,null,null,null,null,null,null,null,null,null,null,null,null,null,null,null,"","","",null,null,null,{"$f":"IF($AP$2=0,\"\",SUBSTITUTE(INDEX(AJ18:AO18,$AP$2),0,\"\"))","v":""},""]
[3,"","","","",null,27,"","","","",null,"","",null,null,null,null,null,null,null,null,null,null,null,null,null,null,null,null,null,null,null,null,null,"","","",null,null,null,{"$f":"IF($AP$2=0,\"\",SUBSTITUTE(INDEX(AJ19:AO19,$AP$2),0,\"\"))","v":""},""]
[4,"","","","",null,36,"","","","",null,"","",null,null,null,null,null,null,null,null,null,null,null,null,null,null,null,null,null,null,null,null,null,"","","",null,null,null,{"$f":"IF($AP$2=0,\"\",SUBSTITUTE(INDEX(AJ20:AO20,$AP$2),0,\"\"))","v":""},""]
[5,"","","","",null,45,"","","","",null,"","",null,null,null,null,null,null,null,null,null,null,null,null,null,null,null,null,null,null,null,null,null,"","","",null,null,null,{"$f":"IF($AP$2=0,\"\",SUBSTITUTE(INDEX(AJ21:AO21,$AP$2),0,\"\"))","v":""},""]
[6,"","","","",null,54,"","","","",null,"","",null,null,null,null,null,null,null,null,null,null,null,null,null,null,null,null,null,null,null,null,null,"","","",null,null,null,{"$f":"IF($AP$2=0,\"\",SUBSTITUTE(INDEX(AJ22:AO22,$AP$2),0,\"\"))","v":""},""]
[7,"","","","",null,63,"","","","",null,"","",null,null,null,null,null,null,null,null,null,null,null,null,null,null,null,null,null,null,null,null,null,"","","",null,null,null,{"$f":"IF($AP$2=0,\"\",SUBSTITUTE(INDEX(AJ23:AO23,$AP$2),0,\"\"))","v":""},""]
[-1,{"$f":"IF(OR(miTestPieza=0,miTestPos=0,miTestPos+A24<11),\"\",miTestPos+A24)","v":""},"","",{"$f":"IF(OR(MID(D24,2,1)=$D$1,miEnroqueT=1),\"\",C24)","v":""},null,-9,{"$f":"IF(OR(miTestPieza=0,miTestPos=0,miTestPos+G24<11),\"\",miTestPos+G24)","v":""},"","",{"$f":"IF(OR(MID(J24,2,1)=$J$1,miEnroqueT=1),\"\",I24)","v":""},null,"","",null,null,null,null,null,null,null,null,null,null,null,null,null,null,null,null,null,null,null,null,null,"","","",null,null,null,{"$f":"IF($AP$2=0,\"\",SUBSTITUTE(INDEX(AJ24:AO24,$AP$2),0,\"\"))","v":""},""]
[-2,"","","",{"$f":"IF(OR(D24=\"\",E24=\"\",MID(D25,2,1)=$D$1,MID(D24,2,1)=$E$1,miEnroqueT=1),\"\",C25)","v":""},null,-18,"","","",{"$f":"IF(OR(J24=\"\",K24=\"\",MID(J25,2,1)=$J$1,MID(J24,2,1)=$K$1,miEnroqueT=1),\"\",I25)","v":""},null,"","",null,null,null,null,null,null,null,null,null,null,null,null,null,null,null,null,null,null,null,null,null,"","","",null,null,null,{"$f":"IF($AP$2=0,\"\",SUBSTITUTE(INDEX(AJ25:AO25,$AP$2),0,\"\"))","v":""},""]
[-3,"","","","",null,-27,"","","","",null,"","",null,null,null,null,null,null,null,null,null,null,null,null,null,null,null,null,null,null,null,null,null,"","","",null,null,null,{"$f":"IF($AP$2=0,\"\",SUBSTITUTE(INDEX(AJ26:AO26,$AP$2),0,\"\"))","v":""},""]
[-4,"","","","",null,-36,"","","","",null,"","",null,null,null,null,null,null,null,null,null,null,null,null,null,null,null,null,null,null,null,null,null,"","","",null,null,null,{"$f":"IF($AP$2=0,\"\",SUBSTITUTE(INDEX(AJ27:AO27,$AP$2),0,\"\"))","v":""},""]
[-5,"","","","",null,-45,"","","","",null,"","",null,null,null,null,null,null,null,null,null,null,null,null,null,null,null,null,null,null,null,null,null,"","","",null,null,null,{"$f":"IF($AP$2=0,\"\",SUBSTITUTE(INDEX(AJ28:AO28,$AP$2),0,\"\"))","v":""},""]
[-6,"","","","",null,-54,"","","","",null,"","",null,null,null,null,null,null,null,null,null,null,null,null,null,null,null,null,null,null,null,null,null,"","","",null,null,null,{"$f":"IF($AP$2=0,\"\",SUBSTITUTE(INDEX(AJ29:AO29,$AP$2),0,\"\"))","v":""},""]
[-7,"","","","",null,-63,"","","","",null,"","",null,null,null,null,null,null,null,null,null,null,null,null,null,null,null,null,null,null,null,null,null,"","","",null,null,null,{"$f":"IF($AP$2=0,\"\",SUBSTITUTE(INDEX(AJ30:AO30,$AP$2),0,\"\"))","v":""},""]
[30,{"$f":"IF(OR(miTestPieza=0,miTestPos=0,miTestPos+A31>88),\"\",miTestPos+A31)","v":""},"","",{"$f":"IF(OR(MID(D31,2,1)=$D$1,miEnroqueT=0),\"\",C31)","v":""},null,null,null,null,null,null,null,{"$f":"D31","v":""},{"$f":"K3","v":""},null,null,null,null,null,null,null,null,null,null,null,null,null,null,null,null,null,null,null,null,null,"",null,"",null,null,null,{"$f":"IF($AP$2=0,\"\",SUBSTITUTE(INDEX(AJ31:AO31,$AP$2),0,\"\"))","v":""},""]
[-20,{"$f":"IF(OR(miTestPieza=0,miTestPos=0,miTestPos+A32<11),\"\",miTestPos+A32)","v":""},"","",{"$f":"IF(OR(MID(D32,2,1)=$D$1,miEnroqueT=0),\"\",C32)","v":""},null,null,null,null,null,null,null,"","",null,null,null,null,null,null,null,null,null,null,null,null,null,null,null,null,null,null,null,null,null,"",null,"",null,null,null,{"$f":"IF($AP$2=0,\"\",SUBSTITUTE(INDEX(AJ32:AO32,$AP$2),0,\"\"))","v":""},""]
["Últimas 2 filas para enroque ",null,null,null,null,null,null,null,null,null,null,null,"","",null,null,null,null,null,null,null,null,null,null,null,null,null,null,null,null,null,null,null,null,null,null,null,"",null,null,null,{"$f":"IF($AP$2=0,\"\",SUBSTITUTE(INDEX(AJ33:AO33,$AP$2),0,\"\"))","v":""},""]
[null,null,null,null,null,null,null,null,null,null,null,null,"","",null,null,null,null,null,null,null,null,null,null,null,null,null,null,null,null,null,null,null,null,null,null,null,"",null,null,null,{"$f":"IF($AP$2=0,\"\",SUBSTITUTE(INDEX(AJ34:AO34,$AP$2),0,\"\"))","v":""},""]
[null,null,null,null,null,null,null,null,null,null,null,null,"","",null,null,null,null,null,null,null,null,null,null,null,null,null,null,null,null,null,null,null,null,null,null,null,{"$f":"N35","v":""},null,null,null,{"$f":"IF($AP$2=0,\"\",SUBSTITUTE(INDEX(AJ35:AO35,$AP$2),0,\"\"))","v":""},{"$f":"IFERROR(INDEX(misSeriesPiezas,MATCH(--AP35,misPosicionesNuevas,0)),\"\")","v":""}]
[null,null,null,null,null,null,null,null,null,null,null,null,"","",null,null,null,null,null,null,null,null,null,null,null,null,null,null,null,null,null,null,null,null,null,null,null,"",null,null,null,{"$f":"IF($AP$2=0,\"\",SUBSTITUTE(INDEX(AJ36:AO36,$AP$2),0,\"\"))","v":""},""]
[null,null,null,null,null,null,null,null,null,null,null,null,"","",null,null,null,null,null,null,null,null,null,null,null,null,null,null,null,null,null,null,null,null,null,null,null,"",null,null,null,{"$f":"IF($AP$2=0,\"\",SUBSTITUTE(INDEX(AJ37:AO37,$AP$2),0,\"\"))","v":""},""]
[null,null,null,null,null,null,null,null,null,null,null,null,"","",null,null,null,null,null,null,null,null,null,null,null,null,null,null,null,null,null,null,null,null,null,null,null,"",null,null,null,{"$f":"IF($AP$2=0,\"\",SUBSTITUTE(INDEX(AJ38:AO38,$AP$2),0,\"\"))","v":""},""]
[null,null,null,null,null,null,null,null,null,null,null,null,"","",null,null,null,null,null,null,null,null,null,null,null,null,null,null,null,null,null,null,null,null,null,null,null,"",null,null,null,{"$f":"IF($AP$2=0,\"\",SUBSTITUTE(INDEX(AJ39:AO39,$AP$2),0,\"\"))","v":""},""]
[null,null,null,null,null,null,null,null,null,null,null,null,"","",null,null,null,null,null,null,null,null,null,null,null,null,null,null,null,null,null,null,null,null,null,null,null,"",null,null,null,{"$f":"IF($AP$2=0,\"\",SUBSTITUTE(INDEX(AJ40:AO40,$AP$2),0,\"\"))","v":""},""]
[null,null,null,null,null,null,null,null,null,null,null,null,"","",null,null,null,null,null,null,null,null,null,null,null,null,null,null,null,null,null,null,null,null,null,null,null,"",null,null,null,{"$f":"IF($AP$2=0,\"\",SUBSTITUTE(INDEX(AJ41:AO41,$AP$2),0,\"\"))","v":""},""]
[null,null,null,null,null,null,null,null,null,null,null,null,"","",null,null,null,null,null,null,null,null,null,null,null,null,null,null,null,null,null,null,null,null,null,null,null,"",null,null,null,{"$f":"IF($AP$2=0,\"\",SUBSTITUTE(INDEX(AJ42:AO42,$AP$2),0,\"\"))","v":""},""]
[null,null,null,null,null,null,null,null,null,null,null,null,"","",null,null,null,null,null,null,null,null,null,null,null,null,null,null,null,null,null,null,null,null,null,null,null,"",null,null,null,{"$f":"IF($AP$2=0,\"\",SUBSTITUTE(INDEX(AJ43:AO43,$AP$2),0,\"\"))","v":""},""]
[null,null,null,null,null,null,null,null,null,null,null,null,"","",null,null,null,null,null,null,null,null,null,null,null,null,null,null,null,null,null,null,null,null,null,null,null,"",null,null,null,{"$f":"IF($AP$2=0,\"\",SUBSTITUTE(INDEX(AJ44:AO44,$AP$2),0,\"\"))","v":""},""]
[null,null,null,null,null,null,null,null,null,null,null,null,"","",null,null,null,null,null,null,null,null,null,null,null,null,null,null,null,null,null,null,null,null,null,null,null,"",null,null,null,{"$f":"IF($AP$2=0,\"\",SUBSTITUTE(INDEX(AJ45:AO45,$AP$2),0,\"\"))","v":""},""]
[null,null,null,null,null,null,null,null,null,null,null,null,"","",null,null,null,null,null,null,null,null,null,null,null,null,null,null,null,null,null,null,null,null,null,null,null,"",null,null,null,{"$f":"IF($AP$2=0,\"\",SUBSTITUTE(INDEX(AJ46:AO46,$AP$2),0,\"\"))","v":""},""]
[null,null,null,null,null,null,null,null,null,null,null,null,"","",null,null,null,null,null,null,null,null,null,null,null,null,null,null,null,null,null,null,null,null,null,null,null,"",null,null,null,{"$f":"IF($AP$2=0,\"\",SUBSTITUTE(INDEX(AJ47:AO47,$AP$2),0,\"\"))","v":""},""]
[null,null,null,null,null,null,null,null,null,null,null,null,"","",null,null,null,null,null,null,null,null,null,null,null,null,null,null,null,null,null,null,null,null,null,null,null,"",null,null,null,{"$f":"IF($AP$2=0,\"\",SUBSTITUTE(INDEX(AJ48:AO48,$AP$2),0,\"\"))","v":""},""]
[null,null,null,null,null,null,null,null,null,null,null,null,"","",null,null,null,null,null,null,null,null,null,null,null,null,null,null,null,null,null,null,null,null,null,null,null,"",null,null,null,{"$f":"IF($AP$2=0,\"\",SUBSTITUTE(INDEX(AJ49:AO49,$AP$2),0,\"\"))","v":""},""]
[null,null,null,null,null,null,null,null,null,null,null,null,"","",null,null,null,null,null,null,null,null,null,null,null,null,null,null,null,null,null,null,null,null,null,null,null,"",null,null,null,{"$f":"IF($AP$2=0,\"\",SUBSTITUTE(INDEX(AJ50:AO50,$AP$2),0,\"\"))","v":""},""]
[null,null,null,null,null,null,null,null,null,null,null,null,"","",null,null,null,null,null,null,null,null,null,null,null,null,null,null,null,null,null,null,null,null,null,null,null,"",null,null,null,{"$f":"IF($AP$2=0,\"\",SUBSTITUTE(INDEX(AJ51:AO51,$AP$2),0,\"\"))","v":""},""]
[null,null,null,null,null,null,null,null,null,null,null,null,"","",null,null,null,null,null,null,null,null,null,null,null,null,null,null,null,null,null,null,null,null,null,null,null,"",null,null,null,{"$f":"IF($AP$2=0,\"\",SUBSTITUTE(INDEX(AJ52:AO52,$AP$2),0,\"\"))","v":""},""]
[null,null,null,null,null,null,null,null,null,null,null,null,"","",null,null,null,null,null,null,null,null,null,null,null,null,null,null,null,null,null,null,null,null,null,null,null,"",null,null,null,{"$f":"IF($AP$2=0,\"\",SUBSTITUTE(INDEX(AJ53:AO53,$AP$2),0,\"\"))","v":""},""]
[null,null,null,null,null,null,null,null,null,null,null,null,"","",null,null,null,null,null,null,null,null,null,null,null,null,null,null,null,null,null,null,null,null,null,null,null,"",null,null,null,{"$f":"IF($AP$2=0,\"\",SUBSTITUTE(INDEX(AJ54:AO54,$AP$2),0,\"\"))","v":""},""]
[null,null,null,null,null,null,null,null,null,null,null,null,"","",null,null,null,null,null,null,null,null,null,null,null,null,null,null,null,null,null,null,null,null,null,null,null,"",null,null,null,{"$f":"IF($AP$2=0,\"\",SUBSTITUTE(INDEX(AJ55:AO55,$AP$2),0,\"\"))","v":""},""]
[null,null,null,null,null,null,null,null,null,null,null,null,"","",null,null,null,null,null,null,null,null,null,null,null,null,null,null,null,null,null,null,null,null,null,null,null,"",null,null,null,{"$f":"IF($AP$2=0,\"\",SUBSTITUTE(INDEX(AJ56:AO56,$AP$2),0,\"\"))","v":""},""]
[null,null,null,null,null,null,null,null,null,null,null,null,"","",null,null,null,null,null,null,null,null,null,null,null,null,null,null,null,null,null,null,null,null,null,null,null,"",null,null,null,{"$f":"IF($AP$2=0,\"\",SUBSTITUTE(INDEX(AJ57:AO57,$AP$2),0,\"\"))","v":""},""]
[null,null,null,null,null,null,null,null,null,null,null,null,"","",null,null,null,null,null,null,null,null,null,null,null,null,null,null,null,null,null,null,null,null,null,null,null,"",null,null,null,{"$f":"IF($AP$2=0,\"\",SUBSTITUTE(INDEX(AJ58:AO58,$AP$2),0,\"\"))","v":""},""]

{"sheet":"Lecciones","index":4,"n_rows":213,"n_cols":8,"rows_kept":213,"cut":false,"hidden":false,"merged":[]}
["Lecciones","Frases",null,"#","Lección","Temas","Progreso","Porcentaje"]
["1.0","Aprende ajedrez",null,0,"Todas las lecciones",{"$f":"MAX(IFERROR(--SUBSTITUTE(\" \"&TablaLecciones[Lecciones],\" \"&TablaListaLecciones[[#This Row],['#]]&\".\",\"\"),0))","v":0},0,{"$f":"IFERROR(1-(TablaListaLecciones[[#This Row],[Temas]]-TablaListaLecciones[[#This Row],[Progreso]])/TablaListaLecciones[[#This Row],[Temas]],1)","v":1}]
["1.1","Aprende ajedrez tú, o tus compañeros de clase, con esta aplicación diseñada totalmente con Excel.",null,1,{"$f":"VLOOKUP(TablaListaLecciones[[#This Row],['#]]&\".0\",TablaLecciones[],2,FALSE)","v":"Aprende ajedrez"},{"$f":"MAX(IFERROR(--SUBSTITUTE(\" \"&TablaLecciones[Lecciones],\" \"&TablaListaLecciones[[#This Row],['#]]&\".\",\"\"),0))","v":7},0,{"$f":"IFERROR(1-(TablaListaLecciones[[#This Row],[Temas]]-TablaListaLecciones[[#This Row],[Progreso]])/TablaListaLecciones[[#This Row],[Temas]],1)","v":0}]
["1.2","Toca la celda O5 para escuchar las lecciones: si se ve una oreja, puedes escucharlas y leerlas; si se ve un ojo, solamente puedes leerlas.",null,2,{"$f":"VLOOKUP(TablaListaLecciones[[#This Row],['#]]&\".0\",TablaLecciones[],2,FALSE)","v":"Ajedrez con Excel"},{"$f":"MAX(IFERROR(--SUBSTITUTE(\" \"&TablaLecciones[Lecciones],\" \"&TablaListaLecciones[[#This Row],['#]]&\".\",\"\"),0))","v":7},0,{"$f":"IFERROR(1-(TablaListaLecciones[[#This Row],[Temas]]-TablaListaLecciones[[#This Row],[Progreso]])/TablaListaLecciones[[#This Row],[Temas]],1)","v":0}]
["1.3","Mientras aprendes las lecciones puedes tocar cualquier casilla del tablero o una de las piezas del ajedrez.",null,3,{"$f":"VLOOKUP(TablaListaLecciones[[#This Row],['#]]&\".0\",TablaLecciones[],2,FALSE)","v":"El tablero"},{"$f":"MAX(IFERROR(--SUBSTITUTE(\" \"&TablaLecciones[Lecciones],\" \"&TablaListaLecciones[[#This Row],['#]]&\".\",\"\"),0))","v":14},0,{"$f":"IFERROR(1-(TablaListaLecciones[[#This Row],[Temas]]-TablaListaLecciones[[#This Row],[Progreso]])/TablaListaLecciones[[#This Row],[Temas]],1)","v":0}]
["1.4","Toca cualquier celda con fondo amarillo para conocer y probar las novedosas características de esta aplicación. ",null,4,{"$f":"VLOOKUP(TablaListaLecciones[[#This Row],['#]]&\".0\",TablaLecciones[],2,FALSE)","v":"Los Reyes"},{"$f":"MAX(IFERROR(--SUBSTITUTE(\" \"&TablaLecciones[Lecciones],\" \"&TablaListaLecciones[[#This Row],['#]]&\".\",\"\"),0))","v":18},0,{"$f":"IFERROR(1-(TablaListaLecciones[[#This Row],[Temas]]-TablaListaLecciones[[#This Row],[Progreso]])/TablaListaLecciones[[#This Row],[Temas]],1)","v":0}]
["1.5","Toca los botones del rango O6:O9 para ir a la lección: primera; anterior; siguiente o última.",null,5,{"$f":"VLOOKUP(TablaListaLecciones[[#This Row],['#]]&\".0\",TablaLecciones[],2,FALSE)","v":"Las Torres"},{"$f":"MAX(IFERROR(--SUBSTITUTE(\" \"&TablaLecciones[Lecciones],\" \"&TablaListaLecciones[[#This Row],['#]]&\".\",\"\"),0))","v":11},0,{"$f":"IFERROR(1-(TablaListaLecciones[[#This Row],[Temas]]-TablaListaLecciones[[#This Row],[Progreso]])/TablaListaLecciones[[#This Row],[Temas]],1)","v":0}]
["1.6","Toca los botones de abajo: botón izquierdo para repetir la lección; botón derecho para pausar o avanzar a la lección siguiente.",null,6,{"$f":"VLOOKUP(TablaListaLecciones[[#This Row],['#]]&\".0\",TablaLecciones[],2,FALSE)","v":"Los Alfiles"},{"$f":"MAX(IFERROR(--SUBSTITUTE(\" \"&TablaLecciones[Lecciones],\" \"&TablaListaLecciones[[#This Row],['#]]&\".\",\"\"),0))","v":10},0,{"$f":"IFERROR(1-(TablaListaLecciones[[#This Row],[Temas]]-TablaListaLecciones[[#This Row],[Progreso]])/TablaListaLecciones[[#This Row],[Temas]],1)","v":0}]
["1.7","Comienza escribiendo tu nombre de Jugador en la celda C5. ¡No esperes! ¡Escribe tu nombre ahora mismo!",null,7,{"$f":"VLOOKUP(TablaListaLecciones[[#This Row],['#]]&\".0\",TablaLecciones[],2,FALSE)","v":"Las Damas"},{"$f":"MAX(IFERROR(--SUBSTITUTE(\" \"&TablaLecciones[Lecciones],\" \"&TablaListaLecciones[[#This Row],['#]]&\".\",\"\"),0))","v":12},0,{"$f":"IFERROR(1-(TablaListaLecciones[[#This Row],[Temas]]-TablaListaLecciones[[#This Row],[Progreso]])/TablaListaLecciones[[#This Row],[Temas]],1)","v":0}]
["2.0","Ajedrez con Excel",null,8,{"$f":"VLOOKUP(TablaListaLecciones[[#This Row],['#]]&\".0\",TablaLecciones[],2,FALSE)","v":"Los Caballos"},{"$f":"MAX(IFERROR(--SUBSTITUTE(\" \"&TablaLecciones[Lecciones],\" \"&TablaListaLecciones[[#This Row],['#]]&\".\",\"\"),0))","v":8},0,{"$f":"IFERROR(1-(TablaListaLecciones[[#This Row],[Temas]]-TablaListaLecciones[[#This Row],[Progreso]])/TablaListaLecciones[[#This Row],[Temas]],1)","v":0}]
["2.1","Aprende a jugar al ajedrez con esta aplicación totalmente hecha en una hoja de cálculo de Excel.",null,9,{"$f":"VLOOKUP(TablaListaLecciones[[#This Row],['#]]&\".0\",TablaLecciones[],2,FALSE)","v":"Los Peones"},{"$f":"MAX(IFERROR(--SUBSTITUTE(\" \"&TablaLecciones[Lecciones],\" \"&TablaListaLecciones[[#This Row],['#]]&\".\",\"\"),0))","v":12},0,{"$f":"IFERROR(1-(TablaListaLecciones[[#This Row],[Temas]]-TablaListaLecciones[[#This Row],[Progreso]])/TablaListaLecciones[[#This Row],[Temas]],1)","v":0}]
["2.2","Si aún no sabes jugar al ajedrez, aprenderás las reglas del juego y practicarás los movimientos de las piezas.",null,10,{"$f":"VLOOKUP(TablaListaLecciones[[#This Row],['#]]&\".0\",TablaLecciones[],2,FALSE)","v":"La captura al paso"},{"$f":"MAX(IFERROR(--SUBSTITUTE(\" \"&TablaLecciones[Lecciones],\" \"&TablaListaLecciones[[#This Row],['#]]&\".\",\"\"),0))","v":6},0,{"$f":"IFERROR(1-(TablaListaLecciones[[#This Row],[Temas]]-TablaListaLecciones[[#This Row],[Progreso]])/TablaListaLecciones[[#This Row],[Temas]],1)","v":0}]
["2.3","Si ya sabes jugar, estudiarás las mejores y peores partidas de ajedrez de todos los tiempos, ¡que de todo se aprende!",null,11,{"$f":"VLOOKUP(TablaListaLecciones[[#This Row],['#]]&\".0\",TablaLecciones[],2,FALSE)","v":"El enroque"},{"$f":"MAX(IFERROR(--SUBSTITUTE(\" \"&TablaLecciones[Lecciones],\" \"&TablaListaLecciones[[#This Row],['#]]&\".\",\"\"),0))","v":14},0,{"$f":"IFERROR(1-(TablaListaLecciones[[#This Row],[Temas]]-TablaListaLecciones[[#This Row],[Progreso]])/TablaListaLecciones[[#This Row],[Temas]],1)","v":0}]
["2.4","Puedes repetir una lección tantas veces como quieras. Selecciona una lección con el desplegable de la celda M6.",null,12,{"$f":"VLOOKUP(TablaListaLecciones[[#This Row],['#]]&\".0\",TablaLecciones[],2,FALSE)","v":"La coronación"},{"$f":"MAX(IFERROR(--SUBSTITUTE(\" \"&TablaLecciones[Lecciones],\" \"&TablaListaLecciones[[#This Row],['#]]&\".\",\"\"),0))","v":9},0,{"$f":"IFERROR(1-(TablaListaLecciones[[#This Row],[Temas]]-TablaListaLecciones[[#This Row],[Progreso]])/TablaListaLecciones[[#This Row],[Temas]],1)","v":0}]
["2.5","Esta aplicación es una versión educativa. Como no es una versión comercial, no está libre de errores. ¡Aprende de los errores!",null,13,{"$f":"VLOOKUP(TablaListaLecciones[[#This Row],['#]]&\".0\",TablaLecciones[],2,FALSE)","v":"Posición sin orden"},{"$f":"MAX(IFERROR(--SUBSTITUTE(\" \"&TablaLecciones[Lecciones],\" \"&TablaListaLecciones[[#This Row],['#]]&\".\",\"\"),0))","v":7},0,{"$f":"IFERROR(1-(TablaListaLecciones[[#This Row],[Temas]]-TablaListaLecciones[[#This Row],[Progreso]])/TablaListaLecciones[[#This Row],[Temas]],1)","v":0}]
["2.6","Si encuentras fallos y me los comunicas, todos aprenderemos y mejoraremos en el conocimiento del ajedrez, incluso Excel.",null,14,{"$f":"VLOOKUP(TablaListaLecciones[[#This Row],['#]]&\".0\",TablaLecciones[],2,FALSE)","v":"Posición inicial"},{"$f":"MAX(IFERROR(--SUBSTITUTE(\" \"&TablaLecciones[Lecciones],\" \"&TablaListaLecciones[[#This Row],['#]]&\".\",\"\"),0))","v":14},0,{"$f":"IFERROR(1-(TablaListaLecciones[[#This Row],[Temas]]-TablaListaLecciones[[#This Row],[Progreso]])/TablaListaLecciones[[#This Row],[Temas]],1)","v":0}]
["2.7","Tú puedes ayudarme a mejorar esta aplicación, escribiendo un comentario en mi blog o en mi canal de YouTube (enlaces abajo).",null,15,{"$f":"VLOOKUP(TablaListaLecciones[[#This Row],['#]]&\".0\",TablaLecciones[],2,FALSE)","v":"Jaque al rey"},{"$f":"MAX(IFERROR(--SUBSTITUTE(\" \"&TablaLecciones[Lecciones],\" \"&TablaListaLecciones[[#This Row],['#]]&\".\",\"\"),0))","v":2},0,{"$f":"IFERROR(1-(TablaListaLecciones[[#This Row],[Temas]]-TablaListaLecciones[[#This Row],[Progreso]])/TablaListaLecciones[[#This Row],[Temas]],1)","v":0}]
["3.0","El tablero",null,16,{"$f":"VLOOKUP(TablaListaLecciones[[#This Row],['#]]&\".0\",TablaLecciones[],2,FALSE)","v":"Rey ahogado"},{"$f":"MAX(IFERROR(--SUBSTITUTE(\" \"&TablaLecciones[Lecciones],\" \"&TablaListaLecciones[[#This Row],['#]]&\".\",\"\"),0))","v":2},0,{"$f":"IFERROR(1-(TablaListaLecciones[[#This Row],[Temas]]-TablaListaLecciones[[#This Row],[Progreso]])/TablaListaLecciones[[#This Row],[Temas]],1)","v":0}]
["3.1","El tablero de ajedrez contiene 64 casillas cuadradas de dos colores, alternando casillas claras y oscuras.",null,17,{"$f":"VLOOKUP(TablaListaLecciones[[#This Row],['#]]&\".0\",TablaLecciones[],2,FALSE)","v":"Mate del pastor"},{"$f":"MAX(IFERROR(--SUBSTITUTE(\" \"&TablaLecciones[Lecciones],\" \"&TablaListaLecciones[[#This Row],['#]]&\".\",\"\"),0))","v":3},0,{"$f":"IFERROR(1-(TablaListaLecciones[[#This Row],[Temas]]-TablaListaLecciones[[#This Row],[Progreso]])/TablaListaLecciones[[#This Row],[Temas]],1)","v":0}]
["3.2","La casilla de abajo a la derecha siempre es de color claro. Es la casilla 81 en notación numérica y h1 en notación algebraica.",null,18,{"$f":"VLOOKUP(TablaListaLecciones[[#This Row],['#]]&\".0\",TablaLecciones[],2,FALSE)","v":"Mate del loco"},{"$f":"MAX(IFERROR(--SUBSTITUTE(\" \"&TablaLecciones[Lecciones],\" \"&TablaListaLecciones[[#This Row],['#]]&\".\",\"\"),0))","v":3},0,{"$f":"IFERROR(1-(TablaListaLecciones[[#This Row],[Temas]]-TablaListaLecciones[[#This Row],[Progreso]])/TablaListaLecciones[[#This Row],[Temas]],1)","v":0}]
["3.3","Las 64 casillas, también denominadas \"escaques\", están en 8 filas y en 8 columnas, formando un tablero cuadrado.",null,19,{"$f":"VLOOKUP(TablaListaLecciones[[#This Row],['#]]&\".0\",TablaLecciones[],2,FALSE)","v":"Mate de Legal"},{"$f":"MAX(IFERROR(--SUBSTITUTE(\" \"&TablaLecciones[Lecciones],\" \"&TablaListaLecciones[[#This Row],['#]]&\".\",\"\"),0))","v":3},0,{"$f":"IFERROR(1-(TablaListaLecciones[[#This Row],[Temas]]-TablaListaLecciones[[#This Row],[Progreso]])/TablaListaLecciones[[#This Row],[Temas]],1)","v":0}]
["3.4","En esta aplicación el tablero está representado por un único gráfico de Excel.",null,20,{"$f":"VLOOKUP(TablaListaLecciones[[#This Row],['#]]&\".0\",TablaLecciones[],2,FALSE)","v":"Mate con celadas"},{"$f":"MAX(IFERROR(--SUBSTITUTE(\" \"&TablaLecciones[Lecciones],\" \"&TablaListaLecciones[[#This Row],['#]]&\".\",\"\"),0))","v":3},0,{"$f":"IFERROR(1-(TablaListaLecciones[[#This Row],[Temas]]-TablaListaLecciones[[#This Row],[Progreso]])/TablaListaLecciones[[#This Row],[Temas]],1)","v":0}]
["3.5","Las 8 filas se cuentan de abajo a arriba, con los números del 1 a 8, tanto en notación numérica como algebraica.",null,21,{"$f":"VLOOKUP(TablaListaLecciones[[#This Row],['#]]&\".0\",TablaLecciones[],2,FALSE)","v":"La partida de la Ópera"},{"$f":"MAX(IFERROR(--SUBSTITUTE(\" \"&TablaLecciones[Lecciones],\" \"&TablaListaLecciones[[#This Row],['#]]&\".\",\"\"),0))","v":3},0,{"$f":"IFERROR(1-(TablaListaLecciones[[#This Row],[Temas]]-TablaListaLecciones[[#This Row],[Progreso]])/TablaListaLecciones[[#This Row],[Temas]],1)","v":0}]
["3.6","Cambia la notación numérica o algebraica, tocando la celda P2.",null,22,{"$f":"VLOOKUP(TablaListaLecciones[[#This Row],['#]]&\".0\",TablaLecciones[],2,FALSE)","v":"La Siempreviva"},{"$f":"MAX(IFERROR(--SUBSTITUTE(\" \"&TablaLecciones[Lecciones],\" \"&TablaListaLecciones[[#This Row],['#]]&\".\",\"\"),0))","v":2},0,{"$f":"IFERROR(1-(TablaListaLecciones[[#This Row],[Temas]]-TablaListaLecciones[[#This Row],[Progreso]])/TablaListaLecciones[[#This Row],[Temas]],1)","v":0}]
["3.7","Cuando juegues en campeonatos de ajedrez, debes anotar los movimientos en notación algebraica. ¡Aprende para ser campeón!",null,23,{"$f":"VLOOKUP(TablaListaLecciones[[#This Row],['#]]&\".0\",TablaLecciones[],2,FALSE)","v":"La Inmortal de Rubinstein"},{"$f":"MAX(IFERROR(--SUBSTITUTE(\" \"&TablaLecciones[Lecciones],\" \"&TablaListaLecciones[[#This Row],['#]]&\".\",\"\"),0))","v":2},0,{"$f":"IFERROR(1-(TablaListaLecciones[[#This Row],[Temas]]-TablaListaLecciones[[#This Row],[Progreso]])/TablaListaLecciones[[#This Row],[Temas]],1)","v":0}]
["3.8","Si usas la notación numérica, las 8 columnas se numeran de izquierda a derecha con números: 1 2 3 4 5 6 7 8.",null,24,{"$f":"VLOOKUP(TablaListaLecciones[[#This Row],['#]]&\".0\",TablaLecciones[],2,FALSE)","v":"Mi partida favorita"},{"$f":"MAX(IFERROR(--SUBSTITUTE(\" \"&TablaLecciones[Lecciones],\" \"&TablaListaLecciones[[#This Row],['#]]&\".\",\"\"),0))","v":2},0,{"$f":"IFERROR(1-(TablaListaLecciones[[#This Row],[Temas]]-TablaListaLecciones[[#This Row],[Progreso]])/TablaListaLecciones[[#This Row],[Temas]],1)","v":0}]
["3.9","Si usas la notación algebraica, las 8 columnas se identifican de izquierda a derecha con letras: a b c d e f g h.",null,25,{"$f":"VLOOKUP(TablaListaLecciones[[#This Row],['#]]&\".0\",TablaLecciones[],2,FALSE)","v":"Combinaciones originales"},{"$f":"MAX(IFERROR(--SUBSTITUTE(\" \"&TablaLecciones[Lecciones],\" \"&TablaListaLecciones[[#This Row],['#]]&\".\",\"\"),0))","v":2},0,{"$f":"IFERROR(1-(TablaListaLecciones[[#This Row],[Temas]]-TablaListaLecciones[[#This Row],[Progreso]])/TablaListaLecciones[[#This Row],[Temas]],1)","v":0}]
["3.10","Toca la celda C25 para traer al frente el tablero. Toca alrededor del tablero para volver a mostrar todos los controles.",null,26,{"$f":"VLOOKUP(TablaListaLecciones[[#This Row],['#]]&\".0\",TablaLecciones[],2,FALSE)","v":"Karpov-Kasparov"},{"$f":"MAX(IFERROR(--SUBSTITUTE(\" \"&TablaLecciones[Lecciones],\" \"&TablaListaLecciones[[#This Row],['#]]&\".\",\"\"),0))","v":2},0,{"$f":"IFERROR(1-(TablaListaLecciones[[#This Row],[Temas]]-TablaListaLecciones[[#This Row],[Progreso]])/TablaListaLecciones[[#This Row],[Temas]],1)","v":0}]
["3.11","Toca la celda C26 para cambiar el tipo de tablero: clásico o moderno.",null,27,{"$f":"VLOOKUP(TablaListaLecciones[[#This Row],['#]]&\".0\",TablaLecciones[],2,FALSE)","v":"Partidas guardadas"},{"$f":"MAX(IFERROR(--SUBSTITUTE(\" \"&TablaLecciones[Lecciones],\" \"&TablaListaLecciones[[#This Row],['#]]&\".\",\"\"),0))","v":7},0,{"$f":"IFERROR(1-(TablaListaLecciones[[#This Row],[Temas]]-TablaListaLecciones[[#This Row],[Progreso]])/TablaListaLecciones[[#This Row],[Temas]],1)","v":0}]
["3.12","Toca la celda C27 para cambiar el tipo de pantalla: completa o normal.",null,"Total",{"$f":"SUBTOTAL(103,TablaListaLecciones[Lección])","v":28},{"$f":"SUBTOTAL(109,TablaListaLecciones[Temas])","v":185},{"$f":"SUBTOTAL(109,TablaListaLecciones[Progreso])","v":0},{"$f":"IFERROR(1-(TablaListaLecciones[[#Totals],[Temas]]-TablaListaLecciones[[#Totals],[Progreso]])/TablaListaLecciones[[#Totals],[Temas]],1)","v":0}]
["3.13","Escribe en la celda C28 un valor entre 50% y 200% para cambiar el zoom del tablero."]
["3.14","Practica seleccionando una de las 64 casillas, y verás la casilla seleccionada en la celda N3, en notación numérica o algebraica."]
["4.0","Los Reyes",null,{"$f":"INDEX(TablaListaLecciones['#],$G$33)","v":1},{"$f":"INDEX(TablaListaLecciones[Lección],$G$33)","v":"Aprende ajedrez"},null,{"$f":"MIN(IF(TablaListaLecciones[Porcentaje]<1,1,99)*IF(TablaListaLecciones['#]>0,TablaListaLecciones['#],1))+1","v":2},{"$f":"INDEX(TablaListaLecciones[Porcentaje],$G$33)","v":0}]
["4.1","En el tablero de ajedrez siempre hay dos reyes: el rey blanco y el rey negro. Se identifican con la letra R."]
["4.2","El rey es la única pieza que no puede ser capturada, ni siquiera haciendo jaque mate. Los reyes siempre están en el tablero.",null,{"$f":"IF($D$33=0,\"Sugerencia: \nJuega partidas, grábalas y reprodúcelas para seguir aprendiendo a jugar al ajedrez y llegar a ser un gran maestro algún día.\",\nIF(AND($H$33=0,miLección>3),\"Practica sin ver los movimientos válidos.\n\n\",\"Sugerencia: \n\") & \"Continua aprendiendo ajedrez con la Lección \" & $D$33 & \": \n\" & $E$33 & IF($H$33>0,\" \ncon un \" & TEXT($H$33,\"0%\") & \" de progreso.\",\".\"))","v":"Sugerencia: \nContinua aprendiendo ajedrez con la Lección 1: \nAprende ajedrez."}]
["4.3","Cuando el rey es amenazado está en jaque, símbolo: +. Tu misión es eliminar la amenaza e impedir el jaque mate."]
["4.4","Tu objetivo durante el juego es hacer jaque mate al rey contrario. Si no se puede eliminar el jaque, es jaque mate, símbolo: ++ o #"]
["4.5","El rey únicamente se puede mover a las casillas contiguas que no están ocupadas y que no están amenazadas de jaque."]
["4.6","Toca la celda C19 para ver los movimientos válidos marcados con puntos. Las piezas se deben mover a casillas marcadas con un punto."]
["4.7","Toca la celda C20 para ver en color azul las casillas de origen y destino del último movimiento de una pieza."]
["4.8","Toca la celda C21 para que las piezas se mueven en cada jugada de forma continua entre las casillas."]
["4.9","Toca la celda C22 para elegir la velocidad de movimiento de las piezas: 1-Mínima, 9-Máxima. Depende de la velocidad del procesador."]
["4.10","Si únicamente quedan los dos reyes en el tablero, no se pueden dar jaque y la partida queda en tablas, símbolo: ½ – ½"]
["4.11","Si gana la partida el bando del rey blanco, se indica con el símbolo: 1-0. Si gana el bando del rey negro, se indica con el símbolo: 0-1"]
["4.12","La celda M3 indica el turno de la jugada, indicando si mueven las piezas blancas o las negras."]
["4.13","La celda N3 indica qué pieza se ha tocado o se ha movido, y qué casilla ocupa, en notación numérica o algebraica."]
["4.14","La lista de movimientos que vas haciendo se ven en las columnas Q y R. Es mas profesional verlos en notación algebraica, tocando la celda P2."]
["4.15","La celda C8 cuenta las jugadas válidas. La celda C9 cuenta las jugadas inválidas, si intentas mover una pieza sin seguir las reglas."]
["4.16","La celda C7 indica el porcentaje de aciertos. Cuanto más alto sea el porcentaje, mejor sabrás jugar al ajedrez."]
["4.17","En la lección 11 aprenderás cómo hacer el enroque con el rey y una de las torres del mismo bando."]
["4.18","Practica moviendo los reyes, comenzando por el rey blanco. Intenta acercar los reyes entre sí lo más que puedas."]
["5.0","Las Torres"]
["5.1","Al iniciar la partida cada rey tiene dos torres. Las torres blancas están en los extremos de la fila 1 y las torres negras en la fila 8."]
["5.2","Las torres se identifican en notación algebraica con la letra T."]
["5.3","En notación numérica: Las torres blancas ocupan las casillas o escaques 11 y 81. Las torres negras ocupan las casillas 18 y 88."]
["5.4","En notación algebraica: Las torres blancas ocupan las casillas o escaques a1 y h1. Las torres negras ocupan las casillas a8 y h8."]
["5.5","Puedes mover las torres horizontalmente tantas casillas como quieras, tanto hacia la izquierda como hacia la derecha."]
["5.6","Puedes mover las torres verticalmente, tantas casillas como quieras, tanto hacia arriba como hacia abajo."]
["5.7","Nunca puedes mover las torres en diagonal, únicamente puedes moverlas a casillas de su fila o de su columna."]
["5.8","Si las torres se encuentran con otra pieza blanca o negra, no pueden pasar por encima, como mucho pueden llegar a su lado."]
["5.9","Si las torres se encuentran en su camino una pieza de distinto color, pueden capturarla, y la pieza capturada desaparece del tablero."]
["5.10","En la lección 11 aprenderás cómo hacer el enroque con el rey y una de las torres del mismo bando."]
["5.11","Practica el movimiento de las torres. Comienza moviendo una torre blanca."]
["6.0","Los Alfiles"]
["6.1","Al iniciar la partida cada rey tiene un alfil colocado a su derecha y cada dama tiene un alfil colocado a su izquierda."]
["6.2","Los alfiles se identifican en notación algebraica con la letra A."]
["6.3","En notación numérica: Los alfiles blancos ocupan las casillas o escaques 31 y 61. Los alfiles negros ocupan las casillas 38 y 68."]
["6.4","En notación algebraica: Los alfiles blancos ocupan las casillas o escaques c1 y f1. Los alfiles negros ocupan las casillas c8 y f8."]
["6.5","Puedes mover los alfiles diagonalmente, tantas casillas como quieras, en cualquier sentido."]
["6.6","Nunca puedes mover los alfiles en horizontal o vertical por la misma fila o columna."]
["6.7","Si los alfiles se encuentran con otra pieza blanca o negra, no pueden pasar por encima, solo pueden llegar diagonalmente a su lado."]
["6.8","Si los alfiles se encuentran en su camino una pieza de distinto color, pueden capturarla, y la pieza capturada desaparece del tablero."]
["6.9","En la lección 7 aprenderás a mover la dama, que ahora está como espectadora del movimiento de los alfiles."]
["6.10","Practica el movimiento de los alfiles. Comienza moviendo un alfil blanco."]
["7.0","Las Damas"]
["7.1","Al iniciar la partida cada rey tiene a su dama colocada a su izquierda. Es la pieza más poderosa del ajedrez. ¡Que no te la maten!"]
["7.2","En la lección 12, sobre la coronación o promoción de peones, veremos que un rey puede disponer de dos o más damas de su color."]
["7.3","Las damas, llamadas también reinas, se identifican en notación algebraica con la letra D."]
["7.4","En notación numérica: La dama blanca ocupa la casilla o escaque 41. La dama negra ocupa la casilla 48."]
["7.5","En notación algebraica: La dama blanca ocupa la casilla o escaque d1. La dama negra ocupa la casilla d8."]
["7.6","Las damas se mueven con la combinación de movimientos de las torres y de los alfiles."]
["7.7","Puedes mover las damas horizontalmente tantas casillas como quieras, tanto hacia la izquierda como hacia la derecha."]
["7.8","Puedes mover las damas verticalmente, tantas casillas como quieras, tanto hacia arriba como hacia abajo."]
["7.9","Puedes mover las damas diagonalmente, tantas casillas como quieras, en cualquier sentido."]
["7.10","Si las damas se encuentran con otra pieza blanca o negra, no pueden pasar por encima, como mucho pueden llegar a su lado."]
["7.11","Si las damas se encuentran en su camino una pieza de distinto color, pueden capturarla, y la pieza capturada desaparece del tablero."]
["7.12","Practica el movimiento de las damas. Comienza moviendo la dama blanca."]
["8.0","Los Caballos"]
["8.1","Al iniciar la partida cada rey tiene dos caballos. Los caballos son las únicas piezas que pueden pasar por encima de cualquiera."]
["8.2","Los caballos se identifican en notación algebraica con la letra C."]
["8.3","En notación numérica: Los caballos blancos ocupan las casillas o escaques 21 y 71. Los caballos negros ocupan las casillas 28 y 78."]
["8.4","En notación algebraica: Los caballos blancos ocupan las casillas o escaques b1 y g1. Los caballos negros ocupan las casillas b8 y g8."]
["8.5","El movimiento del caballo es especial. Se mueve una casilla en horizontal y dos en vertical o dos casillas en horizontal y una en vertical."]
["8.6","El movimiento de los caballos es como si dibujaran una letra L, que puede rotar en cualquier sentido."]
["8.7","Los caballos pueden capturar piezas de distinto color, saltando por encima de otras. La pieza capturada desaparece del tablero."]
["8.8","Practica moviendo los caballos. Comienza moviendo un caballo blanco. Te sorprenderá hasta dónde puedes llegar con un caballo."]
["9.0","Los Peones"]
["9.1","Al iniciar la partida cada rey tiene 8 peones, colocados en su fila superior para el rey blanco y en su fila inferior para el rey negro."]
["9.2","En el tablero se han colocado los reyes y los peones. Los peones blancos ocupan la fila 2 y los peones negros ocupan la fila 7."]
["9.3","No hace falta identificar a los peones con ninguna letra al anotar sus movimientos en notación algebraica."]
["9.4","Aprender a mover los peones es difícil, aunque te será más fácil si estudias esta lección repetidas veces."]
["9.5","Los peones siempre se mueven hacia adelante. Los peones blancos se mueven a filas superiores. Los negros a filas inferiores."]
["9.6","Puedes mover los peones con estos 5 tipos de movimiento diferentes:"]
["9.7","Primer tipo de movimiento: Puedes mover los peones blancos a la casilla superior si está libre. Los negros a la casilla libre inferior."]
["9.8","Segundo tipo de movimiento: La primera vez que muevas un peón blanco puede ir 2 filas hacia arriba. Los negros 2 filas hacia abajo."]
["9.9","Tercer tipo de movimiento: Con los peones puedes capturar la pieza que está a la derecha o izquierda de la fila en que está el peón."]
["9.10","Cuarto tipo de movimiento: En la lección 10 aprenderás la captura al paso entre peones."]
["9.11","Quinto tipo de movimiento: En la lección 12 aprenderás la coronación o promoción de peones, si consigues que lleguen a la última fila."]
["9.12","Practica moviendo los peones. Comienza moviendo un peón blanco una o dos filas hacia arriba."]
["10.0","La captura al paso"]
["10.1","La captura al paso es una captura especial de un peón del otro bando. Puede ocurrir en cualquier momento durante la partida."]
["10.2","Si un peón acaba de mover 2 filas hacia adelante, desde su posición inicial, un peón del bando contrario puede capturarlo en la siguiente jugada."]
["10.3","Puedes capturar al paso un peón del otro bando si acaba de mover 2 filas y tu peón está a la derecha o a la izquierda."]
["10.4","Coloca tu peón en la fila siguiente de la columna del peón capturado al paso, que desaparece del tablero."]
["10.5","La captura al paso es como si el peón capturado avanza sólo una fila desde su posición inicial, en lugar de avanzar 2 filas."]
["10.6","Practica la captura al paso de peones. Comienza moviendo el peón blanco 2 filas hacia arriba, desde la casilla e2 hasta la casilla e4."]
["11.0","El enroque"]
["11.1","El enroque se hace moviendo primero el rey y moviendo a continuación una de las torres del mismo color."]
["11.2","En muchos programas de ajedrez, el enroque de un rey automáticamente mueve la torre a su casilla final de enroque."]
["11.3","Esta aplicación es más real, obligando a mover primero el rey y a continuación la torre, que pasa por encima del rey."]
["11.4","Una de las reglas del enroque es que el rey y su torre no hayan sido movidos anteriormente durante la partida. "]
["11.5","No debe haber ninguna pieza entre el rey y la torre que se van a enrocar."]
["11.6","El rey con el que se va a hacer el enroque no debe estar en jaque."]
["11.7","Tampoco puede estar en jaque la casilla por la que pasa el rey durante el enroque."]
["11.8","Tampoco puede estar en jaque la casilla donde quedará el rey después del enroque."]
["11.9","Hay dos tipos de enroque: el enroque corto y el enroque largo."]
["11.10","En el enroque corto, el rey se mueve 2 casillas hacia la derecha y la torre se mueve 2 casillas hacia la izquierda.\nSe anota así: O-O"]
["11.11","En el enroque largo, el rey se mueve 2 casillas hacia la izquierda y la torre se mueve 3 casillas hacia la derecha.\nSe anota así: O-O-O"]
["11.12","El enroque únicamente lo puede hacer una vez cada bando. Una vez movido un rey, ya no se puede volver a enrocar."]
["11.13","El enroque es un movimiento opcional en el juego del ajedrez. Uno o los dos bandos puede que no hagan enroque en toda la partida."]
["11.14","Practica el enroque de cada bando con el rey, su dama y una de sus dos torres."]
["12.0","La coronación"]
["12.1","La coronación o promoción de un peón hace desaparecer el peón del tablero y es sustituido por una pieza de mas valor."]
["12.2","Si un peón blanco llega a una casilla de la fila 8, tienes que elegir la pieza blanca que sustituye al peón: una dama, torre, alfil o caballo."]
["12.3","Si un peón negro llega a una casilla de la fila 1, tienes que elegir la pieza negra que sustituye al peón: una dama, torre, alfil o caballo."]
["12.4","La pieza elegida ocupará la misma casilla que el peón promocionado o coronado, y el peón desaparece del tablero."]
["12.5","En notación numérica se añade un quinto dígito para indicar la promoción: 1-Dama; 2-Torre; 3-Alfil; 4-Caballo."]
["12.6","En notación algebraica se añade el sígno igual después de anotar la casilla donde el peón es coronado: =D ó =T ó =A ó =C"]
["12.7","Si consigues promocionar todos los peones puede haber 9 damas o 10 torres o 10 alfiles o 10 caballos en cada bando."]
["12.8","LIMITACIÓN:  El peón promocionado se sustituye por la pieza de más valor previamente capturada. No se puede elegir la pieza."]
["12.9","Practica la coronación o promoción de peones, moviendo un peón blanco en primer lugar."]
["13.0","Posición sin orden"]
["13.1","En esta lección las 16 piezas blancas y las 16 piezas negras están colocadas en el tablero aleatoriamente."]
["13.2","Puede ser que los reyes estén en jaque, lo que hay que tratar de evitar como sea, moviendo el rey o una pieza que elimine la amenaza."]
["13.3","Aleatoriamente puede haber peones blancos en la fila 8 y peones negros en la fila 1, que no han promocionado y que no se pueden mover."]
["13.4","Con las piezas colocadas aleatoriamente puedes jugar una partida muy loca, con la que practicarás los movimientos de las piezas."]
["13.5","Toca el botón de retroceso, de abajo a la izquierda, para volver a colocar las 32 piezas desordenadas aleatoriamente en el tablero."]
["13.6","Si das jaque mate ya no podrás mover ninguna pieza. Juega otra partida tocando el botón de retroceso, de abajo a la izquierda."]
["13.7","Practica el movimiento de cualquier pieza, comenzando por una pieza blanca. ¡Intenta que el rey no esté en jaque!"]
["14.0","Posición inicial"]
["14.1","En este tablero puedes observar la posición inicial de cada una de las piezas de cada bando al comienzo de una partida de ajedrez."]
["14.2","Aprende y recuerda la posición inicial de cada pieza blanca o negra, pues una partida de ajedrez siempre debe comenzar así."]
["14.3","Las piezas blancas se colocan en la fila 1 y los peones blancos en la fila 2. Las piezas negras en la fila 8 y los peones negros en la fila 7."]
["14.4","Los reyes en la quinta columna. El rey blanco en la casilla 51 de la fila 1. El rey negro en la casilla 58 de la fila 8."]
["14.5","Las damas en la cuarta columna. La dama blanca en la casilla 41 de la fila 1. La dama negra en la casilla 48 de la fila 8."]
["14.6","Los alfiles en la tercera y sexta columna. Los alfiles blancos en las casillas 31 y 61 de la fila 1. Los negros en 38 y 68 de la fila 8."]
["14.7","Los caballos en la segunda y séptima columna. Los blancos en las casillas 21 y 71 de la fila 1. Los negros en 28 y 78 de la fila 8."]
["14.8","Las torres en la primera y octava columna. Las blancas en las casillas 11 y 81 de la fila 1. Las negras en 18 y 88 de la fila 8."]
["14.9","Los 8 peones se colocan en las 8 columnas. Los peones blancos en la fila 2. Los peones negros en la fila 7."]
["14.10","Una regla básica del ajedrez es: \"Pieza tocada, pieza movida\". Si intentas mover a posiciones inválidas, se incrementa el valor de la celda C9."]
["14.11","Si tocas una pieza que no se puede mover, o tocas una pieza enemiga o una casilla vacía, puedes tocar otra pieza distinta."]
["14.12","En cada jugada cambia el turno del juego, alternando movimientos de piezas blancas y negras. La celda M3 avisa si toca jugar blancas o negras."]
["14.13","Comienza siempre así una partida. El primer movimiento debe ser de un peón o de un caballo blanco. ¡Mejor usa la notación algebraica!"]
["14.14","Para abandonar la partida toca el botón de retroceso, de abajo a la izquierda, y las piezas vuelven a su posición inicial."]
["15.0","Jaque al rey"]
["15.1","Tienes 8 posibilidades de dar jaque al rey negro con:\nDama: Da8+ o Dc8+ o Df1+\nTorre: Ta3+\nAlfil: Ae2+ o Ac8+\nCaballo: Cb4+ o Cc7+"]
["15.2","Practica todos los jaques al rey negro. Como el rey aún puede moverse, no es jaque mate. Toca el botón de retroceso para hacer otro jaque distinto."]
["16.0","Rey ahogado"]
["16.1","El rey ahogado hay que evitarlo. Ocurre si un bando no puede mover ninguna pieza sin estar en jaque. Automáticamente son tablas."]
["16.2","Mueve el caballo a c7, casilla 37. Toca el rey y el peón negros, ¡no puedes moverlos!. El rey no está en jaque, ¡el rey está ahogado! "]
["17.0","Mate del pastor"]
["17.1","Cuenta la leyenda que un rey aventurero jugó una partida de ajedrez contra un pastor de ovejas que le dio mate en 4 jugadas."]
["17.2","Aprende el mate del pastor jugando los movimientos que aparecen en la celda M27. Comienza moviendo el peón blanco a e4, casilla 54."]
["17.3","La dama blanca va al lado del rey negro para darle jaque mate. El rey negro no puede capturar a la dama blanca, defendida por el alfil en c4."]
["18.0","Mate del loco"]
["18.1","El jaque mate del loco es el más rápido de una partida de ajedrez. Las negras lo pueden hacer en 2 jugadas. Las blancas en 3 jugadas."]
["18.2","Practica el mate del loco con 3 jugadas de las blancas. No muevas los peones f y g, dejando la diagonal destapada a la dama contraria."]
["18.3","Aprende el mate del loco jugando los movimientos que aparecen en la celda M27. Comienza moviendo el peón blanco a e4, casilla 54."]
["19.0","Mate de Legal"]
["19.1","El mate de Legal demuestra que puedes perder una partida aunque captures la dama. ¡Mucho cuidado con las piezas enemigas!"]
["19.2","Aprende el mate de Legal jugando los movimientos que aparecen en la celda M27. Comienza moviendo el peón blanco a e4, casilla 54."]
["19.3","Las negras capturan a la dama blanca: 5. Cxe5 Axd1, pero el caballo da jaque mate al rey negro en dos jugadas: 6. Axf7+ Re7, 7. Cd5#"]
["20.0","Mate con celadas"]
["20.1","Una celada en ajedrez es caer en la trampa preparada por las piezas enemigas. Por ejemplo, cedes la dama y después das jaque mate."]
["20.2","En esta partida las negras regalan un alfil, consiguiendo jaque mate en el siguiente movimiento: 8. axb4 Cd3#"]
["20.3","El peón en e2 no puede capturar al caballo negro que da jaque mate, pues entonces la dama negra haría jaque mate."]
["21.0","La partida de la Ópera"]
["21.1","La partida de la Ópera demuestra lo que es realmente el arte del ajedrez, con un sacrificio excelente y un ataque brutal."]
["21.2","A las blancas solamente les queda la torre y el alfil pero son suficientes para dar jaque mate, en una posición excelente e increible."]
["21.3","Con 16. Db8+ Cxb8 ¡es increible el jaque sacrificando la dama blanca! 17.Td8# Jaque mate 1–0 ¡Las negras han pagado cara la osadía!"]
["22.0","La Siempreviva"]
["22.1","Esta partida es una de las más famosas de la historia del ajedrez y debería ser de las primeras que debe aprender un aficionado o principiante."]
["22.2","Las blancas dan jaque mate con un alfil, aún sacrificando su dama y una torre, y siendo amenazadas por la dama negra con mate, si captura el peón en g2."]
["23.0","La Inmortal de Rubinstein"]
["23.1","La Inmortal de Rubinstein muestra un dominio magistral de la pareja de alfiles, con la combinación más espectacular de todos los tiempos."]
["23.2","Con 22...Txc3!! y 23...Td2!! Las negras perdieron su dama y casi todas sus piezas están atacadas y, aún así, ganan la partida:\n25. Dg2 Th3 0-1"]
["24.0","Mi partida favorita"]
["24.1","La partida Kasparov-Topalov. Defensa Pirc-Ufimtsev (B07), es considerada una de las más hermosas de los últimos tiempos."]
["24.2","Kasparov, aunque sacrificó muchas piezas en el medio juego, consiguió que las negras abandonaran. ¡Por eso es mi partida favorita!"]
["25.0","Combinaciones originales"]
["25.1","Esta partida es de una gran belleza pues, jugada al más alto nivel, contiene varias combinaciones contrarias a la intuición."]
["25.2","Las negras muestran un excepcional ataque, especialmente 16...Cde5!!, pues las piezas negras se abren paso y no pueden contenerse."]
["26.0","Karpov-Kasparov"]
["26.1","Si estudias esta partida, puede que se te contagien la brillantez y la magia de sus movimientos. Hay mucho que aprender de esta partida."]
["26.2","Karpov abandonó ante:\n28 Tg1 Af5+\n29 Rb2 Cd1+\n30 Ra1 Cxb3#\nY verás ¡un tremendo jaque mate entre 4 caballos!"]
["27.0","Partidas guardadas"]
["27.1","Juega una partida y guárdala para crear tu propia base de datos de partidas.\n¡Como los grandes maestros del ajedrez!"]
["27.2","Toca los botones del rango O17:O20 para ir a la partida: primera; anterior; siguiente o última. O escribe su número en la celda N16."]
["27.3","Reproduce las jugadas de una partida, siguiendo las instrucciones con el siguiente movimiento en la celda M27, o su notación algebraica en la celda M28."]
["27.4","Oculta o muestra las jugadas, con los movimientos anotados durante la partida, tocando el botón de información en la celda de la columna S, fila 2."]
["27.5","Escribe un número de jugada en la celda P4 y verás 25 jugadas. Toca los botones de la columna S, filas 4 a 9, para ver 25 jugadas."]
["27.6","Juega una partida contra ti mismo o contra un adversario, moviendo las piezas por el tablero, y luego podrás guardarla grabándola."]
["27.7","Toca el botón de grabación en la celda O16. Escribe el nombre de la partida en la celda M17 y los datos de la partida en el rango M19:M26."]

{"sheet":"Partidas","index":5,"n_rows":110,"n_cols":13,"rows_kept":110,"cut":false,"hidden":false,"merged":[]}
[{"$f":"IF(Valor_Partida=0,\"\",IFERROR(SUBSTITUTE(INDEX(misPartidas,ROW(),Valor_Partida+1),CHAR(160),CHAR(32))&\"\",\"\"))","v":""},"Mate del pastor","Mate del loco","Mate de Legal","Mate con celadas","La partida de la Ópera","La Siempreviva","La inmortal de Rubinstein","Mi partida favorita de todos los tiempos","Combinaciones contrarias a la intuición","Karpov-Kasparov en Linares","Carlsen-Niemann en Sinquefield Cup","C. YOO (2.563) - H. NIEMANN (2.699)"]
[{"$f":"IF(Valor_Partida=0,\"\",SUBSTITUTE(SUBSTITUTE(IFERROR(SUBSTITUTE(INDEX(misPartidas,ROW(),Valor_Partida+1),CHAR(160),CHAR(32))&\"\",\"\"),\"[\",\"\"),\"]\",\"\"))","v":""},"[Event \"Duque del ajedrez\"]","[Event \"\"]","[Event \"\"]","[Event \"\"]","[Event \"Paul Morphy - Duke Karl Count Isouard\"]","[Event \"Gambito Evans (C52)\"]","[Event \"Lodz1\"]","[Event \"It (cat.17)\"]","[Event \"75th Tata Steel GpA\"]","[Event \"Linares 11th (10)\"]","[Event \"Sinquefield Cup (chess24.com)\"]","[Event \"Campeonato EEUU (1). San Luis\"]"]
[{"$f":"IF(Valor_Partida=0,\"\",SUBSTITUTE(SUBSTITUTE(IFERROR(SUBSTITUTE(INDEX(misPartidas,ROW(),Valor_Partida+1),CHAR(160),CHAR(32))&\"\",\"\"),\"[\",\"\"),\"]\",\"\"))","v":""},"[Site \"Camino real\"]","[Site \"\"]","[Site \"París\"]","[Site \"Budapest\"]","[Site \"Paris (France)\"]","[Site \"Berlín\"]","[Site \"Lodz POL\"]","[Site \"Wijk aan Zee (Netherlands)\"]","[Site \"Wijk aan Zee NED\"]","[Site \"Linares\"]","[Site \" San Luis, Misuri, USA\"]","[White \"C. Yoo (2.563)\"]"]
[{"$f":"IF(Valor_Partida=0,\"\",SUBSTITUTE(SUBSTITUTE(IFERROR(SUBSTITUTE(INDEX(misPartidas,ROW(),Valor_Partida+1),CHAR(160),CHAR(32))&\"\",\"\"),\"[\",\"\"),\"]\",\"\"))","v":""},"[Date \"????.??.??\"]","[Date \"1959.??.??\"]","[Date \"1750.??.??\"]","[Date \"????.??.??\"]","[Date \"1858.??.??\"]","[Date \"1852.??.??\"]","[Date \"1907.??.??\"]","[Date \"1999.??.??\"]","[Date \"2013.01.15\"]","[Date \"1993.03.09\"]","[Date \"2022.09.04\"]","[Black \"H. Niemann (2.699)\"]"]
[{"$f":"IF(Valor_Partida=0,\"\",SUBSTITUTE(SUBSTITUTE(IFERROR(SUBSTITUTE(INDEX(misPartidas,ROW(),Valor_Partida+1),CHAR(160),CHAR(32))&\"\",\"\"),\"[\",\"\"),\"]\",\"\"))","v":""},"[Round \"?\"]","[Round \"?\"]","[Round \"?\"]","[Round \"?\"]","[Round \"?\"]","[Round \"?\"]","[Round \"?\"]","[Round \"?\"]","[Round \"?\"]","[Round \"?\"]","[Round \"3\"]","[Site \"\"]"]
[{"$f":"IF(Valor_Partida=0,\"\",SUBSTITUTE(SUBSTITUTE(IFERROR(SUBSTITUTE(INDEX(misPartidas,ROW(),Valor_Partida+1),CHAR(160),CHAR(32))&\"\",\"\"),\"[\",\"\"),\"]\",\"\"))","v":""},"[White \"Pastor de ovejas\"]","[White \"Masefield\"]","[White \"Kermur de Legal\"]","[White \"\"]","[White \"Paul Morphy\"]","[White \"Adolf Anderssen\"]","[White \"Rotlewi, Georg\"]","[White \"Garry Kasparov\"]","[White \"Levon Aronian\"]","[White \"Karpov, Anatoly\"]","[White \"Carlsen, Magnus\"]","[Round \"\"]"]
[{"$f":"IF(Valor_Partida=0,\"\",SUBSTITUTE(SUBSTITUTE(IFERROR(SUBSTITUTE(INDEX(misPartidas,ROW(),Valor_Partida+1),CHAR(160),CHAR(32))&\"\",\"\"),\"[\",\"\"),\"]\",\"\"))","v":""},"[Black \"Rey aventurero\"]","[Black \"Trinka\"]","[Black \"Saint Brie\"]","[Black \"\"]","[Black \"Duke of Brunswick and Count Isouard\"]","[Black \"Jean Dufresne\"]","[Black \"Rubinstein, Akiba\"]","[Black \"Veselin Topalov\"]","[Black \"Viswanathan Anand\"]","[Black \"Kasparov, Garry\"]","[Black \"Niemann, Hans Moke\"]","[Annotator \"\"]"]
[{"$f":"IF(Valor_Partida=0,\"\",SUBSTITUTE(SUBSTITUTE(IFERROR(SUBSTITUTE(INDEX(misPartidas,ROW(),Valor_Partida+1),CHAR(160),CHAR(32))&\"\",\"\"),\"[\",\"\"),\"]\",\"\"))","v":""},"[Result \"1-0\"]","[Result \"1-0\"]","[Result \"1-0\"]","[Result \"0-1\"]","[Result \"1-0\"]","[Result \"1-0\"]","[Result \"0-1\"]","[Result \"1-0\"]","[Result \"0-1\"]","[Result \"0-1\"]","[Result \"0-1\"]","[Result \"0-1\"]"]
[{"$f":"IF(Valor_Partida=0,\"\",SUBSTITUTE(SUBSTITUTE(IFERROR(SUBSTITUTE(INDEX(misPartidas,ROW(),Valor_Partida+1),CHAR(160),CHAR(32))&\"\",\"\"),\"[\",\"\"),\"]\",\"\"))","v":""},null,null,null,null,null,null,"[ECO \"D40q\"]",null,null,null,null,"[Date \"2022.10.05\"]"]
[{"$f":"IF(Valor_Partida=0,\"\",SUBSTITUTE(SUBSTITUTE(IFERROR(SUBSTITUTE(INDEX(misPartidas,ROW(),Valor_Partida+1),CHAR(160),CHAR(32))&\"\",\"\"),\"[\",\"\"),\"]\",\"\"))","v":""},null,null,null,null,null,null,null,null,null,null,null,"[PlyCount \"108\"]"]
[{"$f":"IF(Valor_Partida=0,\"\",SUBSTITUTE(SUBSTITUTE(IFERROR(SUBSTITUTE(INDEX(misPartidas,ROW(),Valor_Partida+1),CHAR(160),CHAR(32))&\"\",\"\"),\"[\",\"\"),\"]\",\"\"))","v":""},"1. e4 e5","1. e4 g5","1. e4 e5","1. d4 Cf6","1. e4 e5","1. e4 e5","1. d4 d5","1. e4 d6","1. d4 d5","1. d4 Cf6","1. d4 Cf6","1. d4 Cf6"]
[{"$f":"IF(Valor_Partida=0,\"\",SUBSTITUTE(SUBSTITUTE(IFERROR(SUBSTITUTE(INDEX(misPartidas,ROW(),Valor_Partida+1),CHAR(160),CHAR(32))&\"\",\"\"),\"[\",\"\"),\"]\",\"\"))","v":""},"2. Ac4 Cc6","2. Cc3 f5","2. Ac4 d6","2. c4 e5","2. Cf3 d6","2. Cf3 Cc6","2. Cf3 e6","2. d4 Cf6","2. c4 c6","2. c4 g6","2. c4 e6","2. Cc3 d5"]
[{"$f":"IF(Valor_Partida=0,\"\",SUBSTITUTE(SUBSTITUTE(IFERROR(SUBSTITUTE(INDEX(misPartidas,ROW(),Valor_Partida+1),CHAR(160),CHAR(32))&\"\",\"\"),\"[\",\"\"),\"]\",\"\"))","v":""},"3. Dh5 Cf6","3. Dh5#","3. Cf3 Ag4","3. dxe5 Cg4","3. d4 Ag4","3. Ac4 Ac5","3. e3 c5","3. Cc3 g6","3. Cf3 Cf6","3. Cc3 Ag7","3. Cc3 Ab4","3. Af4 e6"]
[{"$f":"IF(Valor_Partida=0,\"\",SUBSTITUTE(SUBSTITUTE(IFERROR(SUBSTITUTE(INDEX(misPartidas,ROW(),Valor_Partida+1),CHAR(160),CHAR(32))&\"\",\"\"),\"[\",\"\"),\"]\",\"\"))","v":""},"4. Dxf7#","A rey muerto, rey puesto.","4. Cc3 g6","4. Cf3 Cc6","4. dxe5 Axf3","4. b4 Axb4","4. c4 Cc6","4. Ae3 Ag7","4. Cc3 e6","4. e4 d6","4. g3 O-O","4. Cb5 Ca6"]
[{"$f":"IF(Valor_Partida=0,\"\",SUBSTITUTE(SUBSTITUTE(IFERROR(SUBSTITUTE(INDEX(misPartidas,ROW(),Valor_Partida+1),CHAR(160),CHAR(32))&\"\",\"\"),\"[\",\"\"),\"]\",\"\"))","v":""},"El alfil protegía a la dama.",null,"5. Cxe5 Axd1","5. Af4 Ab4+","5. Dxf3 dxe5","5. c3 Aa5","5. Cc3 Cf6","5. Dd2 c6","5. e3 Cbd7","5. f3 O-O","5. Ag2 d5","5. e3 Ae7"]
[{"$f":"IF(Valor_Partida=0,\"\",SUBSTITUTE(SUBSTITUTE(IFERROR(SUBSTITUTE(INDEX(misPartidas,ROW(),Valor_Partida+1),CHAR(160),CHAR(32))&\"\",\"\"),\"[\",\"\"),\"]\",\"\"))","v":""},null,null,"6. Axf7+ Re7","6. Cbd2 De7","6. Ac4 Cf6","6. d4 exd4","6. dxc5 Axc5","6. f3 b5","6. Ad3 dxc4","6. Ae3 e5","6. a3 Axc3+","6. Cf3 O-O"]
[{"$f":"IF(Valor_Partida=0,\"\",SUBSTITUTE(SUBSTITUTE(IFERROR(SUBSTITUTE(INDEX(misPartidas,ROW(),Valor_Partida+1),CHAR(160),CHAR(32))&\"\",\"\"),\"[\",\"\"),\"]\",\"\"))","v":""},null,null,"7. Cd5#","7. a3 Cgxe5","7. Db3 De7","7. O-O d3","7. a3 a6","7. Cge2 Cbd7","7. Axc4 b5","7. Cge2 c6","7. bxc3 dxc4","7. Ae2 Ch5"]
[{"$f":"IF(Valor_Partida=0,\"\",SUBSTITUTE(SUBSTITUTE(IFERROR(SUBSTITUTE(INDEX(misPartidas,ROW(),Valor_Partida+1),CHAR(160),CHAR(32))&\"\",\"\"),\"[\",\"\"),\"]\",\"\"))","v":""},null,null,"El rey no tiene escapatoria.","8. axb4 Cd3#","8. Cc3 c6","8. Db3 Df6","8. b4 Ad6","8. Ah6 Axh6","8. Ad3 Ad6","8. Dd2 Cbd7","8. Cf3 c5","8. Ae5 f6"]
[{"$f":"IF(Valor_Partida=0,\"\",SUBSTITUTE(SUBSTITUTE(IFERROR(SUBSTITUTE(INDEX(misPartidas,ROW(),Valor_Partida+1),CHAR(160),CHAR(32))&\"\",\"\"),\"[\",\"\"),\"]\",\"\"))","v":""},null,null,null,"Jaque mate tramposo.","9. Ag5 b5","9. e5 Dg6","9. Ab2 O-O","9. Dxh6 Ab7","9. O-O O-O","9. Td1 a6","9. O-O cxd4","9. Ag3 c6"]
[{"$f":"IF(Valor_Partida=0,\"\",SUBSTITUTE(SUBSTITUTE(IFERROR(SUBSTITUTE(INDEX(misPartidas,ROW(),Valor_Partida+1),CHAR(160),CHAR(32))&\"\",\"\"),\"[\",\"\"),\"]\",\"\"))","v":""},null,null,null,null,"10. Cxb5 cxb5","10. Te1 Cge7","10. Dd2 De7","10. a3 e5","10. Dc2 Ab7","10. dxe5 Cxe5","10. Dxd4 Cc6","10. Cc3 c5"]
[{"$f":"IF(Valor_Partida=0,\"\",SUBSTITUTE(SUBSTITUTE(IFERROR(SUBSTITUTE(INDEX(misPartidas,ROW(),Valor_Partida+1),CHAR(160),CHAR(32))&\"\",\"\"),\"[\",\"\"),\"]\",\"\"))","v":""},null,null,null,null,"11. Axb5+ Cbd7","11. Aa3 b5","11. Ad3 dxc4","11. O-O-O De7","11. a3 Tc8","11. b3 b5","11. Dxc4 e5","11. O-O Cxg3"]
[{"$f":"IF(Valor_Partida=0,\"\",SUBSTITUTE(SUBSTITUTE(IFERROR(SUBSTITUTE(INDEX(misPartidas,ROW(),Valor_Partida+1),CHAR(160),CHAR(32))&\"\",\"\"),\"[\",\"\"),\"]\",\"\"))","v":""},null,null,null,null,"12. O-O-O Td8","12. Dxb5 Tb8","12. Axc4 b5","12. Rb1 a6","12. Cg5 c5","12. cxb5 axb5","12. Ag5 h6","12. hxg3 c4"]
[{"$f":"IF(Valor_Partida=0,\"\",SUBSTITUTE(SUBSTITUTE(IFERROR(SUBSTITUTE(INDEX(misPartidas,ROW(),Valor_Partida+1),CHAR(160),CHAR(32))&\"\",\"\"),\"[\",\"\"),\"]\",\"\"))","v":""},null,null,null,null,"13. Txd7 Txd7","13. Da4 Ab6","13. Ad3 Td8","13. Cc1 O-O-O","13. Cxh7 Cg4","13. Dxd6 Cfd7","13. Tfd1 Ae6","13. e4 Ab4"]
[{"$f":"IF(Valor_Partida=0,\"\",SUBSTITUTE(SUBSTITUTE(IFERROR(SUBSTITUTE(INDEX(misPartidas,ROW(),Valor_Partida+1),CHAR(160),CHAR(32))&\"\",\"\"),\"[\",\"\"),\"]\",\"\"))","v":""},null,null,null,null,"14. Td1 De6","14. Cbd2 Ab7","14. De2 Ab7","14. Cb3 exd4","14. f4 cxd4","14. f4 b4","14. Txd8 Axc4","14. exd5 exd5"]
[{"$f":"IF(Valor_Partida=0,\"\",SUBSTITUTE(SUBSTITUTE(IFERROR(SUBSTITUTE(INDEX(misPartidas,ROW(),Valor_Partida+1),CHAR(160),CHAR(32))&\"\",\"\"),\"[\",\"\"),\"]\",\"\"))","v":""},null,null,null,null,"15. Axd7+ Cxd7","15. Ce4 Df5","15. O-O Ce5","15. Txd4 c5","15. exd4 Ac5","15. Cb1 Cg4","15. Txa8 Txa8","15. Cb1 Cc7"]
[{"$f":"IF(Valor_Partida=0,\"\",SUBSTITUTE(SUBSTITUTE(IFERROR(SUBSTITUTE(INDEX(misPartidas,ROW(),Valor_Partida+1),CHAR(160),CHAR(32))&\"\",\"\"),\"[\",\"\"),\"]\",\"\"))","v":""},null,null,null,null,"16. Db8+ Cxb8","16. Axd3 Dh5","16. Cxe5 Axe5","16. Td1 Cb6","16. Ae2 Cde5","16. Ad4 Axd4","16. Axf6 gxf6","16. c3 Ad6"]
[{"$f":"IF(Valor_Partida=0,\"\",SUBSTITUTE(SUBSTITUTE(IFERROR(SUBSTITUTE(INDEX(misPartidas,ROW(),Valor_Partida+1),CHAR(160),CHAR(32))&\"\",\"\"),\"[\",\"\"),\"]\",\"\"))","v":""},null,null,null,null,"17. Td8# 1-0","17. Cf6+ gxf6","17. f4 Ac7","17. g3 Rb8","17. Axg4 Axd4+","17. Dxd4 Txa2","17. Rf1 Td8","17. Cbd2 b5"]
[{"$f":"IF(Valor_Partida=0,\"\",SUBSTITUTE(SUBSTITUTE(IFERROR(SUBSTITUTE(INDEX(misPartidas,ROW(),Valor_Partida+1),CHAR(160),CHAR(32))&\"\",\"\"),\"[\",\"\"),\"]\",\"\"))","v":""},null,null,null,null,"Jaque mate con menos piezas.","18. exf6 Tg8","18. e4 Tac8","18. Ca5 Aa8","18. Rh1 Cxg4","18. h3 c5","18. Re1 Ca5","18. Ce1 Ae6"]
[{"$f":"IF(Valor_Partida=0,\"\",SUBSTITUTE(SUBSTITUTE(IFERROR(SUBSTITUTE(INDEX(misPartidas,ROW(),Valor_Partida+1),CHAR(160),CHAR(32))&\"\",\"\"),\"[\",\"\"),\"]\",\"\"))","v":""},null,null,null,null,null,"19. Tad1 Dxf3","19. e5 Ab6+","19. Ah3 d5","19. Cxf8 f5","19. Dg1 Cgf6","19. Td1 Tc8","19. Cc2 Dd7"]
[{"$f":"IF(Valor_Partida=0,\"\",SUBSTITUTE(SUBSTITUTE(IFERROR(SUBSTITUTE(INDEX(misPartidas,ROW(),Valor_Partida+1),CHAR(160),CHAR(32))&\"\",\"\"),\"[\",\"\"),\"]\",\"\"))","v":""},null,null,null,null,null,"20. Txe7+ Cxe7","20. Rh1 Cg4","20. Df4+ Ra7","20. Cg6 Df6","20. e5 Ce4","20. Cd2 Ae6","20. Te1 a5"]
[{"$f":"IF(Valor_Partida=0,\"\",SUBSTITUTE(SUBSTITUTE(IFERROR(SUBSTITUTE(INDEX(misPartidas,ROW(),Valor_Partida+1),CHAR(160),CHAR(32))&\"\",\"\"),\"[\",\"\"),\"]\",\"\"))","v":""},null,null,null,null,null,"21. Dxd7+ Rxd7","21. Ae4 Dh4","21. The1 d4","21. h3 Dxg6","21. h4 c4","21. c4 Axc4","21. a3 g6"]
[{"$f":"IF(Valor_Partida=0,\"\",SUBSTITUTE(SUBSTITUTE(IFERROR(SUBSTITUTE(INDEX(misPartidas,ROW(),Valor_Partida+1),CHAR(160),CHAR(32))&\"\",\"\"),\"[\",\"\"),\"]\",\"\"))","v":""},null,null,null,null,null,"22. Af5+ Re8","22. g3 Txc3","22. Cd5 Cbxd5","22. De2 Dh5","22. Cc1 c3","22. Cxc4 Txc4","22. Cf1 h5"]
[{"$f":"IF(Valor_Partida=0,\"\",SUBSTITUTE(SUBSTITUTE(IFERROR(SUBSTITUTE(INDEX(misPartidas,ROW(),Valor_Partida+1),CHAR(160),CHAR(32))&\"\",\"\"),\"[\",\"\"),\"]\",\"\"))","v":""},null,null,null,null,null,"23. Ad7+ Rf8","23. gxh4 Td2","23. exd5 Dd6","23. Dd3 Ae3 0-1","23. Cxa2 c2","23. Td8+ Rg7","23. Dd2 Rg7"]
[{"$f":"IF(Valor_Partida=0,\"\",SUBSTITUTE(SUBSTITUTE(IFERROR(SUBSTITUTE(INDEX(misPartidas,ROW(),Valor_Partida+1),CHAR(160),CHAR(32))&\"\",\"\"),\"[\",\"\"),\"]\",\"\"))","v":""},null,null,null,null,null,"24. Axe7# 1-0","24. Dxd2 Axe4+","24. Txd4 cxd4","¡Y las blancas abandonan!","24. Dd4 cxd1=D+","24. Ad5 Tc7","24. f4 Th8"]
[{"$f":"IF(Valor_Partida=0,\"\",SUBSTITUTE(SUBSTITUTE(IFERROR(SUBSTITUTE(INDEX(misPartidas,ROW(),Valor_Partida+1),CHAR(160),CHAR(32))&\"\",\"\"),\"[\",\"\"),\"]\",\"\"))","v":""},null,null,null,null,null,"El peón defendía al alfil.","25. Dg2 Th3 0-1","25. Te7+ Rb6",null,"25. Rxd1 Cdc5","25. Ta8 a6","25. Af3 f5"]
[{"$f":"IF(Valor_Partida=0,\"\",SUBSTITUTE(SUBSTITUTE(IFERROR(SUBSTITUTE(INDEX(misPartidas,ROW(),Valor_Partida+1),CHAR(160),CHAR(32))&\"\",\"\"),\"[\",\"\"),\"]\",\"\"))","v":""},null,null,null,null,null,null,"La inmortal no será olvidada.","26. Dxd4+ Rxa5",null,"26. Dxd8 Txd8+","26. Tb8 f5","26. Te2 Ce8"]
[{"$f":"IF(Valor_Partida=0,\"\",SUBSTITUTE(SUBSTITUTE(IFERROR(SUBSTITUTE(INDEX(misPartidas,ROW(),Valor_Partida+1),CHAR(160),CHAR(32))&\"\",\"\"),\"[\",\"\"),\"]\",\"\"))","v":""},null,null,null,null,null,null,null,"27. b4+ Ra4",null,"27. Rc2 Cf2 0-1","27. Te8 e4","27. Tae1 Af7"]
[{"$f":"IF(Valor_Partida=0,\"\",SUBSTITUTE(SUBSTITUTE(IFERROR(SUBSTITUTE(INDEX(misPartidas,ROW(),Valor_Partida+1),CHAR(160),CHAR(32))&\"\",\"\"),\"[\",\"\"),\"]\",\"\"))","v":""},null,null,null,null,null,null,null,"28. Dc3 Dxd5",null,"Las blancas están perdidas.","28. g4 Tc5","28. Te5 Cf6"]
[{"$f":"IF(Valor_Partida=0,\"\",SUBSTITUTE(SUBSTITUTE(IFERROR(SUBSTITUTE(INDEX(misPartidas,ROW(),Valor_Partida+1),CHAR(160),CHAR(32))&\"\",\"\"),\"[\",\"\"),\"]\",\"\"))","v":""},null,null,null,null,null,null,null,"29. Ta7 Ab7",null,null,"29. Aa2 Cc4","29. Cfe3 h4"]
[{"$f":"IF(Valor_Partida=0,\"\",SUBSTITUTE(SUBSTITUTE(IFERROR(SUBSTITUTE(INDEX(misPartidas,ROW(),Valor_Partida+1),CHAR(160),CHAR(32))&\"\",\"\"),\"[\",\"\"),\"]\",\"\"))","v":""},null,null,null,null,null,null,null,"30. Txb7 Dc4",null,null,"30. a4 Cd6","30. Df2 h3"]
[{"$f":"IF(Valor_Partida=0,\"\",SUBSTITUTE(SUBSTITUTE(IFERROR(SUBSTITUTE(INDEX(misPartidas,ROW(),Valor_Partida+1),CHAR(160),CHAR(32))&\"\",\"\"),\"[\",\"\"),\"]\",\"\"))","v":""},null,null,null,null,null,null,null,"31. Dxf6 Rxa3",null,null,"31. Te7 fxg4","31. Te2 Tad8"]
[{"$f":"IF(Valor_Partida=0,\"\",SUBSTITUTE(SUBSTITUTE(IFERROR(SUBSTITUTE(INDEX(misPartidas,ROW(),Valor_Partida+1),CHAR(160),CHAR(32))&\"\",\"\"),\"[\",\"\"),\"]\",\"\"))","v":""},null,null,null,null,null,null,null,"32. Dxa6+ Rxb4",null,null,"32. Td7 e3","32. De1 Ce4"]
[{"$f":"IF(Valor_Partida=0,\"\",SUBSTITUTE(SUBSTITUTE(IFERROR(SUBSTITUTE(INDEX(misPartidas,ROW(),Valor_Partida+1),CHAR(160),CHAR(32))&\"\",\"\"),\"[\",\"\"),\"]\",\"\"))","v":""},null,null,null,null,null,null,null,"33. c3+ Rxc3",null,null,"33. fxe3 Ce4","33. g4 Axe5"]
[{"$f":"IF(Valor_Partida=0,\"\",SUBSTITUTE(SUBSTITUTE(IFERROR(SUBSTITUTE(INDEX(misPartidas,ROW(),Valor_Partida+1),CHAR(160),CHAR(32))&\"\",\"\"),\"[\",\"\"),\"]\",\"\"))","v":""},null,null,null,null,null,null,null,"34. Da1+ Rd2",null,null,"34. Rf1 Tc1+","34. dxe5 hxg2"]
[{"$f":"IF(Valor_Partida=0,\"\",SUBSTITUTE(SUBSTITUTE(IFERROR(SUBSTITUTE(INDEX(misPartidas,ROW(),Valor_Partida+1),CHAR(160),CHAR(32))&\"\",\"\"),\"[\",\"\"),\"]\",\"\"))","v":""},null,null,null,null,null,null,null,"35. Db2+ Rd1",null,null,"35. Rg2 Tc2","35. Txg2 Th3"]
[{"$f":"IF(Valor_Partida=0,\"\",SUBSTITUTE(SUBSTITUTE(IFERROR(SUBSTITUTE(INDEX(misPartidas,ROW(),Valor_Partida+1),CHAR(160),CHAR(32))&\"\",\"\"),\"[\",\"\"),\"]\",\"\"))","v":""},null,null,null,null,null,null,null,"36. Af1 Td2",null,null,"36. Axf7 Txe2+","36. e6 Axe6"]
[{"$f":"IF(Valor_Partida=0,\"\",SUBSTITUTE(SUBSTITUTE(IFERROR(SUBSTITUTE(INDEX(misPartidas,ROW(),Valor_Partida+1),CHAR(160),CHAR(32))&\"\",\"\"),\"[\",\"\"),\"]\",\"\"))","v":""},null,null,null,null,null,null,null,"37. Td7 Txd7",null,null,"37. Rg1 Te1+","37. gxf5 Axf5"]
[{"$f":"IF(Valor_Partida=0,\"\",SUBSTITUTE(SUBSTITUTE(IFERROR(SUBSTITUTE(INDEX(misPartidas,ROW(),Valor_Partida+1),CHAR(160),CHAR(32))&\"\",\"\"),\"[\",\"\"),\"]\",\"\"))","v":""},null,null,null,null,null,null,null,"38. Axc4 bxc4",null,null,"38. Rg2 Te2+","38. Cxf5+ Dxf5"]
[{"$f":"IF(Valor_Partida=0,\"\",SUBSTITUTE(SUBSTITUTE(IFERROR(SUBSTITUTE(INDEX(misPartidas,ROW(),Valor_Partida+1),CHAR(160),CHAR(32))&\"\",\"\"),\"[\",\"\"),\"]\",\"\"))","v":""},null,null,null,null,null,null,null,"39. Dxh8 Td3",null,null,"39. Rg1 Rf6","39. Cd4 Df6"]
[{"$f":"IF(Valor_Partida=0,\"\",SUBSTITUTE(SUBSTITUTE(IFERROR(SUBSTITUTE(INDEX(misPartidas,ROW(),Valor_Partida+1),CHAR(160),CHAR(32))&\"\",\"\"),\"[\",\"\"),\"]\",\"\"))","v":""},null,null,null,null,null,null,null,"40. Da8 c3",null,null,"40. Ad5 Td2","40. Axe4 Te8"]
[{"$f":"IF(Valor_Partida=0,\"\",SUBSTITUTE(SUBSTITUTE(IFERROR(SUBSTITUTE(INDEX(misPartidas,ROW(),Valor_Partida+1),CHAR(160),CHAR(32))&\"\",\"\"),\"[\",\"\"),\"]\",\"\"))","v":""},null,null,null,null,null,null,null,"41. Da4+ Re1",null,null,"41. Tf7+ Rg6","41. f5 Txe4"]
[{"$f":"IF(Valor_Partida=0,\"\",SUBSTITUTE(SUBSTITUTE(IFERROR(SUBSTITUTE(INDEX(misPartidas,ROW(),Valor_Partida+1),CHAR(160),CHAR(32))&\"\",\"\"),\"[\",\"\"),\"]\",\"\"))","v":""},null,null,null,null,null,null,null,"42. f4 f5",null,null,"42. Td7 Cg5","42. Df2 Teh4"]
[{"$f":"IF(Valor_Partida=0,\"\",SUBSTITUTE(SUBSTITUTE(IFERROR(SUBSTITUTE(INDEX(misPartidas,ROW(),Valor_Partida+1),CHAR(160),CHAR(32))&\"\",\"\"),\"[\",\"\"),\"]\",\"\"))","v":""},null,null,null,null,null,null,null,"43. Rc1 Td2",null,null,"43. Af7+ Rf5","43. Txg6+ Dxg6+"]
[{"$f":"IF(Valor_Partida=0,\"\",SUBSTITUTE(SUBSTITUTE(IFERROR(SUBSTITUTE(INDEX(misPartidas,ROW(),Valor_Partida+1),CHAR(160),CHAR(32))&\"\",\"\"),\"[\",\"\"),\"]\",\"\"))","v":""},null,null,null,null,null,null,null,"44. Da7 1-0",null,null,"44. Txd2 Cf3+","44. fxg6 Th1+"]
[{"$f":"IF(Valor_Partida=0,\"\",SUBSTITUTE(SUBSTITUTE(IFERROR(SUBSTITUTE(INDEX(misPartidas,ROW(),Valor_Partida+1),CHAR(160),CHAR(32))&\"\",\"\"),\"[\",\"\"),\"]\",\"\"))","v":""},null,null,null,null,null,null,null,"¡Y las negras se rindieron!",null,null,"45. Rg2 Cxd2","45. Rg2 T4h2+"]
[{"$f":"IF(Valor_Partida=0,\"\",SUBSTITUTE(SUBSTITUTE(IFERROR(SUBSTITUTE(INDEX(misPartidas,ROW(),Valor_Partida+1),CHAR(160),CHAR(32))&\"\",\"\"),\"[\",\"\"),\"]\",\"\"))","v":""},null,null,null,null,null,null,null,null,null,null,"46. a5 Re5","46. Rg3 Txf2"]
[{"$f":"IF(Valor_Partida=0,\"\",SUBSTITUTE(SUBSTITUTE(IFERROR(SUBSTITUTE(INDEX(misPartidas,ROW(),Valor_Partida+1),CHAR(160),CHAR(32))&\"\",\"\"),\"[\",\"\"),\"]\",\"\"))","v":""},null,null,null,null,null,null,null,null,null,null,"47. Rg3 Cf1+","47. Rxf2 Th2+"]
[{"$f":"IF(Valor_Partida=0,\"\",SUBSTITUTE(SUBSTITUTE(IFERROR(SUBSTITUTE(INDEX(misPartidas,ROW(),Valor_Partida+1),CHAR(160),CHAR(32))&\"\",\"\"),\"[\",\"\"),\"]\",\"\"))","v":""},null,null,null,null,null,null,null,null,null,null,"48. Rf2 Cxh2","48. Re3 Txb2"]
[{"$f":"IF(Valor_Partida=0,\"\",SUBSTITUTE(SUBSTITUTE(IFERROR(SUBSTITUTE(INDEX(misPartidas,ROW(),Valor_Partida+1),CHAR(160),CHAR(32))&\"\",\"\"),\"[\",\"\"),\"]\",\"\"))","v":""},null,null,null,null,null,null,null,null,null,null,"49. e4 Rxe4","49. Rf4 Rxg6"]
[{"$f":"IF(Valor_Partida=0,\"\",SUBSTITUTE(SUBSTITUTE(IFERROR(SUBSTITUTE(INDEX(misPartidas,ROW(),Valor_Partida+1),CHAR(160),CHAR(32))&\"\",\"\"),\"[\",\"\"),\"]\",\"\"))","v":""},null,null,null,null,null,null,null,null,null,null,"50. Ae6 Rf4","50. Re5 b4"]
[{"$f":"IF(Valor_Partida=0,\"\",SUBSTITUTE(SUBSTITUTE(IFERROR(SUBSTITUTE(INDEX(misPartidas,ROW(),Valor_Partida+1),CHAR(160),CHAR(32))&\"\",\"\"),\"[\",\"\"),\"]\",\"\"))","v":""},null,null,null,null,null,null,null,null,null,null,"51. Ac8 Cf3","51. axb4 axb4"]
[{"$f":"IF(Valor_Partida=0,\"\",SUBSTITUTE(SUBSTITUTE(IFERROR(SUBSTITUTE(INDEX(misPartidas,ROW(),Valor_Partida+1),CHAR(160),CHAR(32))&\"\",\"\"),\"[\",\"\"),\"]\",\"\"))","v":""},null,null,null,null,null,null,null,null,null,null,"52. Axb7 Ce5","52. cxb4 c3"]
[{"$f":"IF(Valor_Partida=0,\"\",SUBSTITUTE(SUBSTITUTE(IFERROR(SUBSTITUTE(INDEX(misPartidas,ROW(),Valor_Partida+1),CHAR(160),CHAR(32))&\"\",\"\"),\"[\",\"\"),\"]\",\"\"))","v":""},null,null,null,null,null,null,null,null,null,null,"53. Axa6 Cc6","53. b5 Txb5"]
[{"$f":"IF(Valor_Partida=0,\"\",SUBSTITUTE(SUBSTITUTE(IFERROR(SUBSTITUTE(INDEX(misPartidas,ROW(),Valor_Partida+1),CHAR(160),CHAR(32))&\"\",\"\"),\"[\",\"\"),\"]\",\"\"))","v":""},null,null,null,null,null,null,null,null,null,null,"54. Ab7 Cxa5","54. Cxb5 c2 0-1"]
[{"$f":"IF(Valor_Partida=0,\"\",SUBSTITUTE(SUBSTITUTE(IFERROR(SUBSTITUTE(INDEX(misPartidas,ROW(),Valor_Partida+1),CHAR(160),CHAR(32))&\"\",\"\"),\"[\",\"\"),\"]\",\"\"))","v":""},null,null,null,null,null,null,null,null,null,null,"55. Ad5 h5"]
[{"$f":"IF(Valor_Partida=0,\"\",SUBSTITUTE(SUBSTITUTE(IFERROR(SUBSTITUTE(INDEX(misPartidas,ROW(),Valor_Partida+1),CHAR(160),CHAR(32))&\"\",\"\"),\"[\",\"\"),\"]\",\"\"))","v":""},null,null,null,null,null,null,null,null,null,null,"56. Af7 h4"]
[{"$f":"IF(Valor_Partida=0,\"\",SUBSTITUTE(SUBSTITUTE(IFERROR(SUBSTITUTE(INDEX(misPartidas,ROW(),Valor_Partida+1),CHAR(160),CHAR(32))&\"\",\"\"),\"[\",\"\"),\"]\",\"\"))","v":""},null,null,null,null,null,null,null,null,null,null,"57. Ad5 Re5 0-1"]
[{"$f":"IF(Valor_Partida=0,\"\",SUBSTITUTE(SUBSTITUTE(IFERROR(SUBSTITUTE(INDEX(misPartidas,ROW(),Valor_Partida+1),CHAR(160),CHAR(32))&\"\",\"\"),\"[\",\"\"),\"]\",\"\"))","v":""},null,null,null,null,null,null,null,null,null,null,"¿Se habrán hecho trampas?"]
[{"$f":"IF(Valor_Partida=0,\"\",SUBSTITUTE(SUBSTITUTE(IFERROR(SUBSTITUTE(INDEX(misPartidas,ROW(),Valor_Partida+1),CHAR(160),CHAR(32))&\"\",\"\"),\"[\",\"\"),\"]\",\"\"))","v":""}]
[{"$f":"IF(Valor_Partida=0,\"\",SUBSTITUTE(SUBSTITUTE(IFERROR(SUBSTITUTE(INDEX(misPartidas,ROW(),Valor_Partida+1),CHAR(160),CHAR(32))&\"\",\"\"),\"[\",\"\"),\"]\",\"\"))","v":""}]
[{"$f":"IF(Valor_Partida=0,\"\",SUBSTITUTE(SUBSTITUTE(IFERROR(SUBSTITUTE(INDEX(misPartidas,ROW(),Valor_Partida+1),CHAR(160),CHAR(32))&\"\",\"\"),\"[\",\"\"),\"]\",\"\"))","v":""}]
[{"$f":"IF(Valor_Partida=0,\"\",SUBSTITUTE(SUBSTITUTE(IFERROR(SUBSTITUTE(INDEX(misPartidas,ROW(),Valor_Partida+1),CHAR(160),CHAR(32))&\"\",\"\"),\"[\",\"\"),\"]\",\"\"))","v":""}]
[{"$f":"IF(Valor_Partida=0,\"\",SUBSTITUTE(SUBSTITUTE(IFERROR(SUBSTITUTE(INDEX(misPartidas,ROW(),Valor_Partida+1),CHAR(160),CHAR(32))&\"\",\"\"),\"[\",\"\"),\"]\",\"\"))","v":""}]
[{"$f":"IF(Valor_Partida=0,\"\",SUBSTITUTE(SUBSTITUTE(IFERROR(SUBSTITUTE(INDEX(misPartidas,ROW(),Valor_Partida+1),CHAR(160),CHAR(32))&\"\",\"\"),\"[\",\"\"),\"]\",\"\"))","v":""}]
[{"$f":"IF(Valor_Partida=0,\"\",SUBSTITUTE(SUBSTITUTE(IFERROR(SUBSTITUTE(INDEX(misPartidas,ROW(),Valor_Partida+1),CHAR(160),CHAR(32))&\"\",\"\"),\"[\",\"\"),\"]\",\"\"))","v":""}]
[{"$f":"IF(Valor_Partida=0,\"\",SUBSTITUTE(SUBSTITUTE(IFERROR(SUBSTITUTE(INDEX(misPartidas,ROW(),Valor_Partida+1),CHAR(160),CHAR(32))&\"\",\"\"),\"[\",\"\"),\"]\",\"\"))","v":""}]
[{"$f":"IF(Valor_Partida=0,\"\",SUBSTITUTE(SUBSTITUTE(IFERROR(SUBSTITUTE(INDEX(misPartidas,ROW(),Valor_Partida+1),CHAR(160),CHAR(32))&\"\",\"\"),\"[\",\"\"),\"]\",\"\"))","v":""}]
[{"$f":"IF(Valor_Partida=0,\"\",SUBSTITUTE(SUBSTITUTE(IFERROR(SUBSTITUTE(INDEX(misPartidas,ROW(),Valor_Partida+1),CHAR(160),CHAR(32))&\"\",\"\"),\"[\",\"\"),\"]\",\"\"))","v":""}]
[{"$f":"IF(Valor_Partida=0,\"\",SUBSTITUTE(SUBSTITUTE(IFERROR(SUBSTITUTE(INDEX(misPartidas,ROW(),Valor_Partida+1),CHAR(160),CHAR(32))&\"\",\"\"),\"[\",\"\"),\"]\",\"\"))","v":""}]
[{"$f":"IF(Valor_Partida=0,\"\",SUBSTITUTE(SUBSTITUTE(IFERROR(SUBSTITUTE(INDEX(misPartidas,ROW(),Valor_Partida+1),CHAR(160),CHAR(32))&\"\",\"\"),\"[\",\"\"),\"]\",\"\"))","v":""}]
[{"$f":"IF(Valor_Partida=0,\"\",SUBSTITUTE(SUBSTITUTE(IFERROR(SUBSTITUTE(INDEX(misPartidas,ROW(),Valor_Partida+1),CHAR(160),CHAR(32))&\"\",\"\"),\"[\",\"\"),\"]\",\"\"))","v":""}]
[{"$f":"IF(Valor_Partida=0,\"\",SUBSTITUTE(SUBSTITUTE(IFERROR(SUBSTITUTE(INDEX(misPartidas,ROW(),Valor_Partida+1),CHAR(160),CHAR(32))&\"\",\"\"),\"[\",\"\"),\"]\",\"\"))","v":""}]
[{"$f":"IF(Valor_Partida=0,\"\",SUBSTITUTE(SUBSTITUTE(IFERROR(SUBSTITUTE(INDEX(misPartidas,ROW(),Valor_Partida+1),CHAR(160),CHAR(32))&\"\",\"\"),\"[\",\"\"),\"]\",\"\"))","v":""}]
[{"$f":"IF(Valor_Partida=0,\"\",SUBSTITUTE(SUBSTITUTE(IFERROR(SUBSTITUTE(INDEX(misPartidas,ROW(),Valor_Partida+1),CHAR(160),CHAR(32))&\"\",\"\"),\"[\",\"\"),\"]\",\"\"))","v":""}]
[{"$f":"IF(Valor_Partida=0,\"\",SUBSTITUTE(SUBSTITUTE(IFERROR(SUBSTITUTE(INDEX(misPartidas,ROW(),Valor_Partida+1),CHAR(160),CHAR(32))&\"\",\"\"),\"[\",\"\"),\"]\",\"\"))","v":""}]
[{"$f":"IF(Valor_Partida=0,\"\",SUBSTITUTE(SUBSTITUTE(IFERROR(SUBSTITUTE(INDEX(misPartidas,ROW(),Valor_Partida+1),CHAR(160),CHAR(32))&\"\",\"\"),\"[\",\"\"),\"]\",\"\"))","v":""}]
[{"$f":"IF(Valor_Partida=0,\"\",SUBSTITUTE(SUBSTITUTE(IFERROR(SUBSTITUTE(INDEX(misPartidas,ROW(),Valor_Partida+1),CHAR(160),CHAR(32))&\"\",\"\"),\"[\",\"\"),\"]\",\"\"))","v":""}]
[{"$f":"IF(Valor_Partida=0,\"\",SUBSTITUTE(SUBSTITUTE(IFERROR(SUBSTITUTE(INDEX(misPartidas,ROW(),Valor_Partida+1),CHAR(160),CHAR(32))&\"\",\"\"),\"[\",\"\"),\"]\",\"\"))","v":""}]
[{"$f":"IF(Valor_Partida=0,\"\",SUBSTITUTE(SUBSTITUTE(IFERROR(SUBSTITUTE(INDEX(misPartidas,ROW(),Valor_Partida+1),CHAR(160),CHAR(32))&\"\",\"\"),\"[\",\"\"),\"]\",\"\"))","v":""}]
[{"$f":"IF(Valor_Partida=0,\"\",SUBSTITUTE(SUBSTITUTE(IFERROR(SUBSTITUTE(INDEX(misPartidas,ROW(),Valor_Partida+1),CHAR(160),CHAR(32))&\"\",\"\"),\"[\",\"\"),\"]\",\"\"))","v":""}]
[{"$f":"IF(Valor_Partida=0,\"\",SUBSTITUTE(SUBSTITUTE(IFERROR(SUBSTITUTE(INDEX(misPartidas,ROW(),Valor_Partida+1),CHAR(160),CHAR(32))&\"\",\"\"),\"[\",\"\"),\"]\",\"\"))","v":""}]
[{"$f":"IF(Valor_Partida=0,\"\",SUBSTITUTE(SUBSTITUTE(IFERROR(SUBSTITUTE(INDEX(misPartidas,ROW(),Valor_Partida+1),CHAR(160),CHAR(32))&\"\",\"\"),\"[\",\"\"),\"]\",\"\"))","v":""}]
[{"$f":"IF(Valor_Partida=0,\"\",SUBSTITUTE(SUBSTITUTE(IFERROR(SUBSTITUTE(INDEX(misPartidas,ROW(),Valor_Partida+1),CHAR(160),CHAR(32))&\"\",\"\"),\"[\",\"\"),\"]\",\"\"))","v":""}]
[{"$f":"IF(Valor_Partida=0,\"\",SUBSTITUTE(SUBSTITUTE(IFERROR(SUBSTITUTE(INDEX(misPartidas,ROW(),Valor_Partida+1),CHAR(160),CHAR(32))&\"\",\"\"),\"[\",\"\"),\"]\",\"\"))","v":""}]
[{"$f":"IF(Valor_Partida=0,\"\",SUBSTITUTE(SUBSTITUTE(IFERROR(SUBSTITUTE(INDEX(misPartidas,ROW(),Valor_Partida+1),CHAR(160),CHAR(32))&\"\",\"\"),\"[\",\"\"),\"]\",\"\"))","v":""}]
[{"$f":"IF(Valor_Partida=0,\"\",SUBSTITUTE(SUBSTITUTE(IFERROR(SUBSTITUTE(INDEX(misPartidas,ROW(),Valor_Partida+1),CHAR(160),CHAR(32))&\"\",\"\"),\"[\",\"\"),\"]\",\"\"))","v":""}]
[{"$f":"IF(Valor_Partida=0,\"\",SUBSTITUTE(SUBSTITUTE(IFERROR(SUBSTITUTE(INDEX(misPartidas,ROW(),Valor_Partida+1),CHAR(160),CHAR(32))&\"\",\"\"),\"[\",\"\"),\"]\",\"\"))","v":""}]
[{"$f":"IF(Valor_Partida=0,\"\",SUBSTITUTE(SUBSTITUTE(IFERROR(SUBSTITUTE(INDEX(misPartidas,ROW(),Valor_Partida+1),CHAR(160),CHAR(32))&\"\",\"\"),\"[\",\"\"),\"]\",\"\"))","v":""}]
[{"$f":"IF(Valor_Partida=0,\"\",SUBSTITUTE(SUBSTITUTE(IFERROR(SUBSTITUTE(INDEX(misPartidas,ROW(),Valor_Partida+1),CHAR(160),CHAR(32))&\"\",\"\"),\"[\",\"\"),\"]\",\"\"))","v":""}]
[{"$f":"IF(Valor_Partida=0,\"\",SUBSTITUTE(SUBSTITUTE(IFERROR(SUBSTITUTE(INDEX(misPartidas,ROW(),Valor_Partida+1),CHAR(160),CHAR(32))&\"\",\"\"),\"[\",\"\"),\"]\",\"\"))","v":""}]
[{"$f":"IF(Valor_Partida=0,\"\",SUBSTITUTE(SUBSTITUTE(IFERROR(SUBSTITUTE(INDEX(misPartidas,ROW(),Valor_Partida+1),CHAR(160),CHAR(32))&\"\",\"\"),\"[\",\"\"),\"]\",\"\"))","v":""}]
[{"$f":"IF(Valor_Partida=0,\"\",SUBSTITUTE(SUBSTITUTE(IFERROR(SUBSTITUTE(INDEX(misPartidas,ROW(),Valor_Partida+1),CHAR(160),CHAR(32))&\"\",\"\"),\"[\",\"\"),\"]\",\"\"))","v":""}]
[{"$f":"IF(Valor_Partida=0,\"\",SUBSTITUTE(SUBSTITUTE(IFERROR(SUBSTITUTE(INDEX(misPartidas,ROW(),Valor_Partida+1),CHAR(160),CHAR(32))&\"\",\"\"),\"[\",\"\"),\"]\",\"\"))","v":""}]
[{"$f":"IF(Valor_Partida=0,\"\",SUBSTITUTE(SUBSTITUTE(IFERROR(SUBSTITUTE(INDEX(misPartidas,ROW(),Valor_Partida+1),CHAR(160),CHAR(32))&\"\",\"\"),\"[\",\"\"),\"]\",\"\"))","v":""}]
[{"$f":"IF(Valor_Partida=0,\"\",SUBSTITUTE(SUBSTITUTE(IFERROR(SUBSTITUTE(INDEX(misPartidas,ROW(),Valor_Partida+1),CHAR(160),CHAR(32))&\"\",\"\"),\"[\",\"\"),\"]\",\"\"))","v":""}]
[{"$f":"IF(Valor_Partida=0,\"\",SUBSTITUTE(SUBSTITUTE(IFERROR(SUBSTITUTE(INDEX(misPartidas,ROW(),Valor_Partida+1),CHAR(160),CHAR(32))&\"\",\"\"),\"[\",\"\"),\"]\",\"\"))","v":""}]
[{"$f":"IF(Valor_Partida=0,\"\",SUBSTITUTE(SUBSTITUTE(IFERROR(SUBSTITUTE(INDEX(misPartidas,ROW(),Valor_Partida+1),CHAR(160),CHAR(32))&\"\",\"\"),\"[\",\"\"),\"]\",\"\"))","v":""}]
[{"$f":"IF(Valor_Partida=0,\"\",SUBSTITUTE(SUBSTITUTE(IFERROR(SUBSTITUTE(INDEX(misPartidas,ROW(),Valor_Partida+1),CHAR(160),CHAR(32))&\"\",\"\"),\"[\",\"\"),\"]\",\"\"))","v":""}]
[{"$f":"IF(Valor_Partida=0,\"\",SUBSTITUTE(SUBSTITUTE(IFERROR(SUBSTITUTE(INDEX(misPartidas,ROW(),Valor_Partida+1),CHAR(160),CHAR(32))&\"\",\"\"),\"[\",\"\"),\"]\",\"\"))","v":""}]
[{"$f":"IF(Valor_Partida=0,\"\",SUBSTITUTE(SUBSTITUTE(IFERROR(SUBSTITUTE(INDEX(misPartidas,ROW(),Valor_Partida+1),CHAR(160),CHAR(32))&\"\",\"\"),\"[\",\"\"),\"]\",\"\"))","v":""}]

{"sheet":"Numéricas","index":6,"n_rows":110,"n_cols":13,"rows_kept":110,"cut":false,"hidden":false,"merged":[]}
[{"$f":"IF(Valor_Partida=0,\"\",IFERROR(SUBSTITUTE(INDEX(misPartidasNuméricas,ROW(),Valor_Partida+1),CHAR(160),CHAR(32))&\"\",\"\"))","v":""},{"$f":"Partidas!B1 & \"\"","v":"Mate del pastor"},{"$f":"Partidas!C1 & \"\"","v":"Mate del loco"},{"$f":"Partidas!D1 & \"\"","v":"Mate de Legal"},{"$f":"Partidas!E1 & \"\"","v":"Mate con celadas"},{"$f":"Partidas!F1 & \"\"","v":"La partida de la Ópera"},{"$f":"Partidas!G1 & \"\"","v":"La Siempreviva"},{"$f":"Partidas!H1 & \"\"","v":"La inmortal de Rubinstein"},{"$f":"Partidas!I1 & \"\"","v":"Mi partida favorita de todos los tiempos"},{"$f":"Partidas!J1 & \"\"","v":"Combinaciones contrarias a la intuición"},{"$f":"Partidas!K1 & \"\"","v":"Karpov-Kasparov en Linares"},{"$f":"Partidas!L1 & \"\"","v":"Carlsen-Niemann en Sinquefield Cup"},{"$f":"Partidas!M1 & \"\"","v":"C. YOO (2.563) - H. NIEMANN (2.699)"}]
[{"$f":"IF(Valor_Partida=0,\"\",SUBSTITUTE(SUBSTITUTE(IFERROR(SUBSTITUTE(INDEX(misPartidasNuméricas,ROW(),Valor_Partida+1),CHAR(160),CHAR(32))&\"\",\"\"),\"[\",\"\"),\"]\",\"\"))","v":""},{"$f":"Partidas!B2 & \"\"","v":"[Event \"Duque del ajedrez\"]"},{"$f":"Partidas!C2 & \"\"","v":"[Event \"\"]"},{"$f":"Partidas!D2 & \"\"","v":"[Event \"\"]"},{"$f":"Partidas!E2 & \"\"","v":"[Event \"\"]"},{"$f":"Partidas!F2 & \"\"","v":"[Event \"Paul Morphy - Duke Karl Count Isouard\"]"},{"$f":"Partidas!G2 & \"\"","v":"[Event \"Gambito Evans (C52)\"]"},{"$f":"Partidas!H2 & \"\"","v":"[Event \"Lodz1\"]"},{"$f":"Partidas!I2 & \"\"","v":"[Event \"It (cat.17)\"]"},{"$f":"Partidas!J2 & \"\"","v":"[Event \"75th Tata Steel GpA\"]"},{"$f":"Partidas!K2 & \"\"","v":"[Event \"Linares 11th (10)\"]"},{"$f":"Partidas!L2 & \"\"","v":"[Event \"Sinquefield Cup (chess24.com)\"]"},{"$f":"Partidas!M2 & \"\"","v":"[Event \"Campeonato EEUU (1). San Luis\"]"}]
[{"$f":"IF(Valor_Partida=0,\"\",SUBSTITUTE(SUBSTITUTE(IFERROR(SUBSTITUTE(INDEX(misPartidasNuméricas,ROW(),Valor_Partida+1),CHAR(160),CHAR(32))&\"\",\"\"),\"[\",\"\"),\"]\",\"\"))","v":""},{"$f":"Partidas!B3 & \"\"","v":"[Site \"Camino real\"]"},{"$f":"Partidas!C3 & \"\"","v":"[Site \"\"]"},{"$f":"Partidas!D3 & \"\"","v":"[Site \"París\"]"},{"$f":"Partidas!E3 & \"\"","v":"[Site \"Budapest\"]"},{"$f":"Partidas!F3 & \"\"","v":"[Site \"Paris (France)\"]"},{"$f":"Partidas!G3 & \"\"","v":"[Site \"Berlín\"]"},{"$f":"Partidas!H3 & \"\"","v":"[Site \"Lodz POL\"]"},{"$f":"Partidas!I3 & \"\"","v":"[Site \"Wijk aan Zee (Netherlands)\"]"},{"$f":"Partidas!J3 & \"\"","v":"[Site \"Wijk aan Zee NED\"]"},{"$f":"Partidas!K3 & \"\"","v":"[Site \"Linares\"]"},{"$f":"Partidas!L3 & \"\"","v":"[Site \" San Luis, Misuri, USA\"]"},{"$f":"Partidas!M3 & \"\"","v":"[White \"C. Yoo (2.563)\"]"}]
[{"$f":"IF(Valor_Partida=0,\"\",SUBSTITUTE(SUBSTITUTE(IFERROR(SUBSTITUTE(INDEX(misPartidasNuméricas,ROW(),Valor_Partida+1),CHAR(160),CHAR(32))&\"\",\"\"),\"[\",\"\"),\"]\",\"\"))","v":""},{"$f":"Partidas!B4 & \"\"","v":"[Date \"????.??.??\"]"},{"$f":"Partidas!C4 & \"\"","v":"[Date \"1959.??.??\"]"},{"$f":"Partidas!D4 & \"\"","v":"[Date \"1750.??.??\"]"},{"$f":"Partidas!E4 & \"\"","v":"[Date \"????.??.??\"]"},{"$f":"Partidas!F4 & \"\"","v":"[Date \"1858.??.??\"]"},{"$f":"Partidas!G4 & \"\"","v":"[Date \"1852.??.??\"]"},{"$f":"Partidas!H4 & \"\"","v":"[Date \"1907.??.??\"]"},{"$f":"Partidas!I4 & \"\"","v":"[Date \"1999.??.??\"]"},{"$f":"Partidas!J4 & \"\"","v":"[Date \"2013.01.15\"]"},{"$f":"Partidas!K4 & \"\"","v":"[Date \"1993.03.09\"]"},{"$f":"Partidas!L4 & \"\"","v":"[Date \"2022.09.04\"]"},{"$f":"Partidas!M4 & \"\"","v":"[Black \"H. Niemann (2.699)\"]"}]
[{"$f":"IF(Valor_Partida=0,\"\",SUBSTITUTE(SUBSTITUTE(IFERROR(SUBSTITUTE(INDEX(misPartidasNuméricas,ROW(),Valor_Partida+1),CHAR(160),CHAR(32))&\"\",\"\"),\"[\",\"\"),\"]\",\"\"))","v":""},{"$f":"Partidas!B5 & \"\"","v":"[Round \"?\"]"},{"$f":"Partidas!C5 & \"\"","v":"[Round \"?\"]"},{"$f":"Partidas!D5 & \"\"","v":"[Round \"?\"]"},{"$f":"Partidas!E5 & \"\"","v":"[Round \"?\"]"},{"$f":"Partidas!F5 & \"\"","v":"[Round \"?\"]"},{"$f":"Partidas!G5 & \"\"","v":"[Round \"?\"]"},{"$f":"Partidas!H5 & \"\"","v":"[Round \"?\"]"},{"$f":"Partidas!I5 & \"\"","v":"[Round \"?\"]"},{"$f":"Partidas!J5 & \"\"","v":"[Round \"?\"]"},{"$f":"Partidas!K5 & \"\"","v":"[Round \"?\"]"},{"$f":"Partidas!L5 & \"\"","v":"[Round \"3\"]"},{"$f":"Partidas!M5 & \"\"","v":"[Site \"\"]"}]
[{"$f":"IF(Valor_Partida=0,\"\",SUBSTITUTE(SUBSTITUTE(IFERROR(SUBSTITUTE(INDEX(misPartidasNuméricas,ROW(),Valor_Partida+1),CHAR(160),CHAR(32))&\"\",\"\"),\"[\",\"\"),\"]\",\"\"))","v":""},{"$f":"Partidas!B6 & \"\"","v":"[White \"Pastor de ovejas\"]"},{"$f":"Partidas!C6 & \"\"","v":"[White \"Masefield\"]"},{"$f":"Partidas!D6 & \"\"","v":"[White \"Kermur de Legal\"]"},{"$f":"Partidas!E6 & \"\"","v":"[White \"\"]"},{"$f":"Partidas!F6 & \"\"","v":"[White \"Paul Morphy\"]"},{"$f":"Partidas!G6 & \"\"","v":"[White \"Adolf Anderssen\"]"},{"$f":"Partidas!H6 & \"\"","v":"[White \"Rotlewi, Georg\"]"},{"$f":"Partidas!I6 & \"\"","v":"[White \"Garry Kasparov\"]"},{"$f":"Partidas!J6 & \"\"","v":"[White \"Levon Aronian\"]"},{"$f":"Partidas!K6 & \"\"","v":"[White \"Karpov, Anatoly\"]"},{"$f":"Partidas!L6 & \"\"","v":"[White \"Carlsen, Magnus\"]"},{"$f":"Partidas!M6 & \"\"","v":"[Round \"\"]"}]
[{"$f":"IF(Valor_Partida=0,\"\",SUBSTITUTE(SUBSTITUTE(IFERROR(SUBSTITUTE(INDEX(misPartidasNuméricas,ROW(),Valor_Partida+1),CHAR(160),CHAR(32))&\"\",\"\"),\"[\",\"\"),\"]\",\"\"))","v":""},{"$f":"Partidas!B7 & \"\"","v":"[Black \"Rey aventurero\"]"},{"$f":"Partidas!C7 & \"\"","v":"[Black \"Trinka\"]"},{"$f":"Partidas!D7 & \"\"","v":"[Black \"Saint Brie\"]"},{"$f":"Partidas!E7 & \"\"","v":"[Black \"\"]"},{"$f":"Partidas!F7 & \"\"","v":"[Black \"Duke of Brunswick and Count Isouard\"]"},{"$f":"Partidas!G7 & \"\"","v":"[Black \"Jean Dufresne\"]"},{"$f":"Partidas!H7 & \"\"","v":"[Black \"Rubinstein, Akiba\"]"},{"$f":"Partidas!I7 & \"\"","v":"[Black \"Veselin Topalov\"]"},{"$f":"Partidas!J7 & \"\"","v":"[Black \"Viswanathan Anand\"]"},{"$f":"Partidas!K7 & \"\"","v":"[Black \"Kasparov, Garry\"]"},{"$f":"Partidas!L7 & \"\"","v":"[Black \"Niemann, Hans Moke\"]"},{"$f":"Partidas!M7 & \"\"","v":"[Annotator \"\"]"}]
[{"$f":"IF(Valor_Partida=0,\"\",SUBSTITUTE(SUBSTITUTE(IFERROR(SUBSTITUTE(INDEX(misPartidasNuméricas,ROW(),Valor_Partida+1),CHAR(160),CHAR(32))&\"\",\"\"),\"[\",\"\"),\"]\",\"\"))","v":""},{"$f":"Partidas!B8 & \"\"","v":"[Result \"1-0\"]"},{"$f":"Partidas!C8 & \"\"","v":"[Result \"1-0\"]"},{"$f":"Partidas!D8 & \"\"","v":"[Result \"1-0\"]"},{"$f":"Partidas!E8 & \"\"","v":"[Result \"0-1\"]"},{"$f":"Partidas!F8 & \"\"","v":"[Result \"1-0\"]"},{"$f":"Partidas!G8 & \"\"","v":"[Result \"1-0\"]"},{"$f":"Partidas!H8 & \"\"","v":"[Result \"0-1\"]"},{"$f":"Partidas!I8 & \"\"","v":"[Result \"1-0\"]"},{"$f":"Partidas!J8 & \"\"","v":"[Result \"0-1\"]"},{"$f":"Partidas!K8 & \"\"","v":"[Result \"0-1\"]"},{"$f":"Partidas!L8 & \"\"","v":"[Result \"0-1\"]"},{"$f":"Partidas!M8 & \"\"","v":"[Result \"0-1\"]"}]
[{"$f":"IF(Valor_Partida=0,\"\",SUBSTITUTE(SUBSTITUTE(IFERROR(SUBSTITUTE(INDEX(misPartidasNuméricas,ROW(),Valor_Partida+1),CHAR(160),CHAR(32))&\"\",\"\"),\"[\",\"\"),\"]\",\"\"))","v":""},{"$f":"Partidas!B9 & \"\"","v":""},{"$f":"Partidas!C9 & \"\"","v":""},{"$f":"Partidas!D9 & \"\"","v":""},{"$f":"Partidas!E9 & \"\"","v":""},{"$f":"Partidas!F9 & \"\"","v":""},{"$f":"Partidas!G9 & \"\"","v":""},{"$f":"Partidas!H9 & \"\"","v":"[ECO \"D40q\"]"},{"$f":"Partidas!I9 & \"\"","v":""},{"$f":"Partidas!J9 & \"\"","v":""},{"$f":"Partidas!K9 & \"\"","v":""},{"$f":"Partidas!L9 & \"\"","v":""},{"$f":"Partidas!M9 & \"\"","v":"[Date \"2022.10.05\"]"}]
[{"$f":"IF(Valor_Partida=0,\"\",SUBSTITUTE(SUBSTITUTE(IFERROR(SUBSTITUTE(INDEX(misPartidasNuméricas,ROW(),Valor_Partida+1),CHAR(160),CHAR(32))&\"\",\"\"),\"[\",\"\"),\"]\",\"\"))","v":""},{"$f":"Partidas!B10 & \"\"","v":""},{"$f":"Partidas!C10 & \"\"","v":""},{"$f":"Partidas!D10 & \"\"","v":""},{"$f":"Partidas!E10 & \"\"","v":""},{"$f":"Partidas!F10 & \"\"","v":""},{"$f":"Partidas!G10 & \"\"","v":""},{"$f":"Partidas!H10 & \"\"","v":""},{"$f":"Partidas!I10 & \"\"","v":""},{"$f":"Partidas!J10 & \"\"","v":""},{"$f":"Partidas!K10 & \"\"","v":""},{"$f":"Partidas!L10 & \"\"","v":""},{"$f":"Partidas!M10 & \"\"","v":"[PlyCount \"108\"]"}]
[{"$f":"IF(Valor_Partida=0,\"\",IFERROR(INDEX(misPartidasNuméricas,ROW(),Valor_Partida+1)&\"\",\"\"))","v":""},"1. 5254 5755","1. 5254 7775","1. 5254 5755","1. 4244 7866","1. 5254 5755","1. 5254 5755","1. 4244 4745","1. 5254 4746","1. 4244 4745","1. 4244 7866","1. 4244 7866","1. 4244 7866"]
[{"$f":"IF(Valor_Partida=0,\"\",IFERROR(INDEX(misPartidasNuméricas,ROW(),Valor_Partida+1)&\"\",\"\"))","v":""},"2. 6134 2836","2. 2133 6765","2. 6134 4746","2. 3234 5755","2. 7163 4746","2. 7163 2836","2. 7163 5756","2. 4244 7866","2. 3234 3736","2. 3234 7776","2. 3234 5756","2. 2133 4745"]
[{"$f":"IF(Valor_Partida=0,\"\",IFERROR(INDEX(misPartidasNuméricas,ROW(),Valor_Partida+1)&\"\",\"\"))","v":""},"3. 4185 7866","3. 4185 ","3. 7163 3874","3. 4455 6674","3. 4244 3874","3. 6134 6835","3. 5253 3735","3. 2133 7776","3. 7163 7866","3. 2133 6877","3. 2133 6824","3. 3164 5756"]
[{"$f":"IF(Valor_Partida=0,\"\",IFERROR(INDEX(misPartidasNuméricas,ROW(),Valor_Partida+1)&\"\",\"\"))","v":""},"4. 8567 ",null,"4. 2133 7776","4. 7163 2836","4. 4455 7463","4. 2224 3524","4. 3234 2836","4. 3153 6877","4. 2133 5756","4. 5254 4746","4. 7273 5878","4. 3325 2816"]
[{"$f":"IF(Valor_Partida=0,\"\",IFERROR(INDEX(misPartidasNuméricas,ROW(),Valor_Partida+1)&\"\",\"\"))","v":""},null,null,"5. 6355 7441","5. 3164 6824","5. 4163 4655","5. 3233 2415","5. 2133 7866","5. 4142 3736","5. 5253 2847","5. 6263 5878","5. 6172 4745","5. 5253 6857"]
[{"$f":"IF(Valor_Partida=0,\"\",IFERROR(INDEX(misPartidasNuméricas,ROW(),Valor_Partida+1)&\"\",\"\"))","v":""},null,null,"6. 3467 5857","6. 2142 4857","6. 6134 7866","6. 4244 5544","6. 4435 6835","6. 6263 2725","6. 6143 4534","6. 3153 5755","6. 1213 2433","6. 7163 5878"]
[{"$f":"IF(Valor_Partida=0,\"\",IFERROR(INDEX(misPartidasNuméricas,ROW(),Valor_Partida+1)&\"\",\"\"))","v":""},null,null,"7. 3345 ","7. 1213 7455","7. 6323 4857","7. 5171 4443","7. 1213 1716","7. 7152 2847","7. 4334 2725","7. 7152 3736","7. 2233 4534","7. 6152 6685"]
[{"$f":"IF(Valor_Partida=0,\"\",IFERROR(INDEX(misPartidasNuméricas,ROW(),Valor_Partida+1)&\"\",\"\"))","v":""},null,null,null,"8. 1324 5543","8. 2133 3736","8. 4123 4866","8. 2224 3546","8. 5386 7786","8. 3443 6846","8. 4142 2847","8. 7163 3735","8. 6455 6766"]
[{"$f":"IF(Valor_Partida=0,\"\",IFERROR(INDEX(misPartidasNuméricas,ROW(),Valor_Partida+1)&\"\",\"\"))","v":""},null,null,null,null,"9. 3175 2725","9. 5455 6676","9. 3122 5878","9. 4286 3827","9. 5171 5878","9. 1141 1716","9. 5171 3544","9. 5573 3736"]
[{"$f":"IF(Valor_Partida=0,\"\",IFERROR(INDEX(misPartidasNuméricas,ROW(),Valor_Partida+1)&\"\",\"\"))","v":""},null,null,null,null,"10. 3325 3625","10. 6151 7857","10. 4142 4857","10. 1213 5755","10. 4132 3827","10. 4455 4755","10. 4144 2836","10. 2533 3635"]
[{"$f":"IF(Valor_Partida=0,\"\",IFERROR(INDEX(misPartidasNuméricas,ROW(),Valor_Partida+1)&\"\",\"\"))","v":""},null,null,null,null,"11. 3425 2847","11. 3113 2725","11. 6143 4534","11. 5131 4857","11. 1213 1838","11. 2223 2725","11. 4434 5655","11. 5171 8573"]
[{"$f":"IF(Valor_Partida=0,\"\",IFERROR(INDEX(misPartidasNuméricas,ROW(),Valor_Partida+1)&\"\",\"\"))","v":""},null,null,null,null,"12. 5131 1848","12. 2325 1828","12. 4334 2725","12. 3121 1716","12. 6375 3635","12. 3425 1625","12. 3175 8786","12. 8273 3534"]
[{"$f":"IF(Valor_Partida=0,\"\",IFERROR(INDEX(misPartidasNuméricas,ROW(),Valor_Partida+1)&\"\",\"\"))","v":""},null,null,null,null,"13. 4147 4847","13. 2514 1526","13. 3443 6848","13. 5231 5838","13. 7587 6674","13. 4246 6647","13. 6141 3856","13. 5354 5724"]
[{"$f":"IF(Valor_Partida=0,\"\",IFERROR(INDEX(misPartidasNuméricas,ROW(),Valor_Partida+1)&\"\",\"\"))","v":""},null,null,null,null,"14. 8141 5756","14. 2142 3827","14. 4252 3827","14. 3123 5544","14. 6264 3544","14. 6364 2524","14. 4148 5634","14. 5445 5645"]
[{"$f":"IF(Valor_Partida=0,\"\",IFERROR(INDEX(misPartidasNuméricas,ROW(),Valor_Partida+1)&\"\",\"\"))","v":""},null,null,null,null,"15. 2547 6647","15. 4254 7665","15. 5171 3655","15. 4144 3635","15. 5344 4635","15. 3321 5574","15. 4818 6818","15. 3321 1637"]
[{"$f":"IF(Valor_Partida=0,\"\",IFERROR(INDEX(misPartidasNuméricas,ROW(),Valor_Partida+1)&\"\",\"\"))","v":""},null,null,null,null,"16. 2328 4728","16. 3443 6585","16. 6355 4655","16. 4441 4726","16. 4352 4755","16. 5344 7744","16. 7566 7766","16. 3233 2446"]
[{"$f":"IF(Valor_Partida=0,\"\",IFERROR(INDEX(misPartidasNuméricas,ROW(),Valor_Partida+1)&\"\",\"\"))","v":""},null,null,null,null,"17. 4148 ","17. 5466 7766","17. 6264 5537","17. 7273 3828","17. 5274 3544","17. 4644 1812","17. 7161 1848","17. 2142 2725"]
[{"$f":"IF(Valor_Partida=0,\"\",IFERROR(INDEX(misPartidasNuméricas,ROW(),Valor_Partida+1)&\"\",\"\"))","v":""},null,null,null,null,null,"18. 5566 8878","18. 5354 1838","18. 2315 2718","18. 7181 5574","18. 8283 3635","18. 6151 3615","18. 6351 3856"]
[{"$f":"IF(Valor_Partida=0,\"\",IFERROR(INDEX(misPartidasNuméricas,ROW(),Valor_Partida+1)&\"\",\"\"))","v":""},null,null,null,null,null,"19. 1141 8563","19. 5455 3726","19. 6183 4645","19. 8768 6765","19. 4471 7466","19. 1141 4838","19. 5132 4847"]
[{"$f":"IF(Valor_Partida=0,\"\",IFERROR(INDEX(misPartidasNuméricas,ROW(),Valor_Partida+1)&\"\",\"\"))","v":""},null,null,null,null,null,"20. 5157 3657","20. 7181 6674","20. 8664 2817","20. 6876 4866","20. 5455 6654","20. 6342 3456","20. 6151 1715"]
[{"$f":"IF(Valor_Partida=0,\"\",IFERROR(INDEX(misPartidasNuméricas,ROW(),Valor_Partida+1)&\"\",\"\"))","v":""},null,null,null,null,null,"21. 1447 5847","21. 4354 5784","21. 8151 4544","21. 8283 6676","21. 8384 3534","21. 3334 5634","21. 1213 7776"]
[{"$f":"IF(Valor_Partida=0,\"\",IFERROR(INDEX(misPartidasNuméricas,ROW(),Valor_Partida+1)&\"\",\"\"))","v":""},null,null,null,null,null,"22. 4365 4758","22. 7273 3833","22. 3345 2645","22. 3252 7685","22. 5231 3433","22. 4234 3834","22. 4261 8785"]
[{"$f":"IF(Valor_Partida=0,\"\",IFERROR(INDEX(misPartidasNuméricas,ROW(),Valor_Partida+1)&\"\",\"\"))","v":""},null,null,null,null,null,"23. 6547 5868","23. 7384 4842","23. 5445 5746","23. 5243 4453","23. 3112 3332","23. 4148 7877","23. 4142 7877"]
[{"$f":"IF(Valor_Partida=0,\"\",IFERROR(INDEX(misPartidasNuméricas,ROW(),Valor_Partida+1)&\"\",\"\"))","v":""},null,null,null,null,null,"24. 1357 ","24. 5242 2754","24. 4144 3544",null,"24. 7144 32412","24. 7245 3437","24. 6264 6888"]
[{"$f":"IF(Valor_Partida=0,\"\",IFERROR(INDEX(misPartidasNuméricas,ROW(),Valor_Partida+1)&\"\",\"\"))","v":""},null,null,null,null,null,null,"25. 4272 3383","25. 5157 1726",null,"25. 5141 4735","25. 4818 1716","25. 5263 6665"]
[{"$f":"IF(Valor_Partida=0,\"\",IFERROR(INDEX(misPartidasNuméricas,ROW(),Valor_Partida+1)&\"\",\"\"))","v":""},null,null,null,null,null,null,null,"26. 6444 2615",null,"26. 4448 6848","26. 1828 6665","26. 5152 3758"]
[{"$f":"IF(Valor_Partida=0,\"\",IFERROR(INDEX(misPartidasNuméricas,ROW(),Valor_Partida+1)&\"\",\"\"))","v":""},null,null,null,null,null,null,null,"27. 2224 1514",null,"27. 4132 5462","27. 2858 5554","27. 1151 5667"]
[{"$f":"IF(Valor_Partida=0,\"\",IFERROR(INDEX(misPartidasNuméricas,ROW(),Valor_Partida+1)&\"\",\"\"))","v":""},null,null,null,null,null,null,null,"28. 4433 4645",null,null,"28. 7374 3735","28. 5255 5866"]
[{"$f":"IF(Valor_Partida=0,\"\",IFERROR(INDEX(misPartidasNuméricas,ROW(),Valor_Partida+1)&\"\",\"\"))","v":""},null,null,null,null,null,null,null,"29. 5717 1827",null,null,"29. 4512 1534","29. 6153 8584"]
[{"$f":"IF(Valor_Partida=0,\"\",IFERROR(INDEX(misPartidasNuméricas,ROW(),Valor_Partida+1)&\"\",\"\"))","v":""},null,null,null,null,null,null,null,"30. 1727 4534",null,null,"30. 1314 3446","30. 4262 8483"]
[{"$f":"IF(Valor_Partida=0,\"\",IFERROR(INDEX(misPartidasNuméricas,ROW(),Valor_Partida+1)&\"\",\"\"))","v":""},null,null,null,null,null,null,null,"31. 3366 1413",null,null,"31. 5857 6574","31. 5152 1848"]
[{"$f":"IF(Valor_Partida=0,\"\",IFERROR(INDEX(misPartidasNuméricas,ROW(),Valor_Partida+1)&\"\",\"\"))","v":""},null,null,null,null,null,null,null,"32. 6616 1324",null,null,"32. 5747 5453","32. 6251 6654"]
[{"$f":"IF(Valor_Partida=0,\"\",IFERROR(INDEX(misPartidasNuméricas,ROW(),Valor_Partida+1)&\"\",\"\"))","v":""},null,null,null,null,null,null,null,"33. 3233 2433",null,null,"33. 6253 4654","33. 7374 4655"]
[{"$f":"IF(Valor_Partida=0,\"\",IFERROR(INDEX(misPartidasNuméricas,ROW(),Valor_Partida+1)&\"\",\"\"))","v":""},null,null,null,null,null,null,null,"34. 1611 3342",null,null,"34. 5161 3531","34. 4455 8372"]
[{"$f":"IF(Valor_Partida=0,\"\",IFERROR(INDEX(misPartidasNuméricas,ROW(),Valor_Partida+1)&\"\",\"\"))","v":""},null,null,null,null,null,null,null,"35. 1122 4241",null,null,"35. 6172 3132","35. 5272 8883"]
[{"$f":"IF(Valor_Partida=0,\"\",IFERROR(INDEX(misPartidasNuméricas,ROW(),Valor_Partida+1)&\"\",\"\"))","v":""},null,null,null,null,null,null,null,"36. 8361 4842",null,null,"36. 1267 3252","36. 5556 6756"]
[{"$f":"IF(Valor_Partida=0,\"\",IFERROR(INDEX(misPartidasNuméricas,ROW(),Valor_Partida+1)&\"\",\"\"))","v":""},null,null,null,null,null,null,null,"37. 2747 4247",null,null,"37. 7271 5251","37. 7465 5665"]
[{"$f":"IF(Valor_Partida=0,\"\",IFERROR(INDEX(misPartidasNuméricas,ROW(),Valor_Partida+1)&\"\",\"\"))","v":""},null,null,null,null,null,null,null,"38. 6134 2534",null,null,"38. 7172 5152","38. 5365 4765"]
[{"$f":"IF(Valor_Partida=0,\"\",IFERROR(INDEX(misPartidasNuméricas,ROW(),Valor_Partida+1)&\"\",\"\"))","v":""},null,null,null,null,null,null,null,"39. 2288 4743",null,null,"39. 7271 7766","39. 3244 6566"]
[{"$f":"IF(Valor_Partida=0,\"\",IFERROR(INDEX(misPartidasNuméricas,ROW(),Valor_Partida+1)&\"\",\"\"))","v":""},null,null,null,null,null,null,null,"40. 8818 3433",null,null,"40. 6745 5242","40. 6354 4858"]
[{"$f":"IF(Valor_Partida=0,\"\",IFERROR(INDEX(misPartidasNuméricas,ROW(),Valor_Partida+1)&\"\",\"\"))","v":""},null,null,null,null,null,null,null,"41. 1814 4151",null,null,"41. 4767 6676","41. 6465 5854"]
[{"$f":"IF(Valor_Partida=0,\"\",IFERROR(INDEX(misPartidasNuméricas,ROW(),Valor_Partida+1)&\"\",\"\"))","v":""},null,null,null,null,null,null,null,"42. 6364 6765",null,null,"42. 6747 5475","42. 5162 5484"]
[{"$f":"IF(Valor_Partida=0,\"\",IFERROR(INDEX(misPartidasNuméricas,ROW(),Valor_Partida+1)&\"\",\"\"))","v":""},null,null,null,null,null,null,null,"43. 2131 4342",null,null,"43. 4567 7665","43. 7276 6676"]
[{"$f":"IF(Valor_Partida=0,\"\",IFERROR(INDEX(misPartidasNuméricas,ROW(),Valor_Partida+1)&\"\",\"\"))","v":""},null,null,null,null,null,null,null,"44. 1417 ",null,null,"44. 4742 7563","44. 6576 8381"]
[{"$f":"IF(Valor_Partida=0,\"\",IFERROR(INDEX(misPartidasNuméricas,ROW(),Valor_Partida+1)&\"\",\"\"))","v":""},null,null,null,null,null,null,null,null,null,null,"45. 7172 6342","45. 7172 8482"]
[{"$f":"IF(Valor_Partida=0,\"\",IFERROR(INDEX(misPartidasNuméricas,ROW(),Valor_Partida+1)&\"\",\"\"))","v":""},null,null,null,null,null,null,null,null,null,null,"46. 1415 6555","46. 7273 8262"]
[{"$f":"IF(Valor_Partida=0,\"\",IFERROR(INDEX(misPartidasNuméricas,ROW(),Valor_Partida+1)&\"\",\"\"))","v":""},null,null,null,null,null,null,null,null,null,null,"47. 7273 4261","47. 7362 8182"]
[{"$f":"IF(Valor_Partida=0,\"\",IFERROR(INDEX(misPartidasNuméricas,ROW(),Valor_Partida+1)&\"\",\"\"))","v":""},null,null,null,null,null,null,null,null,null,null,"48. 7362 6182","48. 6253 8222"]
[{"$f":"IF(Valor_Partida=0,\"\",IFERROR(INDEX(misPartidasNuméricas,ROW(),Valor_Partida+1)&\"\",\"\"))","v":""},null,null,null,null,null,null,null,null,null,null,"49. 5354 5554","49. 5364 7776"]
[{"$f":"IF(Valor_Partida=0,\"\",IFERROR(INDEX(misPartidasNuméricas,ROW(),Valor_Partida+1)&\"\",\"\"))","v":""},null,null,null,null,null,null,null,null,null,null,"50. 6756 5464","50. 6455 2524"]
[{"$f":"IF(Valor_Partida=0,\"\",IFERROR(INDEX(misPartidasNuméricas,ROW(),Valor_Partida+1)&\"\",\"\"))","v":""},null,null,null,null,null,null,null,null,null,null,"51. 5638 8263","51. 1324 1524"]
[{"$f":"IF(Valor_Partida=0,\"\",IFERROR(INDEX(misPartidasNuméricas,ROW(),Valor_Partida+1)&\"\",\"\"))","v":""},null,null,null,null,null,null,null,null,null,null,"52. 3827 6355","52. 3324 3433"]
[{"$f":"IF(Valor_Partida=0,\"\",IFERROR(INDEX(misPartidasNuméricas,ROW(),Valor_Partida+1)&\"\",\"\"))","v":""},null,null,null,null,null,null,null,null,null,null,"53. 2716 5536","53. 2425 2225"]
[{"$f":"IF(Valor_Partida=0,\"\",IFERROR(INDEX(misPartidasNuméricas,ROW(),Valor_Partida+1)&\"\",\"\"))","v":""},null,null,null,null,null,null,null,null,null,null,"54. 1627 3615","54. 4425 3332"]
[{"$f":"IF(Valor_Partida=0,\"\",IFERROR(INDEX(misPartidasNuméricas,ROW(),Valor_Partida+1)&\"\",\"\"))","v":""},null,null,null,null,null,null,null,null,null,null,"55. 2745 8685"]
[{"$f":"IF(Valor_Partida=0,\"\",IFERROR(INDEX(misPartidasNuméricas,ROW(),Valor_Partida+1)&\"\",\"\"))","v":""},null,null,null,null,null,null,null,null,null,null,"56. 4567 8584"]
[{"$f":"IF(Valor_Partida=0,\"\",IFERROR(INDEX(misPartidasNuméricas,ROW(),Valor_Partida+1)&\"\",\"\"))","v":""},null,null,null,null,null,null,null,null,null,null,"57. 6745 6455"]
[{"$f":"IF(Valor_Partida=0,\"\",IFERROR(INDEX(misPartidasNuméricas,ROW(),Valor_Partida+1)&\"\",\"\"))","v":""}]
[{"$f":"IF(Valor_Partida=0,\"\",IFERROR(INDEX(misPartidasNuméricas,ROW(),Valor_Partida+1)&\"\",\"\"))","v":""}]
[{"$f":"IF(Valor_Partida=0,\"\",IFERROR(INDEX(misPartidasNuméricas,ROW(),Valor_Partida+1)&\"\",\"\"))","v":""}]
[{"$f":"IF(Valor_Partida=0,\"\",IFERROR(INDEX(misPartidasNuméricas,ROW(),Valor_Partida+1)&\"\",\"\"))","v":""}]
[{"$f":"IF(Valor_Partida=0,\"\",IFERROR(INDEX(misPartidasNuméricas,ROW(),Valor_Partida+1)&\"\",\"\"))","v":""}]
[{"$f":"IF(Valor_Partida=0,\"\",IFERROR(INDEX(misPartidasNuméricas,ROW(),Valor_Partida+1)&\"\",\"\"))","v":""}]
[{"$f":"IF(Valor_Partida=0,\"\",IFERROR(INDEX(misPartidasNuméricas,ROW(),Valor_Partida+1)&\"\",\"\"))","v":""}]
[{"$f":"IF(Valor_Partida=0,\"\",IFERROR(INDEX(misPartidasNuméricas,ROW(),Valor_Partida+1)&\"\",\"\"))","v":""}]
[{"$f":"IF(Valor_Partida=0,\"\",IFERROR(INDEX(misPartidasNuméricas,ROW(),Valor_Partida+1)&\"\",\"\"))","v":""}]
[{"$f":"IF(Valor_Partida=0,\"\",IFERROR(INDEX(misPartidasNuméricas,ROW(),Valor_Partida+1)&\"\",\"\"))","v":""}]
[{"$f":"IF(Valor_Partida=0,\"\",IFERROR(INDEX(misPartidasNuméricas,ROW(),Valor_Partida+1)&\"\",\"\"))","v":""}]
[{"$f":"IF(Valor_Partida=0,\"\",IFERROR(INDEX(misPartidasNuméricas,ROW(),Valor_Partida+1)&\"\",\"\"))","v":""}]
[{"$f":"IF(Valor_Partida=0,\"\",IFERROR(INDEX(misPartidasNuméricas,ROW(),Valor_Partida+1)&\"\",\"\"))","v":""}]
[{"$f":"IF(Valor_Partida=0,\"\",IFERROR(INDEX(misPartidasNuméricas,ROW(),Valor_Partida+1)&\"\",\"\"))","v":""}]
[{"$f":"IF(Valor_Partida=0,\"\",IFERROR(INDEX(misPartidasNuméricas,ROW(),Valor_Partida+1)&\"\",\"\"))","v":""}]
[{"$f":"IF(Valor_Partida=0,\"\",IFERROR(INDEX(misPartidasNuméricas,ROW(),Valor_Partida+1)&\"\",\"\"))","v":""}]
[{"$f":"IF(Valor_Partida=0,\"\",IFERROR(INDEX(misPartidasNuméricas,ROW(),Valor_Partida+1)&\"\",\"\"))","v":""}]
[{"$f":"IF(Valor_Partida=0,\"\",IFERROR(INDEX(misPartidasNuméricas,ROW(),Valor_Partida+1)&\"\",\"\"))","v":""}]
[{"$f":"IF(Valor_Partida=0,\"\",IFERROR(INDEX(misPartidasNuméricas,ROW(),Valor_Partida+1)&\"\",\"\"))","v":""}]
[{"$f":"IF(Valor_Partida=0,\"\",IFERROR(INDEX(misPartidasNuméricas,ROW(),Valor_Partida+1)&\"\",\"\"))","v":""}]
[{"$f":"IF(Valor_Partida=0,\"\",IFERROR(INDEX(misPartidasNuméricas,ROW(),Valor_Partida+1)&\"\",\"\"))","v":""}]
[{"$f":"IF(Valor_Partida=0,\"\",IFERROR(INDEX(misPartidasNuméricas,ROW(),Valor_Partida+1)&\"\",\"\"))","v":""}]
[{"$f":"IF(Valor_Partida=0,\"\",IFERROR(INDEX(misPartidasNuméricas,ROW(),Valor_Partida+1)&\"\",\"\"))","v":""}]
[{"$f":"IF(Valor_Partida=0,\"\",IFERROR(INDEX(misPartidasNuméricas,ROW(),Valor_Partida+1)&\"\",\"\"))","v":""}]
[{"$f":"IF(Valor_Partida=0,\"\",IFERROR(INDEX(misPartidasNuméricas,ROW(),Valor_Partida+1)&\"\",\"\"))","v":""}]
[{"$f":"IF(Valor_Partida=0,\"\",IFERROR(INDEX(misPartidasNuméricas,ROW(),Valor_Partida+1)&\"\",\"\"))","v":""}]
[{"$f":"IF(Valor_Partida=0,\"\",IFERROR(INDEX(misPartidasNuméricas,ROW(),Valor_Partida+1)&\"\",\"\"))","v":""}]
[{"$f":"IF(Valor_Partida=0,\"\",IFERROR(INDEX(misPartidasNuméricas,ROW(),Valor_Partida+1)&\"\",\"\"))","v":""}]
[{"$f":"IF(Valor_Partida=0,\"\",IFERROR(INDEX(misPartidasNuméricas,ROW(),Valor_Partida+1)&\"\",\"\"))","v":""}]
[{"$f":"IF(Valor_Partida=0,\"\",IFERROR(INDEX(misPartidasNuméricas,ROW(),Valor_Partida+1)&\"\",\"\"))","v":""}]
[{"$f":"IF(Valor_Partida=0,\"\",IFERROR(INDEX(misPartidasNuméricas,ROW(),Valor_Partida+1)&\"\",\"\"))","v":""}]
[{"$f":"IF(Valor_Partida=0,\"\",IFERROR(INDEX(misPartidasNuméricas,ROW(),Valor_Partida+1)&\"\",\"\"))","v":""}]
[{"$f":"IF(Valor_Partida=0,\"\",IFERROR(INDEX(misPartidasNuméricas,ROW(),Valor_Partida+1)&\"\",\"\"))","v":""}]
[{"$f":"IF(Valor_Partida=0,\"\",IFERROR(INDEX(misPartidasNuméricas,ROW(),Valor_Partida+1)&\"\",\"\"))","v":""}]
[{"$f":"IF(Valor_Partida=0,\"\",IFERROR(INDEX(misPartidasNuméricas,ROW(),Valor_Partida+1)&\"\",\"\"))","v":""}]
[{"$f":"IF(Valor_Partida=0,\"\",IFERROR(INDEX(misPartidasNuméricas,ROW(),Valor_Partida+1)&\"\",\"\"))","v":""}]
[{"$f":"IF(Valor_Partida=0,\"\",IFERROR(INDEX(misPartidasNuméricas,ROW(),Valor_Partida+1)&\"\",\"\"))","v":""}]
[{"$f":"IF(Valor_Partida=0,\"\",IFERROR(INDEX(misPartidasNuméricas,ROW(),Valor_Partida+1)&\"\",\"\"))","v":""}]
[{"$f":"IF(Valor_Partida=0,\"\",IFERROR(INDEX(misPartidasNuméricas,ROW(),Valor_Partida+1)&\"\",\"\"))","v":""}]
[{"$f":"IF(Valor_Partida=0,\"\",IFERROR(INDEX(misPartidasNuméricas,ROW(),Valor_Partida+1)&\"\",\"\"))","v":""}]
[{"$f":"IF(Valor_Partida=0,\"\",IFERROR(INDEX(misPartidasNuméricas,ROW(),Valor_Partida+1)&\"\",\"\"))","v":""}]
[{"$f":"IF(Valor_Partida=0,\"\",IFERROR(INDEX(misPartidasNuméricas,ROW(),Valor_Partida+1)&\"\",\"\"))","v":""}]
[{"$f":"IF(Valor_Partida=0,\"\",IFERROR(INDEX(misPartidasNuméricas,ROW(),Valor_Partida+1)&\"\",\"\"))","v":""}]